Workbook

Sheet 0. Wijzingen
B1: Wijzigingsoverzicht aanvraagformulier Inwonersondersteuning
B4: Versienummer 17 MAART 2020
B7: Wijziging ten opzichte van versie 26 februari 2020
A8: 1 | B8: Toegevoegd tabblad '1. Inputblad hoofdaannemer': de mogelijkheid om te kiezen voor een lager tarief dan het maximumtarief d.m.v. een staffelkorting
A9: 2 | B9: Toegevoegd tabblad '0. Wijzigingen' met versienummer
A10: 3 | B10: Toegevoegd: voettekst met naam en versienummer
A11: 4 | B11: Toegevoegd: tekst 'Inwonersondersteuning' in titels van tabbladen
A12: 5 | B12: Toegevoegd: tabblad 4. Individuele producten (2) beveiliging verwijderd op grijze cellen

Sheet 1. Inputblad Hoofdaannemer
B1: Subsidieaanvraag Inwonersondersteuning
G2: grijs en leeg = invullen
B3: Stadsdeel | G3: wit en leeg = (nog) niet invullen
B4: Subsidiejaar | G4: geel = formuleberekening
B5: Naam hoofdaannemer | G5: donkergrijs = nvt
G6: rood = ongeldige waarde
B8: ="Aanbieders "&C3&" in 2020" -> Aanbieders in 2020
B9: =IFERROR(IF($B8=0,"",INDEX(Inputblad!$B$65:$D$82,MATCH('1. Inputblad Hoofdaannemer'!$C$3,Inputblad!$B$65:$B$82,0)+ROW(1:1)-1,3)),"") ->  | E9: Uw korting op het maximumtarief
B10: =IFERROR(IF($B9=0,"",INDEX(Inputblad!$B$65:$D$82,MATCH('1. Inputblad Hoofdaannemer'!$C$3,Inputblad!$B$65:$B$82,0)+ROW(2:2)-1,3)),"") ->  | E10: Staffelkorting op tarief**
B11: =IFERROR(IF($B10=0,"",INDEX(Inputblad!$B$65:$D$82,MATCH('1. Inputblad Hoofdaannemer'!$C$3,Inputblad!$B$65:$B$82,0)+ROW(3:3)-1,3)),"") -> 
E12: Maximumtarieven Inwonersondersteuning 2021
E13: hbo | G13: ='Uurtarieven per schaal'!G7*(1-$H$10) -> 73.08930137
E14: mbo | G14: ='Uurtarieven per schaal'!G6*(1-$H$10) -> 62.86840308
B16: Onderstaande tabel invullen nadat alle volgende bladen zijn ingevuld. De geraamde omzet (€) is dan bekend en weergegeven.
D18: RAMING OMZET* | G18: REALISATIE OMZET*
D19: ='7. Overzichtsblad'!B19 -> 0 | G19: ='7. Overzichtsblad'!P19 -> 0
C20: Zorgaanbieder | D20: RAMING 2021 | E20: % | G20: REALISATIE 2021 | H20: %
B21: Hoofdaannemer | C21: =IF(C5<>"",C5,"") ->  | E21: =IF(D21>0,D21/$D$32,"") ->  | H21: =IF($G$32>0,G21/$G$32,"") -> 
B22: Naam onderaannemer 1 | E22: =IF(D22>0,D22/$D$32,"") ->  | H22: =IF($G$32>0,G22/$G$32,"") -> 
B23: Naam onderaannemer 2
B24: Naam onderaannemer 3
B25: Naam onderaannemer 4
B26: Naam onderaannemer 5
B27: Naam onderaannemer 6
B28: Naam onderaannemer 7
B29: Naam onderaannemer 8
B30: Naam onderaannemer 9
B31: Naam onderaannemer 10
D32: =SUM(D21:D31) -> 0 | E32: =SUM(E21:E31) -> 0 | G32: =SUM(G21:G31) -> 0 | H32: =SUM(H21:H31) -> 0
B33: * Let op: het is verplicht onderaannemers minimaal 15% van de omzet te laten leveren.
B34: ** Als u het maximumtarief wenst te gebruiken, kunt u 0% korting kiezen.

Sheet 2. Huisvesting en overig
A1: Inwonersondersteuning: Huisvesting en overige kosten
B3: kosten | D3: DIT TABBLAD IS NIET INVULBAAR
A4: Huisvestingskosten medewerkers (Samen055 locatie) | B4: 27000 | D4: Beragen worden automatisch gevuld
A5: Totaal | B5: =SUM(B4:B4) -> 27000
A11: Hoofdaannemerschap inwonersondersteuning | B11: uren per week | C11: weken | D11: uren per jaar | E11: cao | F11: schaal | G11: uurtarief | H11: subsidie 2021
A12: Coördinatie | B12: 12 | C12: 52 | D12: =C12*B12 -> 624 | E12: Sociaal werk | F12: schaal 10 | G12: =IFERROR(INDEX('Uurtarieven per schaal'!$B$11:$G$37,MATCH(F12,'Uurtarieven per schaal'!$B$11:$B$37,0),MATCH(E12,'Uurtarieven per schaal'!$B$11:$G$11,0)),0) -> 81.43065191 | H12: =D12*G12 -> 50812.72679
A13: Werkbudget locatie | H13: 25000
A14: Totaal | B14: =SUM(B12:B13) -> 12 | H14: =SUM(H12:H13) -> 75812.72679
A16: Totale vergoeding huisvesting en overige functies | B16: =B5+H14 -> 102812.7268

Sheet 3. Individuele producten
A1: ="Subsidieaanvraag en verantwoording Inwonersondersteuning "&'1. Inputblad Hoofdaannemer'!C4&" "&'1. Inputblad Hoofdaannemer'!C5 -> Subsidieaanvraag en verantwoording Inwonersondersteuning | H1: grijs en leeg = invullen
H2: wit en leeg = (nog) niet invullen
H3: geel = formuleberekening
H4: donkergrijs = nvt
H5: rood = ongeldige waarde
B8: CLIËNTGEBONDEN UREN* HBO | E8: CLIËNTGEBONDEN UREN* MBO
A9: Product | B9: raming 2021 | C9: realisatie 6/2021 | D9: realisatie 2021 | E9: raming 2021 | F9: realisatie 6/2021 | G9: realisatie 2021
A10: Onafhankelijke cliëntondersteuning
A11: Individuele ondersteuning
A12: Waakvlamcontact
A13: Informatie en advies
A14: Totaal uren | B14: =SUM(B10:B13) -> 0 | D14: =SUM(D10:D13) -> 0 | E14: =SUM(E10:E13) -> 0 | G14: =SUM(G10:G13) -> 0
B17: # (BEREIKTE) UNIEKE CLIËNTEN | E17: AANTAL RECIDIVE (<3 JAAR)
A18: Product | B18: raming 2021 | C18: realisatie 6/2021 | D18: realisatie 2021 | E18: raming 2021 | F18: realisatie 6/2021 | G18: realisatie 2021
A19: Onafhankelijke cliëntondersteuning
A20: Individuele ondersteuning
A21: Waakvlamcontact | E21: =SUM(E19:E20) -> 0 | G21: =SUM(G19:G20) -> 0
A22: Informatie en advies
A23: Totaal uren | B23: =SUM(B19:B22) -> 0 | D23: =SUM(D19:D22) -> 0
B26: AANTALLEN TRAJECTEN | F26: AANTALLEN TRAJECTEN
B27: realisatie 6/2021 | F27: realisatie 2021
A28: =A9 -> Product | B28: stand 1-1 | C28: instroom | D28: uitstroom | E28: stand 30/6 | F28: stand 1-1 | G28: instroom | H28: uitstroom | I28: stand 31/12
A29: Onafhankelijke cliëntondersteuning | E29: =B29+C29-D29 -> 0 | F29: =B29 -> 0 | I29: =B29+C29-D29 -> 0
A30: Individuele ondersteuning | E30: =B30+C30-D30 -> 0 | F30: =B30 -> 0 | I30: =B30+C30-D30 -> 0
A31: Waakvlamcontact | E31: 0 | F31: 0 | I31: =B31+C31-D31 -> 0
A32: Informatie en advies
A33: Totaal uren | B33: =SUM(B29:B31) -> 0 | C33: =SUM(C29:C31) -> 0 | D33: =SUM(D29:D31) -> 0 | E33: =SUM(E29:E31) -> 0 | F33: =SUM(B29:B31) -> 0 | G33: =SUM(C29:C31) -> 0 | H33: =SUM(D29:D31) -> 0 | I33: =SUM(E29:E31) -> 0

Sheet 4. Individuele producten (2)
A1: ="Jaarverantwoording Inwonersondersteuning "&'1. Inputblad Hoofdaannemer'!C4 -> Jaarverantwoording Inwonersondersteuning | M1: grijs en leeg = invullen
M2: wit en leeg = (nog) niet invullen
M3: geel = formuleberekening
M4: donkergrijs = nvt
M5: rood = ongeldige waarde
B7: AFGESLOTEN TRAJECTEN
B8: =Lijsten!J2 -> Financiën | C8: =Lijsten!J3 -> Werk en opleiding | D8: =Lijsten!J4 -> Tijdbesteding | E8: =Lijsten!J5 -> Huisvesting | F8: =Lijsten!J6 -> Huiselijke relaties | G8: =Lijsten!J7 -> Geestelijke gezondheid | H8: =Lijsten!J8 -> Lichamelijke gezondheid | I8: =Lijsten!J9 -> Middelengebruik | J8: =Lijsten!J10 -> Basale Activiteiten van het Dagelijks Leven | K8: =Lijsten!J11 -> Instrumentele Activiteiten van het Dagelijks Leven | L8: =Lijsten!J12 -> Sociaal netwerk | M8: =Lijsten!J13 -> Maatschappelijke participatie | N8: =Lijsten!J14 -> Justitie | O8: =Lijsten!J15 -> (Ouderschap) Lichamelijke verzorging | P8: =Lijsten!J16 -> (Ouderschap) Sociale- emotionele ondersteuning | Q8: =Lijsten!J17 -> (Ouderschap) Scholing | R8: =Lijsten!J18 -> (Ouderschap) Opvang
B9: HOOFDPROBLEEM/THEMA ZRM-LEEFGEBIEDEN CLIËNTEN
A10: Product | B10: realisatie 2021
A11: Onafhankelijke cliëntondersteuning
A12: Individuele ondersteuning
A13: Waakvlamcontact
A14: Informatie en advies
A15: Totaal uren | B15: =SUM(B14:B14) -> 0 | C15: 0 | D15: 0 | E15: 0 | F15: 0 | G15: 0 | H15: 0 | I15: 0 | J15: 0 | K15: 0 | L15: 0 | M15: 0 | N15: 0 | O15: 0 | P15: 0 | Q15: 0 | R15: 0
B23: AFGESLOTEN TRAJECTEN
B24: Kan zelfstandig verder | C24: Kan verder met inzet netwerk/ vrijwilliger | D24: Inwoners is doorverwezen begeleid naar: | E24: Toegang Wmo | F24: Toegang Werk en Inkomen | G24: Toegang Wlz | H24: Toegang CJG | I24: (Basis)ontmoetingsplek | J24: Informele ondersteuners | K24: Anders: | L24: Regulier beëindigd, doelen behaald | M24: Voortijdig beëindigd, eenzijdig door inwoner | N24: Voortijdig beëindigd, eenzijdigd door professional | O24: Voortijdig, door externe omstandigheden (bv opname) | P24: 0-5 werkdagen | Q24: 6-10 werkdagen | R24: >11 werkdagen | S24: Jeugdwet | T24: WLZ | U24: Wmo
B26: RESULTAAT HULPVERLENING (VAN AFGESLOTEN TRAJECTEN) | L26: REDEN BEËINDIGING ZORG | P26: WACHTTIJD | S26: WET
A27: Product | B27: realisatie 2021 | L27: realisatie 2021 | P27: realisatie 2021 | S27: realisatie 2021
A28: Onafhankelijke cliëntondersteuning
A29: Individuele ondersteuning
A30: Totaal | B30: =SUM(B28:B29) -> 0 | C30: =SUM(C28:C29) -> 0 | D30: 0 | E30: 0 | F30: 0 | G30: 0 | H30: 0 | I30: 0 | J30: 0 | K30: 0 | L30: 0 | M30: 0 | N30: 0 | O30: 0 | P30: 0 | Q30: 0 | R30: 0 | S30: 0 | T30: 0 | U30: 0
B34: LEEFTIJDSOPBOUW CLIËNTEN
B35: realisatie 2021
A36: =A11 -> Onafhankelijke cliëntondersteuning | B36: 0-23 | D36: 24-75 | F36: 75+
A37: =Lijsten!A2 -> Onafhankelijke cliëntondersteuning
A38: =Lijsten!A3 -> Individuele ondersteuning
A39: =Lijsten!A4 -> Waakvlamcontact
A40: =Lijsten!A5 -> Informatie en advies
A41: =A30 -> Totaal | B41: =SUM(B37:C40) -> 0 | D41: =SUM(D37:E40) -> 0 | F41: =SUM(F37:G40) -> 0

Sheet 5. Collectieve ondersteuning
A1: ="Collectieve inwonersondersteuning "&'1. Inputblad Hoofdaannemer'!C4&" "&'1. Inputblad Hoofdaannemer'!C5 -> Collectieve inwonersondersteuning | P1: Alleen grijze cellen invullen | V1: * Cliëntgebonden uren, dus zonder vakantie, ziekte, niet-cliëntgebonden, etc.
V2: Indien niet genoeg regels voor alle activiteiten neem contact op met Mariëlle Buijse
G3: =Lijsten!J2 -> Financiën | H3: =Lijsten!J3 -> Werk en opleiding | I3: =Lijsten!J4 -> Tijdbesteding | J3: =Lijsten!J5 -> Huisvesting | K3: =Lijsten!J6 -> Huiselijke relaties | L3: =Lijsten!J7 -> Geestelijke gezondheid | M3: =Lijsten!J8 -> Lichamelijke gezondheid | N3: =Lijsten!J9 -> Middelengebruik | O3: =Lijsten!J10 -> Basale Activiteiten van het Dagelijks Leven | P3: =Lijsten!J11 -> Instrumentele Activiteiten van het Dagelijks Leven | Q3: =Lijsten!J12 -> Sociaal netwerk | R3: =Lijsten!J13 -> Maatschappelijke participatie | S3: =Lijsten!J14 -> Justitie | T3: =Lijsten!J15 -> (Ouderschap) Lichamelijke verzorging | U3: =Lijsten!J16 -> (Ouderschap) Sociale- emotionele ondersteuning | V3: =Lijsten!J17 -> (Ouderschap) Scholing | W3: =Lijsten!J18 -> (Ouderschap) Opvang | X3: ANDERS | Y3: AANTAL DEELNEMERS NAAR LEEFTIJD | AC3: URENINZET VOOR 1 BIJEENKOMST* | AE3: PRODUCTIE (€) ,TOTAAL ALLE BIJEENKOMSTEN
D4: DATUM OF # PER JAAR | Y4: RAMING 2021
B5: NAAM BIJEENKOMST | C5: TYPE | D5: DATUM | E5: # PER JAAR | G5: BELANGRIJKSTE ONDERWERP BIJEENKOMST (ZRM LEEFGEBIEDEN) | Y5: 0-23 | Z5: 24-75 | AA5: 75+ | AB5: TOTAAL | AC5: HBO | AD5: MBO | AE5: € HBO | AF5: € MBO | AG5: € Totaal
A6: 1 | F6: =IF(E6="",1,E6) -> 1 | AB6: =SUM(Y6:AA6) -> 0 | AE6: =AC6*F6*'1. Inputblad Hoofdaannemer'!$G$13 -> 0 | AF6: =AD6*F6*'1. Inputblad Hoofdaannemer'!$G$14 -> 0 | AG6: =AE6+AF6 -> 0
A7: 2 | F7: =IF(E7="",1,E7) -> 1 | AB7: =SUM(Y7:AA7) -> 0 | AE7: =AC7*F7*'1. Inputblad Hoofdaannemer'!$G$13 -> 0 | AF7: =AD7*F7*'1. Inputblad Hoofdaannemer'!$G$14 -> 0 | AG7: =AE7+AF7 -> 0
A8: 3 | F8: 1 | AB8: 0 | AE8: =AC8*F8*'1. Inputblad Hoofdaannemer'!$G$13 -> 0 | AF8: =AD8*F8*'1. Inputblad Hoofdaannemer'!$G$14 -> 0 | AG8: 0
A9: 4 | F9: 1 | AB9: 0 | AE9: =AC9*F9*'1. Inputblad Hoofdaannemer'!$G$13 -> 0 | AF9: =AD9*F9*'1. Inputblad Hoofdaannemer'!$G$14 -> 0 | AG9: 0
A10: 5 | F10: 1 | AB10: 0 | AE10: =AC10*F10*'1. Inputblad Hoofdaannemer'!$G$13 -> 0 | AF10: =AD10*F10*'1. Inputblad Hoofdaannemer'!$G$14 -> 0 | AG10: 0
A11: 6 | F11: 1 | AB11: 0 | AE11: =AC11*F11*'1. Inputblad Hoofdaannemer'!$G$13 -> 0 | AF11: =AD11*F11*'1. Inputblad Hoofdaannemer'!$G$14 -> 0 | AG11: 0
A12: 7 | F12: 1 | AB12: 0 | AE12: =AC12*F12*'1. Inputblad Hoofdaannemer'!$G$13 -> 0 | AF12: =AD12*F12*'1. Inputblad Hoofdaannemer'!$G$14 -> 0 | AG12: 0
A13: 8 | F13: 1 | AB13: 0 | AE13: =AC13*F13*'1. Inputblad Hoofdaannemer'!$G$13 -> 0 | AF13: =AD13*F13*'1. Inputblad Hoofdaannemer'!$G$14 -> 0 | AG13: 0
A14: 9 | F14: 1 | AB14: 0 | AE14: =AC14*F14*'1. Inputblad Hoofdaannemer'!$G$13 -> 0 | AF14: =AD14*F14*'1. Inputblad Hoofdaannemer'!$G$14 -> 0 | AG14: 0
A15: 10 | F15: 1 | AB15: 0 | AE15: =AC15*F15*'1. Inputblad Hoofdaannemer'!$G$13 -> 0 | AF15: =AD15*F15*'1. Inputblad Hoofdaannemer'!$G$14 -> 0 | AG15: 0
A16: 11 | F16: 1 | AB16: 0 | AE16: =AC16*F16*'1. Inputblad Hoofdaannemer'!$G$13 -> 0 | AF16: =AD16*F16*'1. Inputblad Hoofdaannemer'!$G$14 -> 0 | AG16: 0
A17: 12 | F17: 1 | AB17: 0 | AE17: =AC17*F17*'1. Inputblad Hoofdaannemer'!$G$13 -> 0 | AF17: =AD17*F17*'1. Inputblad Hoofdaannemer'!$G$14 -> 0 | AG17: 0
A18: 13 | F18: 1 | AB18: 0 | AE18: =AC18*F18*'1. Inputblad Hoofdaannemer'!$G$13 -> 0 | AF18: =AD18*F18*'1. Inputblad Hoofdaannemer'!$G$14 -> 0 | AG18: 0
A19: 14 | F19: 1 | AB19: 0 | AE19: =AC19*F19*'1. Inputblad Hoofdaannemer'!$G$13 -> 0 | AF19: =AD19*F19*'1. Inputblad Hoofdaannemer'!$G$14 -> 0 | AG19: 0
A20: 15 | F20: 1 | AB20: 0 | AE20: =AC20*F20*'1. Inputblad Hoofdaannemer'!$G$13 -> 0 | AF20: =AD20*F20*'1. Inputblad Hoofdaannemer'!$G$14 -> 0 | AG20: 0
A21: 16 | F21: 1 | AB21: 0 | AE21: =AC21*F21*'1. Inputblad Hoofdaannemer'!$G$13 -> 0 | AF21: =AD21*F21*'1. Inputblad Hoofdaannemer'!$G$14 -> 0 | AG21: 0
A22: 17 | F22: 1 | AB22: 0 | AE22: =AC22*F22*'1. Inputblad Hoofdaannemer'!$G$13 -> 0 | AF22: =AD22*F22*'1. Inputblad Hoofdaannemer'!$G$14 -> 0 | AG22: 0
A23: 18 | F23: 1 | AB23: 0 | AE23: =AC23*F23*'1. Inputblad Hoofdaannemer'!$G$13 -> 0 | AF23: =AD23*F23*'1. Inputblad Hoofdaannemer'!$G$14 -> 0 | AG23: 0
A24: 19 | F24: 1 | AB24: 0 | AE24: =AC24*F24*'1. Inputblad Hoofdaannemer'!$G$13 -> 0 | AF24: =AD24*F24*'1. Inputblad Hoofdaannemer'!$G$14 -> 0 | AG24: 0
A25: 20 | F25: 1 | AB25: 0 | AE25: =AC25*F25*'1. Inputblad Hoofdaannemer'!$G$13 -> 0 | AF25: =AD25*F25*'1. Inputblad Hoofdaannemer'!$G$14 -> 0 | AG25: 0
A26: 21 | F26: 1 | AB26: 0 | AE26: =AC26*F26*'1. Inputblad Hoofdaannemer'!$G$13 -> 0 | AF26: =AD26*F26*'1. Inputblad Hoofdaannemer'!$G$14 -> 0 | AG26: 0
A27: 22 | F27: 1 | AB27: 0 | AE27: =AC27*F27*'1. Inputblad Hoofdaannemer'!$G$13 -> 0 | AF27: =AD27*F27*'1. Inputblad Hoofdaannemer'!$G$14 -> 0 | AG27: 0
A28: 23 | F28: 1 | AB28: 0 | AE28: =AC28*F28*'1. Inputblad Hoofdaannemer'!$G$13 -> 0 | AF28: =AD28*F28*'1. Inputblad Hoofdaannemer'!$G$14 -> 0 | AG28: 0
A29: 24 | F29: 1 | AB29: =SUM(Y29:AA29) -> 0 | AE29: =AC29*F29*'1. Inputblad Hoofdaannemer'!$G$13 -> 0 | AF29: =AD29*F29*'1. Inputblad Hoofdaannemer'!$G$14 -> 0 | AG29: 0
A30: 25 | F30: 1 | AB30: 0 | AE30: =AC30*F30*'1. Inputblad Hoofdaannemer'!$G$13 -> 0 | AF30: =AD30*F30*'1. Inputblad Hoofdaannemer'!$G$14 -> 0 | AG30: 0
A31: 26 | F31: 1 | AB31: 0 | AE31: =AC31*F31*'1. Inputblad Hoofdaannemer'!$G$13 -> 0 | AF31: =AD31*F31*'1. Inputblad Hoofdaannemer'!$G$14 -> 0 | AG31: 0
A32: 27 | F32: 1 | AB32: =SUM(Y32:AA32) -> 0 | AE32: =AC32*F32*'1. Inputblad Hoofdaannemer'!$G$13 -> 0 | AF32: =AD32*F32*'1. Inputblad Hoofdaannemer'!$G$14 -> 0 | AG32: 0
A33: 28 | F33: 1 | AB33: 0 | AE33: =AC33*F33*'1. Inputblad Hoofdaannemer'!$G$13 -> 0 | AF33: =AD33*F33*'1. Inputblad Hoofdaannemer'!$G$14 -> 0 | AG33: 0
A34: 29 | F34: 1 | AB34: 0 | AE34: =AC34*F34*'1. Inputblad Hoofdaannemer'!$G$13 -> 0 | AF34: =AD34*F34*'1. Inputblad Hoofdaannemer'!$G$14 -> 0 | AG34: 0
A35: 30 | F35: 1 | AB35: 0 | AE35: =AC35*F35*'1. Inputblad Hoofdaannemer'!$G$13 -> 0 | AF35: =AD35*F35*'1. Inputblad Hoofdaannemer'!$G$14 -> 0 | AG35: 0
A36: TOTAAL | G36: =SUM(G6:G35) -> 0 | H36: 0 | I36: 0 | J36: 0 | K36: 0 | L36: 0 | M36: 0 | N36: 0 | O36: 0 | P36: 0 | Q36: 0 | R36: 0 | S36: 0 | T36: 0 | U36: 0 | V36: 0 | W36: 0 | X36: 0 | Y36: =SUM(Y6:Y35) -> 0 | Z36: 0 | AA36: 0 | AB36: =SUMPRODUCT($F6:$F35,AB6:AB35) -> 0 | AC36: =SUMPRODUCT($F6:$F35,AC6:AC35) -> 0 | AD36: =SUMPRODUCT($F6:$F35,AD6:AD35) -> 0 | AE36: 0 | AF36: 0 | AG36: 0
A38: ="Halfjaarrapportage Collectieve inwonersondersteuning "&'1. Inputblad Hoofdaannemer'!C52&" "&'1. Inputblad Hoofdaannemer'!C53 -> Halfjaarrapportage Collectieve inwonersondersteuning
G40: =G3 -> Financiën | H40: =H3 -> Werk en opleiding | I40: Tijdbesteding | J40: Huisvesting | K40: Huiselijke relaties | L40: Geestelijke gezondheid | M40: Lichamelijke gezondheid | N40: Middelengebruik | O40: Basale Activiteiten van het Dagelijks Leven | P40: Instrumentele Activiteiten van het Dagelijks Leven | Q40: Sociaal netwerk | R40: Maatschappelijke participatie | S40: Justitie | T40: (Ouderschap) Lichamelijke verzorging | U40: (Ouderschap) Sociale- emotionele ondersteuning | V40: (Ouderschap) Scholing | W40: (Ouderschap) Opvang | X40: ANDERS | Y40: AANTAL DEELNEMERS NAAR LEEFTIJD | AC40: BESTEDE UREN* | AE40: PRODUCTIE (€)
Y41: REALISTATIE 6/2021
B42: NAAM BIJEENKOMST | C42: TYPE | D42: DATUM | G42: BELANGRIJKSTE ONDERWERP BIJEENKOMST (ZRM LEEFGEBIEDEN) | Y42: 0-23 | Z42: 24-75 | AA42: 75+ | AB42: TOTAAL | AC42: HBO | AD42: MBO | AE42: € HBO | AF42: € MBO | AG42: € Totaal
A43: 1 | F43: =IF(E43="",1,E43) -> 1 | AB43: =SUM(Y43:AA43) -> 0 | AE43: =AC43*'1. Inputblad Hoofdaannemer'!$G$13 -> 0 | AF43: =AD43*'1. Inputblad Hoofdaannemer'!G$14 -> 0 | AG43: =AE43+AF43 -> 0
A44: 2 | F44: =IF(E44="",1,E44) -> 1 | AB44: =SUM(Y44:AA44) -> 0 | AE44: =AC44*'1. Inputblad Hoofdaannemer'!$G$13 -> 0 | AF44: =AD44*'1. Inputblad Hoofdaannemer'!G$14 -> 0 | AG44: =AE44+AF44 -> 0
A45: 3 | F45: 1 | AB45: 0 | AE45: =AC45*'1. Inputblad Hoofdaannemer'!$G$13 -> 0 | AF45: =AD45*'1. Inputblad Hoofdaannemer'!G$14 -> 0 | AG45: 0
A46: 4 | F46: 1 | AB46: 0 | AE46: =AC46*'1. Inputblad Hoofdaannemer'!$G$13 -> 0 | AF46: =AD46*'1. Inputblad Hoofdaannemer'!G$14 -> 0 | AG46: 0
A47: 5 | F47: 1 | AB47: 0 | AE47: =AC47*'1. Inputblad Hoofdaannemer'!$G$13 -> 0 | AF47: =AD47*'1. Inputblad Hoofdaannemer'!G$14 -> 0 | AG47: 0
A48: 6 | F48: 1 | AB48: 0 | AE48: =AC48*'1. Inputblad Hoofdaannemer'!$G$13 -> 0 | AF48: =AD48*'1. Inputblad Hoofdaannemer'!G$14 -> 0 | AG48: 0
A49: 7 | F49: 1 | AB49: 0 | AE49: =AC49*'1. Inputblad Hoofdaannemer'!$G$13 -> 0 | AF49: =AD49*'1. Inputblad Hoofdaannemer'!G$14 -> 0 | AG49: 0
A50: 8 | F50: 1 | AB50: 0 | AE50: =AC50*'1. Inputblad Hoofdaannemer'!$G$13 -> 0 | AF50: =AD50*'1. Inputblad Hoofdaannemer'!G$14 -> 0 | AG50: 0
A51: 9 | F51: 1 | AB51: 0 | AE51: =AC51*'1. Inputblad Hoofdaannemer'!$G$13 -> 0 | AF51: =AD51*'1. Inputblad Hoofdaannemer'!G$14 -> 0 | AG51: 0
A52: 10 | F52: 1 | AB52: 0 | AE52: =AC52*'1. Inputblad Hoofdaannemer'!$G$13 -> 0 | AF52: =AD52*'1. Inputblad Hoofdaannemer'!G$14 -> 0 | AG52: 0
A53: 11 | F53: 1 | AB53: 0 | AE53: =AC53*'1. Inputblad Hoofdaannemer'!$G$13 -> 0 | AF53: =AD53*'1. Inputblad Hoofdaannemer'!G$14 -> 0 | AG53: 0
A54: 12 | F54: 1 | AB54: 0 | AE54: =AC54*'1. Inputblad Hoofdaannemer'!$G$13 -> 0 | AF54: =AD54*'1. Inputblad Hoofdaannemer'!G$14 -> 0 | AG54: 0
A55: 13 | F55: 1 | AB55: 0 | AE55: =AC55*'1. Inputblad Hoofdaannemer'!$G$13 -> 0 | AF55: =AD55*'1. Inputblad Hoofdaannemer'!G$14 -> 0 | AG55: 0
A56: 14 | F56: 1 | AB56: 0 | AE56: =AC56*'1. Inputblad Hoofdaannemer'!$G$13 -> 0 | AF56: =AD56*'1. Inputblad Hoofdaannemer'!G$14 -> 0 | AG56: 0
A57: 15 | F57: 1 | AB57: 0 | AE57: =AC57*'1. Inputblad Hoofdaannemer'!$G$13 -> 0 | AF57: =AD57*'1. Inputblad Hoofdaannemer'!G$14 -> 0 | AG57: 0
A58: 16 | F58: 1 | AB58: 0 | AE58: =AC58*'1. Inputblad Hoofdaannemer'!$G$13 -> 0 | AF58: =AD58*'1. Inputblad Hoofdaannemer'!G$14 -> 0 | AG58: 0
A59: 17 | F59: 1 | AB59: 0 | AE59: =AC59*'1. Inputblad Hoofdaannemer'!$G$13 -> 0 | AF59: =AD59*'1. Inputblad Hoofdaannemer'!G$14 -> 0 | AG59: 0
A60: 18 | F60: 1 | AB60: 0 | AE60: =AC60*'1. Inputblad Hoofdaannemer'!$G$13 -> 0 | AF60: =AD60*'1. Inputblad Hoofdaannemer'!G$14 -> 0 | AG60: 0
A61: 19 | F61: 1 | AB61: 0 | AE61: =AC61*'1. Inputblad Hoofdaannemer'!$G$13 -> 0 | AF61: =AD61*'1. Inputblad Hoofdaannemer'!G$14 -> 0 | AG61: 0
A62: 20 | F62: 1 | AB62: 0 | AE62: =AC62*'1. Inputblad Hoofdaannemer'!$G$13 -> 0 | AF62: =AD62*'1. Inputblad Hoofdaannemer'!G$14 -> 0 | AG62: 0
A63: 21 | F63: 1 | AB63: 0 | AE63: =AC63*'1. Inputblad Hoofdaannemer'!$G$13 -> 0 | AF63: =AD63*'1. Inputblad Hoofdaannemer'!G$14 -> 0 | AG63: 0
A64: 22 | F64: 1 | AB64: 0 | AE64: =AC64*'1. Inputblad Hoofdaannemer'!$G$13 -> 0 | AF64: =AD64*'1. Inputblad Hoofdaannemer'!G$14 -> 0 | AG64: 0
A65: 23 | F65: 1 | AB65: 0 | AE65: =AC65*'1. Inputblad Hoofdaannemer'!$G$13 -> 0 | AF65: =AD65*'1. Inputblad Hoofdaannemer'!G$14 -> 0 | AG65: 0
A66: 24 | F66: 1 | AB66: 0 | AE66: =AC66*'1. Inputblad Hoofdaannemer'!$G$13 -> 0 | AF66: =AD66*'1. Inputblad Hoofdaannemer'!G$14 -> 0 | AG66: 0
A67: 25 | F67: 1 | AB67: 0 | AE67: =AC67*'1. Inputblad Hoofdaannemer'!$G$13 -> 0 | AF67: =AD67*'1. Inputblad Hoofdaannemer'!G$14 -> 0 | AG67: 0
A68: 26 | F68: 1 | AB68: 0 | AE68: =AC68*'1. Inputblad Hoofdaannemer'!$G$13 -> 0 | AF68: =AD68*'1. Inputblad Hoofdaannemer'!G$14 -> 0 | AG68: 0
A69: 27 | F69: 1 | AB69: 0 | AE69: =AC69*'1. Inputblad Hoofdaannemer'!$G$13 -> 0 | AF69: =AD69*'1. Inputblad Hoofdaannemer'!G$14 -> 0 | AG69: 0
A70: 28 | F70: 1 | AB70: 0 | AE70: =AC70*'1. Inputblad Hoofdaannemer'!$G$13 -> 0 | AF70: =AD70*'1. Inputblad Hoofdaannemer'!G$14 -> 0 | AG70: 0
A71: 29 | F71: 1 | AB71: 0 | AE71: =AC71*'1. Inputblad Hoofdaannemer'!$G$13 -> 0 | AF71: =AD71*'1. Inputblad Hoofdaannemer'!G$14 -> 0 | AG71: 0
A72: 30 | F72: 1 | AB72: 0 | AE72: =AC72*'1. Inputblad Hoofdaannemer'!$G$13 -> 0 | AF72: =AD72*'1. Inputblad Hoofdaannemer'!G$14 -> 0 | AG72: 0
A73: TOTAAL | G73: =SUM(G43:G72) -> 0 | H73: 0 | I73: 0 | J73: 0 | K73: 0 | L73: 0 | M73: 0 | N73: 0 | O73: 0 | P73: 0 | Q73: 0 | R73: 0 | S73: 0 | T73: 0 | U73: 0 | V73: 0 | W73: 0 | X73: 0 | Y73: 0 | Z73: 0 | AA73: 0 | AB73: =SUMPRODUCT($F43:$F72,AB43:AB72) -> 0 | AC73: =SUMPRODUCT($F43:$F72,AC43:AC72) -> 0 | AD73: =SUMPRODUCT($F43:$F72,AD43:AD72) -> 0 | AE73: =SUM(AE43:AE72) -> 0 | AF73: 0 | AG73: 0
A75: ="Jaarjaarrapportage Collectieve inwonersondersteuning "&'1. Inputblad Hoofdaannemer'!C93&" "&'1. Inputblad Hoofdaannemer'!C94 -> Jaarjaarrapportage Collectieve inwonersondersteuning
G77: =G3 -> Financiën | H77: =H3 -> Werk en opleiding | I77: Tijdbesteding | J77: Huisvesting | K77: Huiselijke relaties | L77: Geestelijke gezondheid | M77: Lichamelijke gezondheid | N77: Middelengebruik | O77: Basale Activiteiten van het Dagelijks Leven | P77: Instrumentele Activiteiten van het Dagelijks Leven | Q77: Sociaal netwerk | R77: Maatschappelijke participatie | S77: Justitie | T77: (Ouderschap) Lichamelijke verzorging | U77: (Ouderschap) Sociale- emotionele ondersteuning | V77: (Ouderschap) Scholing | W77: (Ouderschap) Opvang | X77: ANDERS | Y77: AANTAL DEELNEMERS NAAR LEEFTIJD | AC77: BESTEDE UREN* | AE77: PRODUCTIE (€)
Y78: REALISATIE 2021
B79: NAAM BIJEENKOMST | C79: TYPE | D79: DATUM | G79: BELANGRIJKSTE ONDERWERP BIJEENKOMST (ZRM LEEFGEBIEDEN) | Y79: 0-23 | Z79: 24-75 | AA79: 75+ | AB79: TOTAAL | AC79: HBO | AD79: MBO | AE79: € HBO | AF79: € MBO | AG79: € Totaal
A80: 1 | F80: =IF(E80="",1,E80) -> 1 | AB80: =SUM(Y80:AA80) -> 0 | AE80: =AC80*'1. Inputblad Hoofdaannemer'!$G$13 -> 0 | AF80: =AD80*'1. Inputblad Hoofdaannemer'!G$14 -> 0 | AG80: =AE80+AF80 -> 0
A81: 2 | F81: =IF(E81="",1,E81) -> 1 | AB81: =SUM(Y81:AA81) -> 0 | AE81: =AC81*'1. Inputblad Hoofdaannemer'!$G$13 -> 0 | AF81: =AD81*'1. Inputblad Hoofdaannemer'!G$14 -> 0 | AG81: =AE81+AF81 -> 0
A82: 3 | F82: 1 | AB82: 0 | AE82: =AC82*'1. Inputblad Hoofdaannemer'!$G$13 -> 0 | AF82: =AD82*'1. Inputblad Hoofdaannemer'!G$14 -> 0 | AG82: 0
A83: 4 | F83: 1 | AB83: 0 | AE83: =AC83*'1. Inputblad Hoofdaannemer'!$G$13 -> 0 | AF83: =AD83*'1. Inputblad Hoofdaannemer'!G$14 -> 0 | AG83: 0
A84: 5 | F84: 1 | AB84: 0 | AE84: =AC84*'1. Inputblad Hoofdaannemer'!$G$13 -> 0 | AF84: =AD84*'1. Inputblad Hoofdaannemer'!G$14 -> 0 | AG84: 0
A85: 6 | F85: 1 | AB85: 0 | AE85: =AC85*'1. Inputblad Hoofdaannemer'!$G$13 -> 0 | AF85: =AD85*'1. Inputblad Hoofdaannemer'!G$14 -> 0 | AG85: 0
A86: 7 | F86: 1 | AB86: 0 | AE86: =AC86*'1. Inputblad Hoofdaannemer'!$G$13 -> 0 | AF86: =AD86*'1. Inputblad Hoofdaannemer'!G$14 -> 0 | AG86: 0
A87: 8 | F87: 1 | AB87: 0 | AE87: =AC87*'1. Inputblad Hoofdaannemer'!$G$13 -> 0 | AF87: =AD87*'1. Inputblad Hoofdaannemer'!G$14 -> 0 | AG87: 0
A88: 9 | F88: 1 | AB88: 0 | AE88: =AC88*'1. Inputblad Hoofdaannemer'!$G$13 -> 0 | AF88: =AD88*'1. Inputblad Hoofdaannemer'!G$14 -> 0 | AG88: 0
A89: 10 | F89: 1 | AB89: 0 | AE89: =AC89*'1. Inputblad Hoofdaannemer'!$G$13 -> 0 | AF89: =AD89*'1. Inputblad Hoofdaannemer'!G$14 -> 0 | AG89: 0
A90: 11 | F90: 1 | AB90: 0 | AE90: =AC90*'1. Inputblad Hoofdaannemer'!$G$13 -> 0 | AF90: =AD90*'1. Inputblad Hoofdaannemer'!G$14 -> 0 | AG90: 0
A91: 12 | F91: 1 | AB91: 0 | AE91: =AC91*'1. Inputblad Hoofdaannemer'!$G$13 -> 0 | AF91: =AD91*'1. Inputblad Hoofdaannemer'!G$14 -> 0 | AG91: 0
A92: 13 | F92: 1 | AB92: 0 | AE92: =AC92*'1. Inputblad Hoofdaannemer'!$G$13 -> 0 | AF92: =AD92*'1. Inputblad Hoofdaannemer'!G$14 -> 0 | AG92: 0
A93: 14 | F93: 1 | AB93: 0 | AE93: =AC93*'1. Inputblad Hoofdaannemer'!$G$13 -> 0 | AF93: =AD93*'1. Inputblad Hoofdaannemer'!G$14 -> 0 | AG93: 0
A94: 15 | F94: 1 | AB94: 0 | AE94: =AC94*'1. Inputblad Hoofdaannemer'!$G$13 -> 0 | AF94: =AD94*'1. Inputblad Hoofdaannemer'!G$14 -> 0 | AG94: 0
A95: 16 | F95: 1 | AB95: 0 | AE95: =AC95*'1. Inputblad Hoofdaannemer'!$G$13 -> 0 | AF95: =AD95*'1. Inputblad Hoofdaannemer'!G$14 -> 0 | AG95: 0
A96: 17 | F96: 1 | AB96: 0 | AE96: =AC96*'1. Inputblad Hoofdaannemer'!$G$13 -> 0 | AF96: =AD96*'1. Inputblad Hoofdaannemer'!G$14 -> 0 | AG96: 0
A97: 18 | F97: 1 | AB97: 0 | AE97: =AC97*'1. Inputblad Hoofdaannemer'!$G$13 -> 0 | AF97: =AD97*'1. Inputblad Hoofdaannemer'!G$14 -> 0 | AG97: 0
A98: 19 | F98: 1 | AB98: 0 | AE98: =AC98*'1. Inputblad Hoofdaannemer'!$G$13 -> 0 | AF98: =AD98*'1. Inputblad Hoofdaannemer'!G$14 -> 0 | AG98: 0
A99: 20 | F99: 1 | AB99: 0 | AE99: =AC99*'1. Inputblad Hoofdaannemer'!$G$13 -> 0 | AF99: =AD99*'1. Inputblad Hoofdaannemer'!G$14 -> 0 | AG99: 0
A100: 21 | F100: 1 | AB100: 0 | AE100: =AC100*'1. Inputblad Hoofdaannemer'!$G$13 -> 0 | AF100: =AD100*'1. Inputblad Hoofdaannemer'!G$14 -> 0 | AG100: 0
A101: 22 | F101: 1 | AB101: 0 | AE101: =AC101*'1. Inputblad Hoofdaannemer'!$G$13 -> 0 | AF101: =AD101*'1. Inputblad Hoofdaannemer'!G$14 -> 0 | AG101: 0
A102: 23 | F102: 1 | AB102: 0 | AE102: =AC102*'1. Inputblad Hoofdaannemer'!$G$13 -> 0 | AF102: =AD102*'1. Inputblad Hoofdaannemer'!G$14 -> 0 | AG102: 0
A103: 24 | F103: 1 | AB103: 0 | AE103: =AC103*'1. Inputblad Hoofdaannemer'!$G$13 -> 0 | AF103: =AD103*'1. Inputblad Hoofdaannemer'!G$14 -> 0 | AG103: 0
A104: 25 | F104: 1 | AB104: 0 | AE104: =AC104*'1. Inputblad Hoofdaannemer'!$G$13 -> 0 | AF104: =AD104*'1. Inputblad Hoofdaannemer'!G$14 -> 0 | AG104: 0
A105: 26 | F105: 1 | AB105: 0 | AE105: =AC105*'1. Inputblad Hoofdaannemer'!$G$13 -> 0 | AF105: =AD105*'1. Inputblad Hoofdaannemer'!G$14 -> 0 | AG105: 0
A106: 27 | F106: 1 | AB106: 0 | AE106: =AC106*'1. Inputblad Hoofdaannemer'!$G$13 -> 0 | AF106: =AD106*'1. Inputblad Hoofdaannemer'!G$14 -> 0 | AG106: 0
A107: 28 | F107: 1 | AB107: 0 | AE107: =AC107*'1. Inputblad Hoofdaannemer'!$G$13 -> 0 | AF107: =AD107*'1. Inputblad Hoofdaannemer'!G$14 -> 0 | AG107: 0
A108: 29 | F108: 1 | AB108: 0 | AE108: =AC108*'1. Inputblad Hoofdaannemer'!$G$13 -> 0 | AF108: =AD108*'1. Inputblad Hoofdaannemer'!G$14 -> 0 | AG108: 0
A109: 30 | F109: 1 | AB109: 0 | AE109: =AC109*'1. Inputblad Hoofdaannemer'!$G$13 -> 0 | AF109: =AD109*'1. Inputblad Hoofdaannemer'!G$14 -> 0 | AG109: 0
A110: TOTAAL | G110: =SUM(G80:G109) -> 0 | H110: 0 | I110: 0 | J110: 0 | K110: 0 | L110: 0 | M110: 0 | N110: 0 | O110: 0 | P110: 0 | Q110: 0 | R110: 0 | S110: 0 | T110: 0 | U110: 0 | V110: 0 | W110: 0 | X110: 0 | Y110: 0 | Z110: 0 | AA110: 0 | AB110: =SUMPRODUCT($F80:$F109,AB80:AB109) -> 0 | AC110: =SUMPRODUCT($F80:$F109,AC80:AC109) -> 0 | AD110: =SUMPRODUCT($F80:$F109,AD80:AD109) -> 0 | AE110: =SUM(AE80:AE109) -> 0 | AF110: 0 | AG110: 0

Sheet 6. Leefbaar & samenredzaam
A1: ="Inwonersondersteuning: Leefbaarheid & samenredzaamheid "&'1. Inputblad Hoofdaannemer'!C4&" "&'1. Inputblad Hoofdaannemer'!C5 -> Inwonersondersteuning: Leefbaarheid & samenredzaamheid
I2: grijs en leeg = invullen
I3: wit en leeg = (nog) niet invullen
I4: geel = formuleberekening
E5: * Cliëntgebonden uren, dus zonder vakantie, ziekte, niet-cliëntgebonden, etc.
E6: Indien niet genoeg regels voor alle activiteiten neem contact op met Mariëlle Buijse
B7: RAMING 2021
B8: ACTIVITEIT | C8: AANTAL KEER PER JAAR | D8: UREN HBO VOOR HELE JAAR* | E8: UREN MBO VOOR HELE JAAR* | F8: GEBIED | G8: DOELGROEP | H8: DOEL | I8: AANTAL BEREIKTE DOELGROEP-LEDEN | J8: TIJDVAK (KALENDER-MAANDEN)
A9: 1
A10: 2
A11: 3
A12: 4
A13: 5
A14: 6
A15: 7
A16: 8
A17: 9
A18: 10
A19: 11
A20: 12
A21: 13
A22: 14
A23: 15
A24: 16
A25: 17
A26: 18
A27: 19
A28: 20
A29: 21
A30: 22
A31: 23
A32: 24
A33: 25
D34: =SUM(D9:D33) -> 0 | E34: =SUM(E9:E33) -> 0 | I34: =SUM(I9:I33) -> 0
A36: ="Halfjaarrapportage Leefbaarheid & samenredzaamheid "&'1. Inputblad Hoofdaannemer'!C47&" "&'1. Inputblad Hoofdaannemer'!C48 -> Halfjaarrapportage Leefbaarheid & samenredzaamheid
B39: REALISATIE 6/2021
B40: ACTIVITEIT | C40: AANTAL KEER IN HALF JAAR | D40: UREN HBO IN HALVE JAAR* | E40: UREN MBO IN HALVE JAAR* | F40: GEBIED | G40: DOELGROEP | H40: DOEL | I40: AANTAL BEREIKTE DOELGROEP-LEDEN | J40: TIJDVAK (KALENDERMAANDEN)
A41: 1
A42: 2
A43: 3
A44: 4
A45: 5
A46: 6
A47: 7
A48: 8
A49: 9
A50: 10
A51: 11
A52: 12
A53: 13
A54: 14
A55: 15
A56: 16
A57: 17
A58: 18
A59: 19
A60: 20
A61: 21
A62: 22
A63: 23
A64: 24
A65: 25
D66: =SUM(D41:D65) -> 0 | E66: =SUM(E41:E65) -> 0 | I66: =SUM(I41:I65) -> 0
A68: ="Jaarrapportage Leefbaarheid & samenredzaamheid "&'1. Inputblad Hoofdaannemer'!C85&" "&'1. Inputblad Hoofdaannemer'!C86 -> Jaarrapportage Leefbaarheid & samenredzaamheid
B71: REALISATIE 2021
B72: ACTIVITEIT | C72: AANTAL KEER PER JAAR | D72: UREN HBO IN HELE JAAR* | E72: UREN MBO IN HELE JAAR* | F72: GEBIED | G72: DOELGROEP | H72: DOEL | I72: AANTAL BEREIKTE DOELGROEP-LEDEN | J72: TIJDVAK (KALENDERMAANDEN)
A73: 1
A74: 2
A75: 3
A76: 4
A77: 5
A78: 6
A79: 7
A80: 8
A81: 9
A82: 10
A83: 11
A84: 12
A85: 13
A86: 14
A87: 15
A88: 16
A89: 17
A90: 18
A91: 19
A92: 20
A93: 21
A94: 22
A95: 23
A96: 24
A97: 25
D98: =SUM(D73:D97) -> 0 | E98: =SUM(E73:E97) -> 0 | I98: =SUM(I73:I97) -> 0

Sheet 7. Overzichtsblad
A1: ="Aanvraag Inwonersondersteuning hoofdaannemer "&'1. Inputblad Hoofdaannemer'!C5&" "&'1. Inputblad Hoofdaannemer'!C4 -> Aanvraag Inwonersondersteuning hoofdaannemer | H1: ="Halfjaarrapportage hoofdaannemer "&'1. Inputblad Hoofdaannemer'!C5&" "&'1. Inputblad Hoofdaannemer'!C4 -> Halfjaarrapportage hoofdaannemer | O1: ="Jaarrapportage hoofdaannemer "&'1. Inputblad Hoofdaannemer'!C5&" "&'1. Inputblad Hoofdaannemer'!C4 -> Jaarrapportage hoofdaannemer
E2: alleen grijze velden vullen! | L2: alleen grijze velden vullen! | R2: alleen grijze velden vullen!
A5: Te beschikken op functies 2021 | B5: Subsidie 2021 | H5: Functie | I5: Realisatie 6/2021 | O5: Functie | P5: Realisatie 2021
A6: ='2. Huisvesting en overig'!A12 -> Coördinatie | B6: ='2. Huisvesting en overig'!H12 -> 50812.72679 | H6: ='2. Huisvesting en overig'!A12 -> Coördinatie | I6: =0.5*B6 -> 25406.3634 | O6: ='2. Huisvesting en overig'!A12 -> Coördinatie | P6: =B6 -> 50812.72679
A7: ='2. Huisvesting en overig'!A13 -> Werkbudget locatie | B7: ='2. Huisvesting en overig'!H13 -> 25000 | H7: ='2. Huisvesting en overig'!A13 -> Werkbudget locatie | I7: =0.5*B7 -> 12500 | O7: ='2. Huisvesting en overig'!A13 -> Werkbudget locatie | P7: =B7 -> 25000
A8: Huisvesting | B8: ='2. Huisvesting en overig'!B5 -> 27000 | H8: Huisvesting | I8: =0.5*B8 -> 13500 | O8: Huisvesting | P8: 27000
A9: Totaal | B9: =SUM(B6:B8) -> 102812.7268 | H9: Totaal | I9: =SUM(I6:I8) -> 51406.3634 | O9: Totaal | P9: =SUM(P6:P8) -> 102812.7268
A11: ="RAMING "&'1. Inputblad Hoofdaannemer'!C4 -> RAMING | H11: ="REALISATIE EERSTE HALF JAAR "&'1. Inputblad Hoofdaannemer'!C4 -> REALISATIE EERSTE HALF JAAR | O11: ="REALISATIE "&'1. Inputblad Hoofdaannemer'!C4 -> REALISATIE
A12: Te beschikken op producten 2021 | B12: Totaal (€) | C12: Uren hbo | D12: Uren mbo | E12: hbo (€) | F12: mbo (€) | H12: Te beschikken op producten 2021 | I12: Totaal (€) | J12: Uren hbo | K12: Uren mbo | L12: hbo (€) | M12: mbo (€) | O12: Te beschikken op producten 2021 | P12: Totaal (€) | Q12: Uren hbo | R12: Uren mbo | S12: hbo (€) | T12: mbo (€)
A13: Onafhankelijke cliëntondersteuning | B13: =E13+F13 -> 0 | C13: ='3. Individuele producten'!B10 -> 0 | D13: ='3. Individuele producten'!E10 -> 0 | E13: =C13*'1. Inputblad Hoofdaannemer'!$G$13 -> 0 | F13: =D13*'1. Inputblad Hoofdaannemer'!$G$14 -> 0 | H13: Onafhankelijke cliëntondersteuning | I13: =L13+M13 -> 0 | J13: ='3. Individuele producten'!C10 -> 0 | K13: ='3. Individuele producten'!F10 -> 0 | L13: =J13*'1. Inputblad Hoofdaannemer'!$G$13 -> 0 | M13: =K13*'1. Inputblad Hoofdaannemer'!$G$14 -> 0 | O13: Onafhankelijke cliëntondersteuning | P13: =S13+T13 -> 0 | Q13: ='3. Individuele producten'!D10 -> 0 | R13: ='3. Individuele producten'!G10 -> 0 | S13: =Q13*'1. Inputblad Hoofdaannemer'!$G$13 -> 0 | T13: =R13*'1. Inputblad Hoofdaannemer'!$G$14 -> 0
A14: Individuele ondersteuning | B14: =E14+F14 -> 0 | C14: ='3. Individuele producten'!B11 -> 0 | D14: ='3. Individuele producten'!E11 -> 0 | E14: =C14*'1. Inputblad Hoofdaannemer'!$G$13 -> 0 | F14: =D14*'1. Inputblad Hoofdaannemer'!$G$14 -> 0 | H14: Individuele ondersteuning | I14: =L14+M14 -> 0 | J14: ='3. Individuele producten'!C11 -> 0 | K14: ='3. Individuele producten'!F11 -> 0 | L14: =J14*'1. Inputblad Hoofdaannemer'!$G$13 -> 0 | M14: =K14*'1. Inputblad Hoofdaannemer'!$G$14 -> 0 | O14: Individuele ondersteuning | P14: =S14+T14 -> 0 | Q14: ='3. Individuele producten'!D11 -> 0 | R14: ='3. Individuele producten'!G11 -> 0 | S14: =Q14*'1. Inputblad Hoofdaannemer'!$G$13 -> 0 | T14: =R14*'1. Inputblad Hoofdaannemer'!$G$14 -> 0
A15: Waakvlamcontact | B15: 0 | C15: ='3. Individuele producten'!B12 -> 0 | D15: ='3. Individuele producten'!E12 -> 0 | E15: =C15*'1. Inputblad Hoofdaannemer'!$G$13 -> 0 | F15: =D15*'1. Inputblad Hoofdaannemer'!$G$14 -> 0 | H15: Waakvlamcontact | I15: 0 | J15: ='3. Individuele producten'!C12 -> 0 | K15: ='3. Individuele producten'!F12 -> 0 | L15: =J15*'1. Inputblad Hoofdaannemer'!$G$13 -> 0 | M15: =K15*'1. Inputblad Hoofdaannemer'!$G$14 -> 0 | O15: Waakvlamcontact | P15: 0 | Q15: ='3. Individuele producten'!D12 -> 0 | R15: ='3. Individuele producten'!G12 -> 0 | S15: =Q15*'1. Inputblad Hoofdaannemer'!$G$13 -> 0 | T15: =R15*'1. Inputblad Hoofdaannemer'!$G$14 -> 0
A16: Informatie en advies | B16: 0 | C16: ='3. Individuele producten'!B13 -> 0 | D16: ='3. Individuele producten'!E13 -> 0 | E16: =C16*'1. Inputblad Hoofdaannemer'!$G$13 -> 0 | F16: =D16*'1. Inputblad Hoofdaannemer'!$G$14 -> 0 | H16: Informatie en advies | I16: 0 | J16: ='3. Individuele producten'!C13 -> 0 | K16: ='3. Individuele producten'!F13 -> 0 | L16: =J16*'1. Inputblad Hoofdaannemer'!$G$13 -> 0 | M16: =K16*'1. Inputblad Hoofdaannemer'!$G$14 -> 0 | O16: Informatie en advies | P16: 0 | Q16: ='3. Individuele producten'!D13 -> 0 | R16: ='3. Individuele producten'!G13 -> 0 | S16: =Q16*'1. Inputblad Hoofdaannemer'!$G$13 -> 0 | T16: =R16*'1. Inputblad Hoofdaannemer'!$G$14 -> 0
A17: Collectieve inwonersondersteuning | B17: 0 | C17: ='5. Collectieve ondersteuning'!AC36 -> 0 | D17: ='5. Collectieve ondersteuning'!AD36 -> 0 | E17: =C17*'1. Inputblad Hoofdaannemer'!$G$13 -> 0 | F17: =D17*'1. Inputblad Hoofdaannemer'!$G$14 -> 0 | H17: Collectieve inwonersondersteuning | I17: 0 | J17: ='5. Collectieve ondersteuning'!AC73 -> 0 | K17: ='5. Collectieve ondersteuning'!AD73 -> 0 | L17: =J17*'1. Inputblad Hoofdaannemer'!$G$13 -> 0 | M17: =K17*'1. Inputblad Hoofdaannemer'!$G$14 -> 0 | O17: Collectieve inwondersondersteuning | P17: 0 | Q17: ='5. Collectieve ondersteuning'!AC110 -> 0 | R17: ='5. Collectieve ondersteuning'!AD110 -> 0 | S17: =Q17*'1. Inputblad Hoofdaannemer'!$G$13 -> 0 | T17: =R17*'1. Inputblad Hoofdaannemer'!$G$14 -> 0
A18: Leefbaarheid & samenredzaamheid | B18: 0 | C18: ='6. Leefbaar & samenredzaam'!D34 -> 0 | D18: ='6. Leefbaar & samenredzaam'!E34 -> 0 | E18: =C18*'1. Inputblad Hoofdaannemer'!$G$13 -> 0 | F18: =D18*'1. Inputblad Hoofdaannemer'!$G$14 -> 0 | H18: Leefbaarheid & samenredzaamheid | I18: 0 | J18: ='6. Leefbaar & samenredzaam'!D34 -> 0 | K18: ='6. Leefbaar & samenredzaam'!E34 -> 0 | L18: =J18*'1. Inputblad Hoofdaannemer'!$G$13 -> 0 | M18: =K18*'1. Inputblad Hoofdaannemer'!$G$14 -> 0 | O18: Leefbaarheid & samenredzaamheid | P18: 0 | Q18: ='6. Leefbaar & samenredzaam'!D98 -> 0 | R18: ='6. Leefbaar & samenredzaam'!E98 -> 0 | S18: =Q18*'1. Inputblad Hoofdaannemer'!$G$13 -> 0 | T18: =R18*'1. Inputblad Hoofdaannemer'!$G$14 -> 0
A19: Totaal | B19: =SUM(B13:B18) -> 0 | C19: =SUM(C13:C18) -> 0 | D19: =SUM(D13:D18) -> 0 | E19: 0 | F19: 0 | H19: Totaal | I19: =SUM(I13:I18) -> 0 | J19: =SUM(J13:J18) -> 0 | K19: 0 | L19: 0 | M19: 0 | O19: Totaal | P19: =SUM(I13:I18) -> 0 | Q19: =SUM(J13:J18) -> 0 | R19: =SUM(K13:K18) -> 0 | S19: =SUM(L13:L18) -> 0 | T19: =SUM(M13:M18) -> 0
A21: Totaal te beschikken 2021 | B21: =B9+B19 -> 102812.7268 | H21: Totaal gerealiseerd 6/2021 | I21: =I9+I19 -> 51406.3634 | O21: Totaal gerealiseerd 2021 | P21: =P9+P19 -> 102812.7268
H23: Prognose realisatie heel 2021
I25: REALISATIE 6/2021
H26: Verantwoording per product | I26: # cliënten | J26: Uitstroom | O26: Verantwoording per product | P26: # cliënten | Q26: Uitstroom
H27: =H13 -> Onafhankelijke cliëntondersteuning | I27: ='3. Individuele producten'!C19 -> 0 | J27: ='3. Individuele producten'!D29 -> 0 | O27: =O13 -> Onafhankelijke cliëntondersteuning | P27: ='3. Individuele producten'!D19 -> 0 | Q27: ='3. Individuele producten'!H29 -> 0
H28: Individuele ondersteuning | I28: ='3. Individuele producten'!C20 -> 0 | J28: ='3. Individuele producten'!D30 -> 0 | O28: Individuele ondersteuning | P28: ='3. Individuele producten'!D20 -> 0 | Q28: ='3. Individuele producten'!H30 -> 0
H29: Waakvlamcontact | I29: ='3. Individuele producten'!C21 -> 0 | J29: ='3. Individuele producten'!D31 -> 0 | O29: Waakvlamcontact | P29: ='3. Individuele producten'!D21 -> 0 | Q29: ='3. Individuele producten'!H31 -> 0
H30: Informatie en advies | I30: ='3. Individuele producten'!C22 -> 0 | O30: Informatie en advies | P30: ='3. Individuele producten'!D22 -> 0
H31: Collectieve inwonersondersteuning | I31: ='5. Collectieve ondersteuning'!AB73 -> 0 | O31: Collectieve inwondersondersteuning | P31: ='5. Collectieve ondersteuning'!AB110 -> 0
H32: Leefbaarheid & samenredzaamheid | I32: ='6. Leefbaar & samenredzaam'!I66 -> 0 | O32: Leefbaarheid & samenredzaamheid | P32: ='6. Leefbaar & samenredzaam'!I98 -> 0
H33: Totaal | I33: =SUM(I27:I32) -> 0 | O33: Totaal | P33: =SUM(P27:P32) -> 0
P36: LEEFTIJDSOPBOUW CLIËNTEN
P37: realisatie 2021
O38: Verantwoording per product | P38: 0-23 | Q38: 24-75 | R38: 75+
O39: =O27 -> Onafhankelijke cliëntondersteuning | P39: ='4. Individuele producten (2)'!B37 -> 0 | Q39: ='4. Individuele producten (2)'!D37 -> 0 | R39: ='4. Individuele producten (2)'!F37 -> 0
O40: =O28 -> Individuele ondersteuning | P40: ='4. Individuele producten (2)'!B38 -> 0 | Q40: ='4. Individuele producten (2)'!D38 -> 0 | R40: ='4. Individuele producten (2)'!F38 -> 0
O41: Waakvlamcontact | P41: ='4. Individuele producten (2)'!B39 -> 0 | Q41: ='4. Individuele producten (2)'!D39 -> 0 | R41: ='4. Individuele producten (2)'!F39 -> 0
O42: Informatie en advies | P42: ='4. Individuele producten (2)'!B40 -> 0 | Q42: ='4. Individuele producten (2)'!D40 -> 0 | R42: ='4. Individuele producten (2)'!F40 -> 0
O43: Collectieve inwondersondersteuning | P43: ='5. Collectieve ondersteuning'!Y110 -> 0 | Q43: ='5. Collectieve ondersteuning'!Z110 -> 0 | R43: ='5. Collectieve ondersteuning'!AA110 -> 0
O44: Leefbaarheid & samenredzaamheid
O45: Totaal | P45: =SUM(P39:P44) -> 0 | Q45: =SUM(Q39:Q44) -> 0 | R45: =SUM(R39:R44) -> 0

Sheet 8. Overzichtsblad (2)
A1: ="Verantwoording Inwonersondersteuning "&'1. Inputblad Hoofdaannemer'!C5&" "&'1. Inputblad Hoofdaannemer'!C4 -> Verantwoording Inwonersondersteuning
B5: Financiën | C5: Werk en opleiding | D5: Tijdbesteding | E5: Huisvesting | F5: Huiselijke relaties | G5: Geestelijke gezondheid | H5: Lichamelijke gezondheid | I5: Middelengebruik | J5: Basale Activiteiten van het Dagelijks Leven | K5: Instrumentele Activiteiten van het Dagelijks Leven | L5: Sociaal netwerk | M5: Maatschappelijke participatie | N5: Justitie | O5: (Ouderschap) Lichamelijke verzorging | P5: (Ouderschap) Sociale- emotionele ondersteuning | Q5: (Ouderschap) Scholing | R5: (Ouderschap) Opvang
B6: HOOFDPROBLEEM/THEMA ZRM-LEEFGEBIEDEN CLIËNTEN
B7: realisatie 2021
A8: ='7. Overzichtsblad'!A13 -> Onafhankelijke cliëntondersteuning | B8: ='4. Individuele producten (2)'!B11 -> 0 | C8: ='4. Individuele producten (2)'!C11 -> 0 | D8: ='4. Individuele producten (2)'!D11 -> 0 | E8: ='4. Individuele producten (2)'!E11 -> 0 | F8: ='4. Individuele producten (2)'!F11 -> 0 | G8: ='4. Individuele producten (2)'!G11 -> 0 | H8: ='4. Individuele producten (2)'!H11 -> 0 | I8: ='4. Individuele producten (2)'!I11 -> 0 | J8: ='4. Individuele producten (2)'!J11 -> 0 | K8: ='4. Individuele producten (2)'!K11 -> 0 | L8: ='4. Individuele producten (2)'!L11 -> 0 | M8: ='4. Individuele producten (2)'!M11 -> 0 | N8: ='4. Individuele producten (2)'!N11 -> 0 | O8: ='4. Individuele producten (2)'!O11 -> 0 | P8: ='4. Individuele producten (2)'!P11 -> 0 | Q8: ='4. Individuele producten (2)'!Q11 -> 0 | R8: ='4. Individuele producten (2)'!R11 -> 0
A9: ='7. Overzichtsblad'!A14 -> Individuele ondersteuning | B9: ='4. Individuele producten (2)'!B12 -> 0 | C9: ='4. Individuele producten (2)'!C12 -> 0 | D9: ='4. Individuele producten (2)'!D12 -> 0 | E9: ='4. Individuele producten (2)'!E12 -> 0 | F9: ='4. Individuele producten (2)'!F12 -> 0 | G9: ='4. Individuele producten (2)'!G12 -> 0 | H9: ='4. Individuele producten (2)'!H12 -> 0 | I9: ='4. Individuele producten (2)'!I12 -> 0 | J9: ='4. Individuele producten (2)'!J12 -> 0 | K9: ='4. Individuele producten (2)'!K12 -> 0 | L9: ='4. Individuele producten (2)'!L12 -> 0 | M9: ='4. Individuele producten (2)'!M12 -> 0 | N9: ='4. Individuele producten (2)'!N12 -> 0 | O9: ='4. Individuele producten (2)'!O12 -> 0 | P9: ='4. Individuele producten (2)'!P12 -> 0 | Q9: ='4. Individuele producten (2)'!Q12 -> 0 | R9: ='4. Individuele producten (2)'!R12 -> 0
A10: ='7. Overzichtsblad'!A15 -> Waakvlamcontact | B10: ='4. Individuele producten (2)'!B13 -> 0 | C10: ='4. Individuele producten (2)'!C13 -> 0 | D10: ='4. Individuele producten (2)'!D13 -> 0 | E10: ='4. Individuele producten (2)'!E13 -> 0 | F10: ='4. Individuele producten (2)'!F13 -> 0 | G10: ='4. Individuele producten (2)'!G13 -> 0 | H10: ='4. Individuele producten (2)'!H13 -> 0 | I10: ='4. Individuele producten (2)'!I13 -> 0 | J10: ='4. Individuele producten (2)'!J13 -> 0 | K10: ='4. Individuele producten (2)'!K13 -> 0 | L10: ='4. Individuele producten (2)'!L13 -> 0 | M10: ='4. Individuele producten (2)'!M13 -> 0 | N10: ='4. Individuele producten (2)'!N13 -> 0 | O10: ='4. Individuele producten (2)'!O13 -> 0 | P10: ='4. Individuele producten (2)'!P13 -> 0 | Q10: ='4. Individuele producten (2)'!Q13 -> 0 | R10: ='4. Individuele producten (2)'!R13 -> 0
A11: ='7. Overzichtsblad'!A16 -> Informatie en advies | B11: ='4. Individuele producten (2)'!B14 -> 0 | C11: ='4. Individuele producten (2)'!C14 -> 0 | D11: ='4. Individuele producten (2)'!D14 -> 0 | E11: ='4. Individuele producten (2)'!E14 -> 0 | F11: ='4. Individuele producten (2)'!F14 -> 0 | G11: ='4. Individuele producten (2)'!G14 -> 0 | H11: ='4. Individuele producten (2)'!H14 -> 0 | I11: ='4. Individuele producten (2)'!I14 -> 0 | J11: ='4. Individuele producten (2)'!J14 -> 0 | K11: ='4. Individuele producten (2)'!K14 -> 0 | L11: ='4. Individuele producten (2)'!L14 -> 0 | M11: ='4. Individuele producten (2)'!M14 -> 0 | N11: ='4. Individuele producten (2)'!N14 -> 0 | O11: ='4. Individuele producten (2)'!O14 -> 0 | P11: ='4. Individuele producten (2)'!P14 -> 0 | Q11: ='4. Individuele producten (2)'!Q14 -> 0 | R11: ='4. Individuele producten (2)'!R14 -> 0
A12: ='7. Overzichtsblad'!A17 -> Collectieve inwonersondersteuning | B12: =SUMPRODUCT('5. Collectieve ondersteuning'!G80:G109,'5. Collectieve ondersteuning'!$AB$80:$AB$109) -> 0 | C12: =SUMPRODUCT('5. Collectieve ondersteuning'!H80:H109,'5. Collectieve ondersteuning'!$AB$80:$AB$109) -> 0 | D12: =SUMPRODUCT('5. Collectieve ondersteuning'!I80:I109,'5. Collectieve ondersteuning'!$AB$80:$AB$109) -> 0 | E12: =SUMPRODUCT('5. Collectieve ondersteuning'!J80:J109,'5. Collectieve ondersteuning'!$AB$80:$AB$109) -> 0 | F12: =SUMPRODUCT('5. Collectieve ondersteuning'!K80:K109,'5. Collectieve ondersteuning'!$AB$80:$AB$109) -> 0 | G12: =SUMPRODUCT('5. Collectieve ondersteuning'!L80:L109,'5. Collectieve ondersteuning'!$AB$80:$AB$109) -> 0 | H12: =SUMPRODUCT('5. Collectieve ondersteuning'!M80:M109,'5. Collectieve ondersteuning'!$AB$80:$AB$109) -> 0 | I12: =SUMPRODUCT('5. Collectieve ondersteuning'!N80:N109,'5. Collectieve ondersteuning'!$AB$80:$AB$109) -> 0 | J12: =SUMPRODUCT('5. Collectieve ondersteuning'!O80:O109,'5. Collectieve ondersteuning'!$AB$80:$AB$109) -> 0 | K12: =SUMPRODUCT('5. Collectieve ondersteuning'!P80:P109,'5. Collectieve ondersteuning'!$AB$80:$AB$109) -> 0 | L12: =SUMPRODUCT('5. Collectieve ondersteuning'!Q80:Q109,'5. Collectieve ondersteuning'!$AB$80:$AB$109) -> 0 | M12: =SUMPRODUCT('5. Collectieve ondersteuning'!R80:R109,'5. Collectieve ondersteuning'!$AB$80:$AB$109) -> 0 | N12: =SUMPRODUCT('5. Collectieve ondersteuning'!S80:S109,'5. Collectieve ondersteuning'!$AB$80:$AB$109) -> 0 | O12: =SUMPRODUCT('5. Collectieve ondersteuning'!T80:T109,'5. Collectieve ondersteuning'!$AB$80:$AB$109) -> 0 | P12: =SUMPRODUCT('5. Collectieve ondersteuning'!U80:U109,'5. Collectieve ondersteuning'!$AB$80:$AB$109) -> 0 | Q12: =SUMPRODUCT('5. Collectieve ondersteuning'!V80:V109,'5. Collectieve ondersteuning'!$AB$80:$AB$109) -> 0 | R12: =SUMPRODUCT('5. Collectieve ondersteuning'!W80:W109,'5. Collectieve ondersteuning'!$AB$80:$AB$109) -> 0
A13: ='7. Overzichtsblad'!A18 -> Leefbaarheid & samenredzaamheid
A14: ='7. Overzichtsblad'!A19 -> Totaal | B14: =SUM(B8:B13) -> 0 | C14: =SUM(C8:C13) -> 0 | D14: 0 | E14: 0 | F14: 0 | G14: 0 | H14: 0 | I14: 0 | J14: 0 | K14: 0 | L14: 0 | M14: 0 | N14: 0 | O14: 0 | P14: 0 | Q14: 0 | R14: 0

Sheet 9. Verantwoordingsformulier fin
A1: ="Financiële verantwoording subsidieregeling Algemene Voorzieningen "&'1. Inputblad Hoofdaannemer'!C4 -> Financiële verantwoording subsidieregeling Algemene Voorzieningen | J1: alleen grijze velden vullen!
A2: * Formulier conform artikel 15 van de "Algemene subsidieverordening" en het “Controleprotocol verantwoording en controles van subsidies”
C4: geraamde uren | I4: werkelijke uren
A5: ="Beschikt op producten "&'1. Inputblad Hoofdaannemer'!$C$4 -> Beschikt op producten | B5: Totaal (€) | C5: hbo | D5: mbo | E5: hbo (€) | F5: mbo (€) | H5: Totaal (€) | I5: hbo | J5: mbo | K5: hbo (€) | L5: mbo (€)
A6: =Lijsten!A2 -> Onafhankelijke cliëntondersteuning | B6: =E6+F6 -> 0 | C6: ='7. Overzichtsblad'!C13 -> 0 | D6: ='7. Overzichtsblad'!D13 -> 0 | E6: =C6*'1. Inputblad Hoofdaannemer'!$G$13 -> 0 | F6: =D6*'1. Inputblad Hoofdaannemer'!$G$14 -> 0 | H6: =K6+L6 -> 0 | I6: ='3. Individuele producten'!D10 -> 0 | J6: ='3. Individuele producten'!G10 -> 0 | K6: =I6*'1. Inputblad Hoofdaannemer'!$G$13 -> 0 | L6: =J6*'1. Inputblad Hoofdaannemer'!$G$14 -> 0
A7: =Lijsten!A3 -> Individuele ondersteuning | B7: =E7+F7 -> 0 | C7: ='7. Overzichtsblad'!C14 -> 0 | D7: ='7. Overzichtsblad'!D14 -> 0 | E7: =C7*'1. Inputblad Hoofdaannemer'!$G$13 -> 0 | F7: =D7*'1. Inputblad Hoofdaannemer'!$G$14 -> 0 | H7: =K7+L7 -> 0 | I7: ='3. Individuele producten'!D11 -> 0 | J7: ='3. Individuele producten'!G11 -> 0 | K7: =I7*'1. Inputblad Hoofdaannemer'!$G$13 -> 0 | L7: =J7*'1. Inputblad Hoofdaannemer'!$G$14 -> 0
A8: =Lijsten!A4 -> Waakvlamcontact | B8: 0 | C8: ='7. Overzichtsblad'!C15 -> 0 | D8: ='7. Overzichtsblad'!D15 -> 0 | E8: =C8*'1. Inputblad Hoofdaannemer'!$G$13 -> 0 | F8: =D8*'1. Inputblad Hoofdaannemer'!$G$14 -> 0 | H8: 0 | I8: ='3. Individuele producten'!D12 -> 0 | J8: ='3. Individuele producten'!G12 -> 0 | K8: =I8*'1. Inputblad Hoofdaannemer'!$G$13 -> 0 | L8: =J8*'1. Inputblad Hoofdaannemer'!$G$14 -> 0
A9: =Lijsten!A5 -> Informatie en advies | B9: 0 | C9: ='7. Overzichtsblad'!C16 -> 0 | D9: ='7. Overzichtsblad'!D16 -> 0 | E9: =C9*'1. Inputblad Hoofdaannemer'!$G$13 -> 0 | F9: =D9*'1. Inputblad Hoofdaannemer'!$G$14 -> 0 | H9: 0 | I9: ='3. Individuele producten'!D13 -> 0 | J9: ='3. Individuele producten'!G13 -> 0 | K9: =I9*'1. Inputblad Hoofdaannemer'!$G$13 -> 0 | L9: =J9*'1. Inputblad Hoofdaannemer'!$G$14 -> 0
A10: =Lijsten!A6 -> Collectieve inwondersondersteuning | B10: 0 | C10: ='7. Overzichtsblad'!C17 -> 0 | D10: ='7. Overzichtsblad'!D17 -> 0 | E10: =C10*'1. Inputblad Hoofdaannemer'!$G$13 -> 0 | F10: =D10*'1. Inputblad Hoofdaannemer'!$G$14 -> 0 | H10: 0 | I10: ='5. Collectieve ondersteuning'!AC110 -> 0 | J10: ='5. Collectieve ondersteuning'!AD110 -> 0 | K10: =I10*'1. Inputblad Hoofdaannemer'!$G$13 -> 0 | L10: =J10*'1. Inputblad Hoofdaannemer'!$G$14 -> 0
A11: =Lijsten!A7 -> Leefbaarheid & samenredzaamheid | B11: 0 | C11: ='7. Overzichtsblad'!C18 -> 0 | D11: ='7. Overzichtsblad'!D18 -> 0 | E11: =C11*'1. Inputblad Hoofdaannemer'!$G$13 -> 0 | F11: =D11*'1. Inputblad Hoofdaannemer'!$G$14 -> 0 | H11: 0 | I11: ='6. Leefbaar & samenredzaam'!D34 -> 0 | J11: ='6. Leefbaar & samenredzaam'!E34 -> 0 | K11: =I11*'1. Inputblad Hoofdaannemer'!$G$13 -> 0 | L11: =J11*'1. Inputblad Hoofdaannemer'!$G$14 -> 0
A12: ="Totaal beschikt op producten "&'1. Inputblad Hoofdaannemer'!$C$4 -> Totaal beschikt op producten | B12: =SUM(B6:B11) -> 0 | C12: =SUM(C6:C11) -> 0 | D12: 0 | E12: 0 | F12: 0 | H12: 0 | I12: 0 | J12: 0 | K12: 0 | L12: 0
A15: ="Beschikt op functies "&'1. Inputblad Hoofdaannemer'!C4 -> Beschikt op functies | B15: Totaal (€) | H15: ="Kosten op functies "&'1. Inputblad Hoofdaannemer'!C4 -> Kosten op functies | K15: Totaal (€)
A16: Huisvestingskosten | B16: ='2. Huisvesting en overig'!B5 -> 27000 | H16: =A16 -> Huisvestingskosten | I16: =A16 -> Huisvestingskosten | K16: =B16 -> 27000
A17: Coördinatie | B17: ='2. Huisvesting en overig'!H12 -> 50812.72679 | H17: =A17 -> Coördinatie | I17: =A17 -> Coördinatie | K17: =B17 -> 50812.72679
A18: Werkbudget locatie | B18: ='2. Huisvesting en overig'!H13 -> 25000 | H18: =A18 -> Werkbudget locatie | I18: =A18 -> Werkbudget locatie | K18: =B18 -> 25000
A19: Totaal beschikt op functies 2021 | B19: =SUM(B16:B18) -> 102812.7268 | H19: ="Totaal kosten op functies "&'1. Inputblad Hoofdaannemer'!C4 -> Totaal kosten op functies | I19: =A19 -> Totaal beschikt op functies 2021 | K19: =SUM(K16:L18) -> 102812.7268
A22: ="Inkomsten derden m.b.t. subsidie "&'1. Inputblad Hoofdaannemer'!$C$4 -> Inkomsten derden m.b.t. subsidie | H22: ="Inkomsten derden m.b.t. subsidie "&'1. Inputblad Hoofdaannemer'!$C$4 -> Inkomsten derden m.b.t. subsidie
A23: ="Overige subsidies "&'1. Inputblad Hoofdaannemer'!$C$4 -> Overige subsidies | H23: ="Overige subsidies "&'1. Inputblad Hoofdaannemer'!$C$4 -> Overige subsidies
A25: ="Totaal subsidie beschikt "&'1. Inputblad Hoofdaannemer'!C4 -> Totaal subsidie beschikt | B25: =B12+B19 -> 102812.7268 | H25: ="Totaal vast te stellen subsidie "&'1. Inputblad Hoofdaannemer'!C4 -> Totaal vast te stellen subsidie | K25: =H12+K19 -> 102812.7268
A27: Omvang van de uit subsidiegelden gevormde reserve op 31/12/2021
A28: Toevoeging (+) of onttrekking (-) van subsidiegelden aan de reserves
A31: Handtekening (namens) bestuur: | F31: Waarmerk accountant:

Sheet Inputblad (hidden)
B2: TEKST/TOELICHTING
B3: INVULVELD
B4: DOOR FORMULE BEREKENDE WAARDE
B7: Productvariabelen | C7: Waarden
B8: Uurtarieven berekend op basis van | C8: specifieke cao's | E8: Hier kan gekozen worden voor één gemiddeld tarief voor alle sectoren of sectorspecifieke tarieven op basis van de cao's
B9: Dominante cao | C9: Sociaal werk | E9: De dominante cao is nodig om de overheadstijgingen uit te rekenen.
B10: Uren vakantie | C10: 200 | E10: De vakantie-uren verschillen per cao. Hier is maatwerk gevolgd.
B11: Uren buitengewoon verlof | C11: 13 | E11: Betreft een benadering, schatting, maatwerk hier gevolgd.
B12: Percentage ziekteverzuim | C12: 0.05 | E12: Waarde gekozen als schatting voor alle sectoren en producten.
B13: Uren vitaliteit/levensfase budget | C13: 13 | E13: Betreft een benadering, schatting, maatwerk hier gevolgd.
B14: Uren opleidingen | C14: 40 | E14: 40 uur is een BIG en SKJ norm (200 uur in 5 jaar). VVT is norm in euro's, 50% daarvan als leeruren. Dezelfde norm als maatwerk
B15: Werkgroepoverleg per jaar | C15: 10 | E15: Maatwerk heeft hier geen uren
B16: Werkbare uren | C16: ='Werkbare uren'!$D$15 -> 1400.035714 | E16: Gele regels zijn formules. Hier wordt het aantal werkbare uren berekend via tabblad werkbare uren.
B17: Percentage cliëntgebonden tijd van 1.878 uren | C17: =1350/1878 -> 0.7188498403 | E17: Dit percentage levert het aantal cliëntgebonden uren. De cliëntgebonden uren mogen niet hoger zijn dan de werkbare uren (oftewel: niet-cliëntgebonden tijd moet >0 zijn.
B18: Cliëntgebonden tijd | C18: =1878*C17 -> 1350 | E18: Cliëntgebonden tijd komt bij activiteiten neer op de duur van de activiteiten. Reistijd en voor- of nabereidingstijd zijn niet cliëntgebonden. Begeleiding heeft hier 1180, begeleiding licht 1310.
B19: Niet-cliëntgebonden tijd | C19: =C16-C18 -> 50.03571429 | E19: Niet-clientgebonden tijd is tijd buiten de activiteiten.
B20: Percentage salaris van maximale periodiek | C20: 0.95 | E20: Deze percentages zijn afgeleid van de meetwaarden bij maatwerk.
B21: Onregelmatigheidstoeslag | C21: 0.03
B22: Eindejaarsuitkering (%) | C22: 0.0833 | E22: cao bepaald
B23: Percentage sociale premies & pensioenen | C23: 0.277 | E23: Percentage is hetzelfde als bij maatwerk
B24: ="Opslag overhead per directe fte (prijspeil "&Onderhoudsblad!D8&")" -> Opslag overhead per directe fte (prijspeil 2021) | C24: 22000 | E24: Dit bedrag is hetzelfde als bij maatwerk. Het hoofdaannemerconstructie vergt wat meer overhead, deel wordt hiervoor coordinatie betaald. Kantoorkosten zijn bij algememe voorzieningen lager, omdat veel personeel veel tijd niet op hun eigen locatie hoeft te zijn.
B25: ="Opslag overhead per directe fte (prijspeil "&Onderhoudsblad!D3&")" -> Opslag overhead per directe fte (prijspeil 2021) | C25: =C24*INDEX('cao-stijgingen'!$L$6:$Q$10,MATCH(C9,'cao-stijgingen'!$L$6:$L$10,0),MATCH('cao-stijgingen'!$Q$5,'cao-stijgingen'!$L$5:$Q$5,0)) -> 22000 | E25: Dit bedrag inclusief cao stijging
B26: Risico-opslag / marge (%) | C26: 0.03 | E26: Dit bedrag is 1% lager dan bij maatwerk, omdat bij de algemene voorzieningen geen leeglooprisico bestaat.
B29: Salaris
B30: schaal | C30: Mix mbo | D30: Mix hbo
B31: =Lijsten!$E$2 -> schaal 2
B32: =Lijsten!$E$3 -> schaal 3 | F32: 0.9
B33: =Lijsten!$E$4 -> schaal 4
B34: =Lijsten!$E$5 -> schaal 5 | F34: schaal | G34: salaris pp2020 | H34: mbo-mix | I34: mixsalaris pp2020 | J34: salaris pp 2021 | K34: =C20 -> 0.95
B35: =Lijsten!$E$6 -> schaal 6 | C35: 0.8 | F35: schaal 6 | G35: ='cao''s'!I11 -> 3279 | H35: =C35 -> 0.8 | I35: =H35*G35 -> 2623.2 | J35: =I35*1.025 -> 2688.78 | K35: =0.9*J35 -> 2419.902
B36: =Lijsten!$E$7 -> schaal 7 | C36: 0.1 | F36: schaal 7 | G36: ='cao''s'!I12 -> 3494 | H36: 0.1 | I36: 349.4 | J36: 358.135 | K36: 322.3215
B37: =Lijsten!$E$8 -> schaal 8 | C37: 0.1 | D37: 0.5 | F37: schaal 8 | G37: ='cao''s'!I13 -> 3864 | H37: 0.1 | I37: 386.4 | J37: 396.06 | K37: 356.454
B38: =Lijsten!$E$9 -> schaal 9 | D38: 0.4 | H38: =SUM(H35:H37) -> 1 | I38: 3359 | J38: 3442.975 | K38: 3098.6775
B39: =Lijsten!$E$10 -> schaal 10 | D39: 0.1
B40: =Lijsten!$E$11 -> schaal 11 | F40: schaal | G40: salaris pp2020 | H40: mbo-mix | I40: mixsalaris pp2020 | J40: mixsalaris | K40: =F32 -> 0.9
B41: =Lijsten!$E$12 -> schaal 12 | F41: schaal 8 | G41: ='cao''s'!I13 -> 3864 | H41: =D37 -> 0.5 | I41: =H41*G41 -> 1932 | J41: =I41*1.025 -> 1980.3 | K41: =0.9*J41 -> 1782.27
C42: =SUM(C31:C41) -> 1 | D42: 1 | F42: schaal 9 | G42: ='cao''s'!I14 -> 4252 | H42: 0.4 | I42: 1700.8 | J42: 1743.32 | K42: 1568.988
B43: Salaris | C43: Mix mbo | D43: Mix hbo | F43: schaal 10 | G43: ='cao''s'!I15 -> 4712 | H43: 0.1 | I43: 471.2 | J43: 482.98 | K43: 434.682
B44: =Lijsten!$E$13 -> FWG 10 | H44: =SUM(H41:H43) -> 1 | I44: 4104 | J44: 4206.6 | K44: 3785.94
B45: =Lijsten!$E$14 -> FWG 15
B46: =Lijsten!$E$15 -> FWG 20
B47: =Lijsten!$E$16 -> FWG 25
B48: =Lijsten!$E$17 -> FWG 30
B49: =Lijsten!$E$18 -> FWG 35 | C49: 0.3
B50: =Lijsten!$E$19 -> FWG 40 | C50: 0.4
B51: =Lijsten!$E$20 -> FWG 45 | C51: 0.3 | D51: 0.2
B52: =Lijsten!$E$21 -> FWG 50 | D52: 0.4
B53: =Lijsten!$E$22 -> FWG 55 | D53: 0.4
B54: =Lijsten!$E$23 -> FWG 60
B55: =Lijsten!$E$24 -> FWG 65
B56: =Lijsten!$E$25 -> FWG 70
B57: =Lijsten!$E$26 -> FWG 75
B58: =Lijsten!$E$27 -> FWG 80
C59: =SUM(C44:C58) -> 1 | D59: 1
B62: Hoogte verleende subsidie 2020 Inwonersondersteuning stadsdeelgericht en per organisatie
B64: Stadsdeel | D64: Organisatie | F64: bedrag | G64: Percentage
B65: Noordoost | C65: =F68 -> 1047160.06 | D65: Den Bosco | F65: 132119 | G65: =F65/F68 -> 0.1261688686
D66: Stimenz | F66: 764919.22 | G66: =F66/F68 -> 0.7304702015
D67: MEE Veluwe | F67: 150121.84 | G67: =F67/F68 -> 0.1433609299
F68: =SUM(F65:F67) -> 1047160.06 | G68: =SUM(G65:G67) -> 1
B70: Noordwest | C70: =F72 -> 998428 | D70: Stimenz | F70: 831082 | G70: =F70/F72 -> 0.8323905179
D71: MEE Veluwe | F71: 167346 | G71: =F71/F72 -> 0.1676094821
F72: 998428 | G72: =SUM(G70:G71) -> 1
B74: Zuidoost | C74: =F77 -> 831718.9 | D74: Stimenz | F74: 576502.95 | G74: =F74/F77 -> 0.6931463864
D75: MEE Veluwe | F75: 191210.95 | G75: =F75/F77 -> 0.229898527
D76: Don Bosco | F76: 64005 | G76: =F76/F77 -> 0.07695508663
F77: =SUM(F74:F76) -> 831718.9 | G77: =SUM(G74:G76) -> 1
B79: Zuidwest | C79: =F82 -> 1244647.04 | D79: MEE Veluwe | F79: 222582.48 | G79: =F79/F82 -> 0.1788318076
D80: Stimenz | F80: 767329.18 | G80: =F80/F82 -> 0.6165034386
D81: Buurtcooperatie | F81: 254735.38 | G81: =F81/F82 -> 0.2046647538
F82: =SUM(F79:F81) -> 1244647.04 | G82: =SUM(G79:G81) -> 1

Sheet cao's (hidden)
B2: ="Cao-bedragen overgenomen uit officiële cao-salaristabellen" -> Cao-bedragen overgenomen uit officiële cao-salaristabellen | L2: ="Cao minimum-bedragen bijgewerkt uit officiële cao's" -> Cao minimum-bedragen bijgewerkt uit officiële cao's
B4: Salaristabel cao | D4: =Lijsten!F6 -> VVT | E4: =Lijsten!F4 -> GGZ | F4: =Lijsten!F5 -> Gehandicaptenzorg | H4: =Lijsten!F3 -> Jeugdzorg | I4: =Lijsten!F2 -> Sociaal werk | L4: Minimumbedragen cao
B5: Ingangsdatum cao | D5: 2018-10-01 | E5: 2020-08-01 | F5: 2019-01-01 | H5: 2020-01-01 | I5: 2020-07-01 | L5: lijstcao | M5: Ingangsdatum | N5: lijsteindvak | O5: eindejaars | P5: vakantiegeld
B6: Opleiding | C6: schaal | E6: max | F6: max | G6: Schaal | H6: max | I6: max | L6: =Lijsten!F2 -> Sociaal werk | M6: 2020-07-01 | N6: met | O6: =12*104.38 -> 1252.56 | P6: =12*174.93 -> 2099.16
C7: =Lijsten!E13 -> FWG 10 | D7: 1714.68 | E7: 2077 | F7: 2016 | G7: =Lijsten!E2 -> schaal 2 | H7: 2323.2 | I7: 2403 | L7: =Lijsten!F4 -> GGZ | M7: 2020-08-01 | N7: zonder | O7: =M17*8.33%*12 -> 2356.0572 | P7: =M17*12*0.08 -> 2262.72
C8: =Lijsten!E14 -> FWG 15 | D8: 2131.18 | E8: 2218 | F8: 2153 | G8: =Lijsten!E3 -> schaal 3 | H8: 2452.48 | I8: 2550 | L8: =Lijsten!F3 -> Jeugdzorg | M8: 2018-07-01 | N8: met | O8: 0 | P8: =171.56*12 -> 2058.72
C9: =Lijsten!E15 -> FWG 20 | D9: 2265.63 | E9: 2357 | F9: 2287 | G9: =Lijsten!E4 -> schaal 4 | H9: 2623.43 | I9: 2763 | L9: =Lijsten!F5 -> Gehandicaptenzorg | M9: 2019-01-01 | N9: zonder | O9: 979.36 | P9: =12*126.6 -> 1519.2
C10: =Lijsten!E16 -> FWG 25 | D10: 2397.39 | E10: 2487 | F10: 2413 | G10: =Lijsten!E5 -> schaal 5 | H10: 2816.77 | I10: 2936 | L10: =Lijsten!F6 -> VVT | M10: 2019-05-01 | N10: zonder | O10: =$M$13*1878*Inputblad!$C$22 -> 2060.280558 | P10: 1934.78
C11: =Lijsten!E17 -> FWG 30 | D11: 2468.58 | E11: 2622 | F11: 2546 | G11: =Lijsten!E6 -> schaal 6 | H11: 3036.87 | I11: 3279
C12: =Lijsten!E18 -> FWG 35 | D12: 2668.93 | E12: 2757 | F12: 2675 | G12: =Lijsten!E7 -> schaal 7 | H12: 3285.52 | I12: 3494 | M12: 2018-10-01
C13: =Lijsten!E19 -> FWG 40 | D13: 2870.58 | E13: 3037 | F13: 2807 | G13: =Lijsten!E8 -> schaal 8 | H13: 3568.98 | I13: 3864 | L13: VVT Inpassingstabel nummer 12 | M13: 13.17 | N13: (voor berekening minimum eindejaarsuitkering VVT)
B14: hbo | C14: =Lijsten!E20 -> FWG 45 | D14: 3153.9 | E14: 3326 | F14: 3084 | G14: =Lijsten!E9 -> schaal 9 | H14: 3888.56 | I14: 4252
C15: =Lijsten!E21 -> FWG 50 | D15: 3582.26 | E15: 3678 | F15: 3505 | G15: =Lijsten!E10 -> schaal 10 | H15: 4255.95 | I15: 4712
C16: =Lijsten!E22 -> FWG 55 | D16: 4021.18 | E16: 4131 | F16: 3948 | G16: =Lijsten!E11 -> schaal 11 | H16: 4896.26 | I16: 5225 | M16: 2020-08-01
B17: wo | C17: =Lijsten!E23 -> FWG 60 | D17: 4583.96 | E17: 4620 | F17: 4499 | G17: =Lijsten!E12 -> schaal 12 | H17: 5616.78 | I17: 5801 | L17: GGZ Inpassingstabel nummer 16 | M17: 2357 | N17: (voor berekening minimum eindejaarsuitkering en vakantiegeld GGZ)
B18: wo+ | C18: =Lijsten!E24 -> FWG 65 | D18: 5395.82 | E18: 5439 | F18: 5296
B19: wo++ | C19: =Lijsten!E25 -> FWG 70 | D19: 6512.17 | E19: 6564 | F19: 6396
B20: TG6 | C20: =Lijsten!E26 -> FWG 75 | D20: 7870.99 | E20: 7934 | F20: 7741 | M20: 2019-09-01
C21: =Lijsten!E27 -> FWG 80 | D21: 9203.47 | E21: 9278 | F21: 9202 | L21: GZ Inpassingstabel nummer 8 | M21: 1800 | N21: (voor berekening minimum eindejaarsuitkering en vakantiegeld GGZ)
C22: AMS | E22: 9294

Sheet cao regelingen ort (hidden)
C2: Tijd | D2: 00:00:00 | E2: 01:00:00 | F2: 02:00:00 | G2: 03:00:00 | H2: 04:00:00 | I2: 05:00:00 | J2: 06:00:00 | K2: 07:00:00 | L2: 08:00:00 | M2: 09:00:00 | N2: 10:00:00 | O2: 11:00:00 | P2: 12:00:00 | Q2: 13:00:00 | R2: 14:00:00 | S2: 15:00:00 | T2: 16:00:00 | U2: 17:00:00 | V2: 18:00:00 | W2: 19:00:00 | X2: 20:00:00 | Y2: 21:00:00 | Z2: 22:00:00 | AA2: 23:00:00
B3: (max uurloon) | C3: Dag | D3: maandag | E3: maandag | F3: maandag | G3: maandag | H3: maandag | I3: maandag | J3: maandag | K3: maandag | L3: maandag | M3: maandag | N3: maandag | O3: maandag | P3: maandag | Q3: maandag | R3: maandag | S3: maandag | T3: maandag | U3: maandag | V3: maandag | W3: maandag | X3: maandag | Y3: maandag | Z3: maandag | AA3: maandag
B4: =2527*12/1878 -> 16.14696486 | C4: =Lijsten!$F$2 -> Sociaal werk | D4: 0.2 | E4: 0.2 | F4: 0.2 | G4: 0.2 | H4: 0.2 | I4: 0.2 | J4: 0.2 | W4: 0.2 | X4: 0.2 | Y4: 0.2 | Z4: 0.2 | AA4: 0.2
B5: =2708.43*12/1878 -> 17.30626198 | C5: =Lijsten!$F$3 -> Jeugdzorg | D5: 0.45 | E5: 0.45 | F5: 0.45 | G5: 0.45 | H5: 0.45 | I5: 0.45 | J5: 0.25 | W5: 0.25 | X5: 0.25 | Y5: 0.25 | Z5: 0.45 | AA5: 0.45
B6: =2407*12/1878 -> 15.38019169 | C6: =Lijsten!$F$4 -> GGZ | D6: 0.44 | E6: 0.44 | F6: 0.44 | G6: 0.44 | H6: 0.44 | I6: 0.44 | J6: 0.22 | X6: 0.22 | Y6: 0.22 | Z6: 0.44 | AA6: 0.44
B7: =2478*12/1878 -> 15.83386581 | C7: =Lijsten!$F$5 -> Gehandicaptenzorg | D7: 0.44 | E7: 0.44 | F7: 0.44 | G7: 0.44 | H7: 0.44 | I7: 0.44 | J7: 0.22 | X7: 0.22 | Y7: 0.22 | Z7: 0.44 | AA7: 0.44
B8: 16.62 | C8: =Lijsten!$F$6 -> VVT | D8: 0.44 | E8: 0.44 | F8: 0.44 | G8: 0.44 | H8: 0.44 | I8: 0.44 | J8: 0.22 | X8: 0.22 | Y8: 0.22 | Z8: 0.44 | AA8: 0.44
D10: Zaterdag | E10: Zaterdag | F10: Zaterdag | G10: Zaterdag | H10: Zaterdag | I10: Zaterdag | J10: Zaterdag | K10: Zaterdag | L10: Zaterdag | M10: Zaterdag | N10: Zaterdag | O10: Zaterdag | P10: Zaterdag | Q10: Zaterdag | R10: Zaterdag | S10: Zaterdag | T10: Zaterdag | U10: Zaterdag | V10: Zaterdag | W10: Zaterdag | X10: Zaterdag | Y10: Zaterdag | Z10: Zaterdag | AA10: Zaterdag
B11: =B4 -> 16.14696486 | C11: =Lijsten!$F$2 -> Sociaal werk | D11: 0.25 | E11: 0.25 | F11: 0.25 | G11: 0.25 | H11: 0.25 | I11: 0.25 | J11: 0.25 | K11: 0.25 | L11: 0.25 | M11: 0.25 | N11: 0.25 | O11: 0.25 | P11: 0.25 | Q11: 0.25 | R11: 0.25 | S11: 0.25 | T11: 0.25 | U11: 0.25 | V11: 0.25 | W11: 0.25 | X11: 0.25 | Y11: 0.25 | Z11: 0.25 | AA11: 0.25
B12: 17.30626198 | C12: =Lijsten!$F$3 -> Jeugdzorg | D12: 0.45 | E12: 0.45 | F12: 0.45 | G12: 0.45 | H12: 0.45 | I12: 0.45 | J12: 0.3 | K12: 0.3 | L12: 0.3 | M12: 0.3 | N12: 0.3 | O12: 0.3 | P12: 0.3 | Q12: 0.3 | R12: 0.3 | S12: 0.3 | T12: 0.3 | U12: 0.3 | V12: 0.3 | W12: 0.3 | X12: 0.3 | Y12: 0.3 | Z12: 0.45 | AA12: 0.45
B13: 15.38019169 | C13: =Lijsten!$F$4 -> GGZ | D13: 0.49 | E13: 0.49 | F13: 0.49 | G13: 0.49 | H13: 0.49 | I13: 0.49 | J13: 0.38 | K13: 0.38 | P13: 0.38 | Q13: 0.38 | R13: 0.38 | S13: 0.38 | T13: 0.38 | U13: 0.38 | V13: 0.38 | W13: 0.38 | X13: 0.38 | Y13: 0.38 | Z13: 0.49 | AA13: 0.49
B14: 15.83386581 | C14: =Lijsten!$F$5 -> Gehandicaptenzorg | D14: 0.49 | E14: 0.49 | F14: 0.49 | G14: 0.49 | H14: 0.49 | I14: 0.49 | J14: 0.38 | K14: 0.38 | P14: 0.38 | Q14: 0.38 | R14: 0.38 | S14: 0.38 | T14: 0.38 | U14: 0.38 | V14: 0.38 | W14: 0.38 | X14: 0.38 | Y14: 0.38 | Z14: 0.49 | AA14: 0.49
B15: 16.62 | C15: =Lijsten!$F$6 -> VVT | D15: 0.49 | E15: 0.49 | F15: 0.49 | G15: 0.49 | H15: 0.49 | I15: 0.49 | J15: 0.38 | K15: 0.38 | P15: 0.38 | Q15: 0.38 | R15: 0.38 | S15: 0.38 | T15: 0.38 | U15: 0.38 | V15: 0.38 | W15: 0.38 | X15: 0.38 | Y15: 0.38 | Z15: 0.49 | AA15: 0.49
D17: Zondag | E17: Zondag | F17: Zondag | G17: Zondag | H17: Zondag | I17: Zondag | J17: Zondag | K17: Zondag | L17: Zondag | M17: Zondag | N17: Zondag | O17: Zondag | P17: Zondag | Q17: Zondag | R17: Zondag | S17: Zondag | T17: Zondag | U17: Zondag | V17: Zondag | W17: Zondag | X17: Zondag | Y17: Zondag | Z17: Zondag | AA17: Zondag
B18: =B4 -> 16.14696486 | C18: =Lijsten!$F$2 -> Sociaal werk | D18: 0.45 | E18: 0.45 | F18: 0.45 | G18: 0.45 | H18: 0.45 | I18: 0.45 | J18: 0.45 | K18: 0.45 | L18: 0.45 | M18: 0.45 | N18: 0.45 | O18: 0.45 | P18: 0.45 | Q18: 0.45 | R18: 0.45 | S18: 0.45 | T18: 0.45 | U18: 0.45 | V18: 0.45 | W18: 0.45 | X18: 0.45 | Y18: 0.45 | Z18: 0.45 | AA18: 0.45
B19: 17.30626198 | C19: =Lijsten!$F$3 -> Jeugdzorg | D19: 0.45 | E19: 0.45 | F19: 0.45 | G19: 0.45 | H19: 0.45 | I19: 0.45 | J19: 0.45 | K19: 0.45 | L19: 0.45 | M19: 0.45 | N19: 0.45 | O19: 0.45 | P19: 0.45 | Q19: 0.45 | R19: 0.45 | S19: 0.45 | T19: 0.45 | U19: 0.45 | V19: 0.45 | W19: 0.45 | X19: 0.45 | Y19: 0.45 | Z19: 0.45 | AA19: 0.45
B20: 15.38019169 | C20: =Lijsten!$F$4 -> GGZ | D20: 0.6 | E20: 0.6 | F20: 0.6 | G20: 0.6 | H20: 0.6 | I20: 0.6 | J20: 0.6 | K20: 0.6 | L20: 0.6 | M20: 0.6 | N20: 0.6 | O20: 0.6 | P20: 0.6 | Q20: 0.6 | R20: 0.6 | S20: 0.6 | T20: 0.6 | U20: 0.6 | V20: 0.6 | W20: 0.6 | X20: 0.6 | Y20: 0.6 | Z20: 0.6 | AA20: 0.6
B21: 15.83386581 | C21: =Lijsten!$F$5 -> Gehandicaptenzorg | D21: 0.6 | E21: 0.6 | F21: 0.6 | G21: 0.6 | H21: 0.6 | I21: 0.6 | J21: 0.6 | K21: 0.6 | L21: 0.6 | M21: 0.6 | N21: 0.6 | O21: 0.6 | P21: 0.6 | Q21: 0.6 | R21: 0.6 | S21: 0.6 | T21: 0.6 | U21: 0.6 | V21: 0.6 | W21: 0.6 | X21: 0.6 | Y21: 0.6 | Z21: 0.6 | AA21: 0.6
B22: 16.62 | C22: =Lijsten!$F$6 -> VVT | D22: 0.6 | E22: 0.6 | F22: 0.6 | G22: 0.6 | H22: 0.6 | I22: 0.6 | J22: 0.6 | K22: 0.6 | L22: 0.6 | M22: 0.6 | N22: 0.6 | O22: 0.6 | P22: 0.6 | Q22: 0.6 | R22: 0.6 | S22: 0.6 | T22: 0.6 | U22: 0.6 | V22: 0.6 | W22: 0.6 | X22: 0.6 | Y22: 0.6 | Z22: 0.6 | AA22: 0.6
B25: OPSLAGEN IN EURO'S PER UUR
B27: maandag - vrijdag | C27: =Lijsten!$F$2 -> Sociaal werk | D27: ='cao regelingen ort'!D4*'cao regelingen ort'!$B4 -> 3.229392971 | E27: ='cao regelingen ort'!E4*'cao regelingen ort'!$B4 -> 3.229392971 | F27: ='cao regelingen ort'!F4*'cao regelingen ort'!$B4 -> 3.229392971 | G27: ='cao regelingen ort'!G4*'cao regelingen ort'!$B4 -> 3.229392971 | H27: ='cao regelingen ort'!H4*'cao regelingen ort'!$B4 -> 3.229392971 | I27: ='cao regelingen ort'!I4*'cao regelingen ort'!$B4 -> 3.229392971 | J27: ='cao regelingen ort'!J4*'cao regelingen ort'!$B4 -> 3.229392971 | K27: ='cao regelingen ort'!K4*'cao regelingen ort'!$B4 -> 0 | L27: ='cao regelingen ort'!L4*'cao regelingen ort'!$B4 -> 0 | M27: ='cao regelingen ort'!M4*'cao regelingen ort'!$B4 -> 0 | N27: ='cao regelingen ort'!N4*'cao regelingen ort'!$B4 -> 0 | O27: ='cao regelingen ort'!O4*'cao regelingen ort'!$B4 -> 0 | P27: ='cao regelingen ort'!P4*'cao regelingen ort'!$B4 -> 0 | Q27: ='cao regelingen ort'!Q4*'cao regelingen ort'!$B4 -> 0 | R27: ='cao regelingen ort'!R4*'cao regelingen ort'!$B4 -> 0 | S27: ='cao regelingen ort'!S4*'cao regelingen ort'!$B4 -> 0 | T27: ='cao regelingen ort'!T4*'cao regelingen ort'!$B4 -> 0 | U27: ='cao regelingen ort'!U4*'cao regelingen ort'!$B4 -> 0 | V27: ='cao regelingen ort'!V4*'cao regelingen ort'!$B4 -> 0 | W27: ='cao regelingen ort'!W4*'cao regelingen ort'!$B4 -> 3.229392971 | X27: ='cao regelingen ort'!X4*'cao regelingen ort'!$B4 -> 3.229392971 | Y27: ='cao regelingen ort'!Y4*'cao regelingen ort'!$B4 -> 3.229392971 | Z27: ='cao regelingen ort'!Z4*'cao regelingen ort'!$B4 -> 3.229392971 | AA27: ='cao regelingen ort'!AA4*'cao regelingen ort'!$B4 -> 3.229392971
C28: =Lijsten!$F$3 -> Jeugdzorg | D28: ='cao regelingen ort'!D5*'cao regelingen ort'!$B5 -> 7.787817891 | E28: ='cao regelingen ort'!E5*'cao regelingen ort'!$B5 -> 7.787817891 | F28: ='cao regelingen ort'!F5*'cao regelingen ort'!$B5 -> 7.787817891 | G28: ='cao regelingen ort'!G5*'cao regelingen ort'!$B5 -> 7.787817891 | H28: ='cao regelingen ort'!H5*'cao regelingen ort'!$B5 -> 7.787817891 | I28: ='cao regelingen ort'!I5*'cao regelingen ort'!$B5 -> 7.787817891 | J28: ='cao regelingen ort'!J5*'cao regelingen ort'!$B5 -> 4.326565495 | K28: ='cao regelingen ort'!K5*'cao regelingen ort'!$B5 -> 0 | L28: ='cao regelingen ort'!L5*'cao regelingen ort'!$B5 -> 0 | M28: ='cao regelingen ort'!M5*'cao regelingen ort'!$B5 -> 0 | N28: ='cao regelingen ort'!N5*'cao regelingen ort'!$B5 -> 0 | O28: ='cao regelingen ort'!O5*'cao regelingen ort'!$B5 -> 0 | P28: ='cao regelingen ort'!P5*'cao regelingen ort'!$B5 -> 0 | Q28: ='cao regelingen ort'!Q5*'cao regelingen ort'!$B5 -> 0 | R28: ='cao regelingen ort'!R5*'cao regelingen ort'!$B5 -> 0 | S28: ='cao regelingen ort'!S5*'cao regelingen ort'!$B5 -> 0 | T28: ='cao regelingen ort'!T5*'cao regelingen ort'!$B5 -> 0 | U28: ='cao regelingen ort'!U5*'cao regelingen ort'!$B5 -> 0 | V28: ='cao regelingen ort'!V5*'cao regelingen ort'!$B5 -> 0 | W28: ='cao regelingen ort'!W5*'cao regelingen ort'!$B5 -> 4.326565495 | X28: ='cao regelingen ort'!X5*'cao regelingen ort'!$B5 -> 4.326565495 | Y28: ='cao regelingen ort'!Y5*'cao regelingen ort'!$B5 -> 4.326565495 | Z28: ='cao regelingen ort'!Z5*'cao regelingen ort'!$B5 -> 7.787817891 | AA28: ='cao regelingen ort'!AA5*'cao regelingen ort'!$B5 -> 7.787817891
C29: =Lijsten!$F$4 -> GGZ | D29: ='cao regelingen ort'!D6*'cao regelingen ort'!$B6 -> 6.767284345 | E29: ='cao regelingen ort'!E6*'cao regelingen ort'!$B6 -> 6.767284345 | F29: ='cao regelingen ort'!F6*'cao regelingen ort'!$B6 -> 6.767284345 | G29: ='cao regelingen ort'!G6*'cao regelingen ort'!$B6 -> 6.767284345 | H29: ='cao regelingen ort'!H6*'cao regelingen ort'!$B6 -> 6.767284345 | I29: ='cao regelingen ort'!I6*'cao regelingen ort'!$B6 -> 6.767284345 | J29: ='cao regelingen ort'!J6*'cao regelingen ort'!$B6 -> 3.383642173 | K29: ='cao regelingen ort'!K6*'cao regelingen ort'!$B6 -> 0 | L29: ='cao regelingen ort'!L6*'cao regelingen ort'!$B6 -> 0 | M29: ='cao regelingen ort'!M6*'cao regelingen ort'!$B6 -> 0 | N29: ='cao regelingen ort'!N6*'cao regelingen ort'!$B6 -> 0 | O29: ='cao regelingen ort'!O6*'cao regelingen ort'!$B6 -> 0 | P29: ='cao regelingen ort'!P6*'cao regelingen ort'!$B6 -> 0 | Q29: ='cao regelingen ort'!Q6*'cao regelingen ort'!$B6 -> 0 | R29: ='cao regelingen ort'!R6*'cao regelingen ort'!$B6 -> 0 | S29: ='cao regelingen ort'!S6*'cao regelingen ort'!$B6 -> 0 | T29: ='cao regelingen ort'!T6*'cao regelingen ort'!$B6 -> 0 | U29: ='cao regelingen ort'!U6*'cao regelingen ort'!$B6 -> 0 | V29: ='cao regelingen ort'!V6*'cao regelingen ort'!$B6 -> 0 | W29: ='cao regelingen ort'!W6*'cao regelingen ort'!$B6 -> 0 | X29: ='cao regelingen ort'!X6*'cao regelingen ort'!$B6 -> 3.383642173 | Y29: ='cao regelingen ort'!Y6*'cao regelingen ort'!$B6 -> 3.383642173 | Z29: ='cao regelingen ort'!Z6*'cao regelingen ort'!$B6 -> 6.767284345 | AA29: ='cao regelingen ort'!AA6*'cao regelingen ort'!$B6 -> 6.767284345
C30: =Lijsten!$F$5 -> Gehandicaptenzorg | D30: ='cao regelingen ort'!D7*'cao regelingen ort'!$B7 -> 6.966900958 | E30: ='cao regelingen ort'!E7*'cao regelingen ort'!$B7 -> 6.966900958 | F30: ='cao regelingen ort'!F7*'cao regelingen ort'!$B7 -> 6.966900958 | G30: ='cao regelingen ort'!G7*'cao regelingen ort'!$B7 -> 6.966900958 | H30: ='cao regelingen ort'!H7*'cao regelingen ort'!$B7 -> 6.966900958 | I30: ='cao regelingen ort'!I7*'cao regelingen ort'!$B7 -> 6.966900958 | J30: ='cao regelingen ort'!J7*'cao regelingen ort'!$B7 -> 3.483450479 | K30: ='cao regelingen ort'!K7*'cao regelingen ort'!$B7 -> 0 | L30: ='cao regelingen ort'!L7*'cao regelingen ort'!$B7 -> 0 | M30: ='cao regelingen ort'!M7*'cao regelingen ort'!$B7 -> 0 | N30: ='cao regelingen ort'!N7*'cao regelingen ort'!$B7 -> 0 | O30: ='cao regelingen ort'!O7*'cao regelingen ort'!$B7 -> 0 | P30: ='cao regelingen ort'!P7*'cao regelingen ort'!$B7 -> 0 | Q30: ='cao regelingen ort'!Q7*'cao regelingen ort'!$B7 -> 0 | R30: ='cao regelingen ort'!R7*'cao regelingen ort'!$B7 -> 0 | S30: ='cao regelingen ort'!S7*'cao regelingen ort'!$B7 -> 0 | T30: ='cao regelingen ort'!T7*'cao regelingen ort'!$B7 -> 0 | U30: ='cao regelingen ort'!U7*'cao regelingen ort'!$B7 -> 0 | V30: ='cao regelingen ort'!V7*'cao regelingen ort'!$B7 -> 0 | W30: ='cao regelingen ort'!W7*'cao regelingen ort'!$B7 -> 0 | X30: ='cao regelingen ort'!X7*'cao regelingen ort'!$B7 -> 3.483450479 | Y30: ='cao regelingen ort'!Y7*'cao regelingen ort'!$B7 -> 3.483450479 | Z30: ='cao regelingen ort'!Z7*'cao regelingen ort'!$B7 -> 6.966900958 | AA30: ='cao regelingen ort'!AA7*'cao regelingen ort'!$B7 -> 6.966900958
C31: =Lijsten!$F$6 -> VVT | D31: ='cao regelingen ort'!D8*'cao regelingen ort'!$B8 -> 7.3128 | E31: ='cao regelingen ort'!E8*'cao regelingen ort'!$B8 -> 7.3128 | F31: ='cao regelingen ort'!F8*'cao regelingen ort'!$B8 -> 7.3128 | G31: ='cao regelingen ort'!G8*'cao regelingen ort'!$B8 -> 7.3128 | H31: ='cao regelingen ort'!H8*'cao regelingen ort'!$B8 -> 7.3128 | I31: ='cao regelingen ort'!I8*'cao regelingen ort'!$B8 -> 7.3128 | J31: ='cao regelingen ort'!J8*'cao regelingen ort'!$B8 -> 3.6564 | K31: ='cao regelingen ort'!K8*'cao regelingen ort'!$B8 -> 0 | L31: ='cao regelingen ort'!L8*'cao regelingen ort'!$B8 -> 0 | M31: ='cao regelingen ort'!M8*'cao regelingen ort'!$B8 -> 0 | N31: ='cao regelingen ort'!N8*'cao regelingen ort'!$B8 -> 0 | O31: ='cao regelingen ort'!O8*'cao regelingen ort'!$B8 -> 0 | P31: ='cao regelingen ort'!P8*'cao regelingen ort'!$B8 -> 0 | Q31: ='cao regelingen ort'!Q8*'cao regelingen ort'!$B8 -> 0 | R31: ='cao regelingen ort'!R8*'cao regelingen ort'!$B8 -> 0 | S31: ='cao regelingen ort'!S8*'cao regelingen ort'!$B8 -> 0 | T31: ='cao regelingen ort'!T8*'cao regelingen ort'!$B8 -> 0 | U31: ='cao regelingen ort'!U8*'cao regelingen ort'!$B8 -> 0 | V31: ='cao regelingen ort'!V8*'cao regelingen ort'!$B8 -> 0 | W31: ='cao regelingen ort'!W8*'cao regelingen ort'!$B8 -> 0 | X31: ='cao regelingen ort'!X8*'cao regelingen ort'!$B8 -> 3.6564 | Y31: ='cao regelingen ort'!Y8*'cao regelingen ort'!$B8 -> 3.6564 | Z31: ='cao regelingen ort'!Z8*'cao regelingen ort'!$B8 -> 7.3128 | AA31: ='cao regelingen ort'!AA8*'cao regelingen ort'!$B8 -> 7.3128
B33: Zaterdag | C33: =Lijsten!$F$2 -> Sociaal werk | D33: ='cao regelingen ort'!D11*'cao regelingen ort'!$B11 -> 4.036741214 | E33: ='cao regelingen ort'!E11*'cao regelingen ort'!$B11 -> 4.036741214 | F33: ='cao regelingen ort'!F11*'cao regelingen ort'!$B11 -> 4.036741214 | G33: ='cao regelingen ort'!G11*'cao regelingen ort'!$B11 -> 4.036741214 | H33: ='cao regelingen ort'!H11*'cao regelingen ort'!$B11 -> 4.036741214 | I33: ='cao regelingen ort'!I11*'cao regelingen ort'!$B11 -> 4.036741214 | J33: ='cao regelingen ort'!J11*'cao regelingen ort'!$B11 -> 4.036741214 | K33: ='cao regelingen ort'!K11*'cao regelingen ort'!$B11 -> 4.036741214 | L33: ='cao regelingen ort'!L11*'cao regelingen ort'!$B11 -> 4.036741214 | M33: ='cao regelingen ort'!M11*'cao regelingen ort'!$B11 -> 4.036741214 | N33: ='cao regelingen ort'!N11*'cao regelingen ort'!$B11 -> 4.036741214 | O33: ='cao regelingen ort'!O11*'cao regelingen ort'!$B11 -> 4.036741214 | P33: ='cao regelingen ort'!P11*'cao regelingen ort'!$B11 -> 4.036741214 | Q33: ='cao regelingen ort'!Q11*'cao regelingen ort'!$B11 -> 4.036741214 | R33: ='cao regelingen ort'!R11*'cao regelingen ort'!$B11 -> 4.036741214 | S33: ='cao regelingen ort'!S11*'cao regelingen ort'!$B11 -> 4.036741214 | T33: ='cao regelingen ort'!T11*'cao regelingen ort'!$B11 -> 4.036741214 | U33: ='cao regelingen ort'!U11*'cao regelingen ort'!$B11 -> 4.036741214 | V33: ='cao regelingen ort'!V11*'cao regelingen ort'!$B11 -> 4.036741214 | W33: ='cao regelingen ort'!W11*'cao regelingen ort'!$B11 -> 4.036741214 | X33: ='cao regelingen ort'!X11*'cao regelingen ort'!$B11 -> 4.036741214 | Y33: ='cao regelingen ort'!Y11*'cao regelingen ort'!$B11 -> 4.036741214 | Z33: ='cao regelingen ort'!Z11*'cao regelingen ort'!$B11 -> 4.036741214 | AA33: ='cao regelingen ort'!AA11*'cao regelingen ort'!$B11 -> 4.036741214
C34: =Lijsten!$F$3 -> Jeugdzorg | D34: ='cao regelingen ort'!D12*'cao regelingen ort'!$B12 -> 7.787817891 | E34: ='cao regelingen ort'!E12*'cao regelingen ort'!$B12 -> 7.787817891 | F34: ='cao regelingen ort'!F12*'cao regelingen ort'!$B12 -> 7.787817891 | G34: ='cao regelingen ort'!G12*'cao regelingen ort'!$B12 -> 7.787817891 | H34: ='cao regelingen ort'!H12*'cao regelingen ort'!$B12 -> 7.787817891 | I34: ='cao regelingen ort'!I12*'cao regelingen ort'!$B12 -> 7.787817891 | J34: ='cao regelingen ort'!J12*'cao regelingen ort'!$B12 -> 5.191878594 | K34: ='cao regelingen ort'!K12*'cao regelingen ort'!$B12 -> 5.191878594 | L34: ='cao regelingen ort'!L12*'cao regelingen ort'!$B12 -> 5.191878594 | M34: ='cao regelingen ort'!M12*'cao regelingen ort'!$B12 -> 5.191878594 | N34: ='cao regelingen ort'!N12*'cao regelingen ort'!$B12 -> 5.191878594 | O34: ='cao regelingen ort'!O12*'cao regelingen ort'!$B12 -> 5.191878594 | P34: ='cao regelingen ort'!P12*'cao regelingen ort'!$B12 -> 5.191878594 | Q34: ='cao regelingen ort'!Q12*'cao regelingen ort'!$B12 -> 5.191878594 | R34: ='cao regelingen ort'!R12*'cao regelingen ort'!$B12 -> 5.191878594 | S34: ='cao regelingen ort'!S12*'cao regelingen ort'!$B12 -> 5.191878594 | T34: ='cao regelingen ort'!T12*'cao regelingen ort'!$B12 -> 5.191878594 | U34: ='cao regelingen ort'!U12*'cao regelingen ort'!$B12 -> 5.191878594 | V34: ='cao regelingen ort'!V12*'cao regelingen ort'!$B12 -> 5.191878594 | W34: ='cao regelingen ort'!W12*'cao regelingen ort'!$B12 -> 5.191878594 | X34: ='cao regelingen ort'!X12*'cao regelingen ort'!$B12 -> 5.191878594 | Y34: ='cao regelingen ort'!Y12*'cao regelingen ort'!$B12 -> 5.191878594 | Z34: ='cao regelingen ort'!Z12*'cao regelingen ort'!$B12 -> 7.787817891 | AA34: ='cao regelingen ort'!AA12*'cao regelingen ort'!$B12 -> 7.787817891
C35: =Lijsten!$F$4 -> GGZ | D35: ='cao regelingen ort'!D13*'cao regelingen ort'!$B13 -> 7.53629393 | E35: ='cao regelingen ort'!E13*'cao regelingen ort'!$B13 -> 7.53629393 | F35: ='cao regelingen ort'!F13*'cao regelingen ort'!$B13 -> 7.53629393 | G35: ='cao regelingen ort'!G13*'cao regelingen ort'!$B13 -> 7.53629393 | H35: ='cao regelingen ort'!H13*'cao regelingen ort'!$B13 -> 7.53629393 | I35: ='cao regelingen ort'!I13*'cao regelingen ort'!$B13 -> 7.53629393 | J35: ='cao regelingen ort'!J13*'cao regelingen ort'!$B13 -> 5.844472843 | K35: ='cao regelingen ort'!K13*'cao regelingen ort'!$B13 -> 5.844472843 | L35: ='cao regelingen ort'!L13*'cao regelingen ort'!$B13 -> 0 | M35: ='cao regelingen ort'!M13*'cao regelingen ort'!$B13 -> 0 | N35: ='cao regelingen ort'!N13*'cao regelingen ort'!$B13 -> 0 | O35: ='cao regelingen ort'!O13*'cao regelingen ort'!$B13 -> 0 | P35: ='cao regelingen ort'!P13*'cao regelingen ort'!$B13 -> 5.844472843 | Q35: ='cao regelingen ort'!Q13*'cao regelingen ort'!$B13 -> 5.844472843 | R35: ='cao regelingen ort'!R13*'cao regelingen ort'!$B13 -> 5.844472843 | S35: ='cao regelingen ort'!S13*'cao regelingen ort'!$B13 -> 5.844472843 | T35: ='cao regelingen ort'!T13*'cao regelingen ort'!$B13 -> 5.844472843 | U35: ='cao regelingen ort'!U13*'cao regelingen ort'!$B13 -> 5.844472843 | V35: ='cao regelingen ort'!V13*'cao regelingen ort'!$B13 -> 5.844472843 | W35: ='cao regelingen ort'!W13*'cao regelingen ort'!$B13 -> 5.844472843 | X35: ='cao regelingen ort'!X13*'cao regelingen ort'!$B13 -> 5.844472843 | Y35: ='cao regelingen ort'!Y13*'cao regelingen ort'!$B13 -> 5.844472843 | Z35: ='cao regelingen ort'!Z13*'cao regelingen ort'!$B13 -> 7.53629393 | AA35: ='cao regelingen ort'!AA13*'cao regelingen ort'!$B13 -> 7.53629393
C36: =Lijsten!$F$5 -> Gehandicaptenzorg | D36: ='cao regelingen ort'!D14*'cao regelingen ort'!$B14 -> 7.758594249 | E36: ='cao regelingen ort'!E14*'cao regelingen ort'!$B14 -> 7.758594249 | F36: ='cao regelingen ort'!F14*'cao regelingen ort'!$B14 -> 7.758594249 | G36: ='cao regelingen ort'!G14*'cao regelingen ort'!$B14 -> 7.758594249 | H36: ='cao regelingen ort'!H14*'cao regelingen ort'!$B14 -> 7.758594249 | I36: ='cao regelingen ort'!I14*'cao regelingen ort'!$B14 -> 7.758594249 | J36: ='cao regelingen ort'!J14*'cao regelingen ort'!$B14 -> 6.01686901 | K36: ='cao regelingen ort'!K14*'cao regelingen ort'!$B14 -> 6.01686901 | L36: ='cao regelingen ort'!L14*'cao regelingen ort'!$B14 -> 0 | M36: ='cao regelingen ort'!M14*'cao regelingen ort'!$B14 -> 0 | N36: ='cao regelingen ort'!N14*'cao regelingen ort'!$B14 -> 0 | O36: ='cao regelingen ort'!O14*'cao regelingen ort'!$B14 -> 0 | P36: ='cao regelingen ort'!P14*'cao regelingen ort'!$B14 -> 6.01686901 | Q36: ='cao regelingen ort'!Q14*'cao regelingen ort'!$B14 -> 6.01686901 | R36: ='cao regelingen ort'!R14*'cao regelingen ort'!$B14 -> 6.01686901 | S36: ='cao regelingen ort'!S14*'cao regelingen ort'!$B14 -> 6.01686901 | T36: ='cao regelingen ort'!T14*'cao regelingen ort'!$B14 -> 6.01686901 | U36: ='cao regelingen ort'!U14*'cao regelingen ort'!$B14 -> 6.01686901 | V36: ='cao regelingen ort'!V14*'cao regelingen ort'!$B14 -> 6.01686901 | W36: ='cao regelingen ort'!W14*'cao regelingen ort'!$B14 -> 6.01686901 | X36: ='cao regelingen ort'!X14*'cao regelingen ort'!$B14 -> 6.01686901 | Y36: ='cao regelingen ort'!Y14*'cao regelingen ort'!$B14 -> 6.01686901 | Z36: ='cao regelingen ort'!Z14*'cao regelingen ort'!$B14 -> 7.758594249 | AA36: ='cao regelingen ort'!AA14*'cao regelingen ort'!$B14 -> 7.758594249
C37: =Lijsten!$F$6 -> VVT | D37: ='cao regelingen ort'!D15*'cao regelingen ort'!$B15 -> 8.1438 | E37: ='cao regelingen ort'!E15*'cao regelingen ort'!$B15 -> 8.1438 | F37: ='cao regelingen ort'!F15*'cao regelingen ort'!$B15 -> 8.1438 | G37: ='cao regelingen ort'!G15*'cao regelingen ort'!$B15 -> 8.1438 | H37: ='cao regelingen ort'!H15*'cao regelingen ort'!$B15 -> 8.1438 | I37: ='cao regelingen ort'!I15*'cao regelingen ort'!$B15 -> 8.1438 | J37: ='cao regelingen ort'!J15*'cao regelingen ort'!$B15 -> 6.3156 | K37: ='cao regelingen ort'!K15*'cao regelingen ort'!$B15 -> 6.3156 | L37: ='cao regelingen ort'!L15*'cao regelingen ort'!$B15 -> 0 | M37: ='cao regelingen ort'!M15*'cao regelingen ort'!$B15 -> 0 | N37: ='cao regelingen ort'!N15*'cao regelingen ort'!$B15 -> 0 | O37: ='cao regelingen ort'!O15*'cao regelingen ort'!$B15 -> 0 | P37: ='cao regelingen ort'!P15*'cao regelingen ort'!$B15 -> 6.3156 | Q37: ='cao regelingen ort'!Q15*'cao regelingen ort'!$B15 -> 6.3156 | R37: ='cao regelingen ort'!R15*'cao regelingen ort'!$B15 -> 6.3156 | S37: ='cao regelingen ort'!S15*'cao regelingen ort'!$B15 -> 6.3156 | T37: ='cao regelingen ort'!T15*'cao regelingen ort'!$B15 -> 6.3156 | U37: ='cao regelingen ort'!U15*'cao regelingen ort'!$B15 -> 6.3156 | V37: ='cao regelingen ort'!V15*'cao regelingen ort'!$B15 -> 6.3156 | W37: ='cao regelingen ort'!W15*'cao regelingen ort'!$B15 -> 6.3156 | X37: ='cao regelingen ort'!X15*'cao regelingen ort'!$B15 -> 6.3156 | Y37: ='cao regelingen ort'!Y15*'cao regelingen ort'!$B15 -> 6.3156 | Z37: ='cao regelingen ort'!Z15*'cao regelingen ort'!$B15 -> 8.1438 | AA37: ='cao regelingen ort'!AA15*'cao regelingen ort'!$B15 -> 8.1438
B39: Zondag - feestdage | C39: =Lijsten!$F$2 -> Sociaal werk | D39: ='cao regelingen ort'!D18*'cao regelingen ort'!$B18 -> 7.266134185 | E39: ='cao regelingen ort'!E18*'cao regelingen ort'!$B18 -> 7.266134185 | F39: ='cao regelingen ort'!F18*'cao regelingen ort'!$B18 -> 7.266134185 | G39: ='cao regelingen ort'!G18*'cao regelingen ort'!$B18 -> 7.266134185 | H39: ='cao regelingen ort'!H18*'cao regelingen ort'!$B18 -> 7.266134185 | I39: ='cao regelingen ort'!I18*'cao regelingen ort'!$B18 -> 7.266134185 | J39: ='cao regelingen ort'!J18*'cao regelingen ort'!$B18 -> 7.266134185 | K39: ='cao regelingen ort'!K18*'cao regelingen ort'!$B18 -> 7.266134185 | L39: ='cao regelingen ort'!L18*'cao regelingen ort'!$B18 -> 7.266134185 | M39: ='cao regelingen ort'!M18*'cao regelingen ort'!$B18 -> 7.266134185 | N39: ='cao regelingen ort'!N18*'cao regelingen ort'!$B18 -> 7.266134185 | O39: ='cao regelingen ort'!O18*'cao regelingen ort'!$B18 -> 7.266134185 | P39: ='cao regelingen ort'!P18*'cao regelingen ort'!$B18 -> 7.266134185 | Q39: ='cao regelingen ort'!Q18*'cao regelingen ort'!$B18 -> 7.266134185 | R39: ='cao regelingen ort'!R18*'cao regelingen ort'!$B18 -> 7.266134185 | S39: ='cao regelingen ort'!S18*'cao regelingen ort'!$B18 -> 7.266134185 | T39: ='cao regelingen ort'!T18*'cao regelingen ort'!$B18 -> 7.266134185 | U39: ='cao regelingen ort'!U18*'cao regelingen ort'!$B18 -> 7.266134185 | V39: ='cao regelingen ort'!V18*'cao regelingen ort'!$B18 -> 7.266134185 | W39: ='cao regelingen ort'!W18*'cao regelingen ort'!$B18 -> 7.266134185 | X39: ='cao regelingen ort'!X18*'cao regelingen ort'!$B18 -> 7.266134185 | Y39: ='cao regelingen ort'!Y18*'cao regelingen ort'!$B18 -> 7.266134185 | Z39: ='cao regelingen ort'!Z18*'cao regelingen ort'!$B18 -> 7.266134185 | AA39: ='cao regelingen ort'!AA18*'cao regelingen ort'!$B18 -> 7.266134185
C40: =Lijsten!$F$3 -> Jeugdzorg | D40: ='cao regelingen ort'!D19*'cao regelingen ort'!$B19 -> 7.787817891 | E40: ='cao regelingen ort'!E19*'cao regelingen ort'!$B19 -> 7.787817891 | F40: ='cao regelingen ort'!F19*'cao regelingen ort'!$B19 -> 7.787817891 | G40: ='cao regelingen ort'!G19*'cao regelingen ort'!$B19 -> 7.787817891 | H40: ='cao regelingen ort'!H19*'cao regelingen ort'!$B19 -> 7.787817891 | I40: ='cao regelingen ort'!I19*'cao regelingen ort'!$B19 -> 7.787817891 | J40: ='cao regelingen ort'!J19*'cao regelingen ort'!$B19 -> 7.787817891 | K40: ='cao regelingen ort'!K19*'cao regelingen ort'!$B19 -> 7.787817891 | L40: ='cao regelingen ort'!L19*'cao regelingen ort'!$B19 -> 7.787817891 | M40: ='cao regelingen ort'!M19*'cao regelingen ort'!$B19 -> 7.787817891 | N40: ='cao regelingen ort'!N19*'cao regelingen ort'!$B19 -> 7.787817891 | O40: ='cao regelingen ort'!O19*'cao regelingen ort'!$B19 -> 7.787817891 | P40: ='cao regelingen ort'!P19*'cao regelingen ort'!$B19 -> 7.787817891 | Q40: ='cao regelingen ort'!Q19*'cao regelingen ort'!$B19 -> 7.787817891 | R40: ='cao regelingen ort'!R19*'cao regelingen ort'!$B19 -> 7.787817891 | S40: ='cao regelingen ort'!S19*'cao regelingen ort'!$B19 -> 7.787817891 | T40: ='cao regelingen ort'!T19*'cao regelingen ort'!$B19 -> 7.787817891 | U40: ='cao regelingen ort'!U19*'cao regelingen ort'!$B19 -> 7.787817891 | V40: ='cao regelingen ort'!V19*'cao regelingen ort'!$B19 -> 7.787817891 | W40: ='cao regelingen ort'!W19*'cao regelingen ort'!$B19 -> 7.787817891 | X40: ='cao regelingen ort'!X19*'cao regelingen ort'!$B19 -> 7.787817891 | Y40: ='cao regelingen ort'!Y19*'cao regelingen ort'!$B19 -> 7.787817891 | Z40: ='cao regelingen ort'!Z19*'cao regelingen ort'!$B19 -> 7.787817891 | AA40: ='cao regelingen ort'!AA19*'cao regelingen ort'!$B19 -> 7.787817891
C41: =Lijsten!$F$4 -> GGZ | D41: ='cao regelingen ort'!D20*'cao regelingen ort'!$B20 -> 9.228115016 | E41: ='cao regelingen ort'!E20*'cao regelingen ort'!$B20 -> 9.228115016 | F41: ='cao regelingen ort'!F20*'cao regelingen ort'!$B20 -> 9.228115016 | G41: ='cao regelingen ort'!G20*'cao regelingen ort'!$B20 -> 9.228115016 | H41: ='cao regelingen ort'!H20*'cao regelingen ort'!$B20 -> 9.228115016 | I41: ='cao regelingen ort'!I20*'cao regelingen ort'!$B20 -> 9.228115016 | J41: ='cao regelingen ort'!J20*'cao regelingen ort'!$B20 -> 9.228115016 | K41: ='cao regelingen ort'!K20*'cao regelingen ort'!$B20 -> 9.228115016 | L41: ='cao regelingen ort'!L20*'cao regelingen ort'!$B20 -> 9.228115016 | M41: ='cao regelingen ort'!M20*'cao regelingen ort'!$B20 -> 9.228115016 | N41: ='cao regelingen ort'!N20*'cao regelingen ort'!$B20 -> 9.228115016 | O41: ='cao regelingen ort'!O20*'cao regelingen ort'!$B20 -> 9.228115016 | P41: ='cao regelingen ort'!P20*'cao regelingen ort'!$B20 -> 9.228115016 | Q41: ='cao regelingen ort'!Q20*'cao regelingen ort'!$B20 -> 9.228115016 | R41: ='cao regelingen ort'!R20*'cao regelingen ort'!$B20 -> 9.228115016 | S41: ='cao regelingen ort'!S20*'cao regelingen ort'!$B20 -> 9.228115016 | T41: ='cao regelingen ort'!T20*'cao regelingen ort'!$B20 -> 9.228115016 | U41: ='cao regelingen ort'!U20*'cao regelingen ort'!$B20 -> 9.228115016 | V41: ='cao regelingen ort'!V20*'cao regelingen ort'!$B20 -> 9.228115016 | W41: ='cao regelingen ort'!W20*'cao regelingen ort'!$B20 -> 9.228115016 | X41: ='cao regelingen ort'!X20*'cao regelingen ort'!$B20 -> 9.228115016 | Y41: ='cao regelingen ort'!Y20*'cao regelingen ort'!$B20 -> 9.228115016 | Z41: ='cao regelingen ort'!Z20*'cao regelingen ort'!$B20 -> 9.228115016 | AA41: ='cao regelingen ort'!AA20*'cao regelingen ort'!$B20 -> 9.228115016
C42: =Lijsten!$F$5 -> Gehandicaptenzorg | D42: ='cao regelingen ort'!D21*'cao regelingen ort'!$B21 -> 9.500319489 | E42: ='cao regelingen ort'!E21*'cao regelingen ort'!$B21 -> 9.500319489 | F42: ='cao regelingen ort'!F21*'cao regelingen ort'!$B21 -> 9.500319489 | G42: ='cao regelingen ort'!G21*'cao regelingen ort'!$B21 -> 9.500319489 | H42: ='cao regelingen ort'!H21*'cao regelingen ort'!$B21 -> 9.500319489 | I42: ='cao regelingen ort'!I21*'cao regelingen ort'!$B21 -> 9.500319489 | J42: ='cao regelingen ort'!J21*'cao regelingen ort'!$B21 -> 9.500319489 | K42: ='cao regelingen ort'!K21*'cao regelingen ort'!$B21 -> 9.500319489 | L42: ='cao regelingen ort'!L21*'cao regelingen ort'!$B21 -> 9.500319489 | M42: ='cao regelingen ort'!M21*'cao regelingen ort'!$B21 -> 9.500319489 | N42: ='cao regelingen ort'!N21*'cao regelingen ort'!$B21 -> 9.500319489 | O42: ='cao regelingen ort'!O21*'cao regelingen ort'!$B21 -> 9.500319489 | P42: ='cao regelingen ort'!P21*'cao regelingen ort'!$B21 -> 9.500319489 | Q42: ='cao regelingen ort'!Q21*'cao regelingen ort'!$B21 -> 9.500319489 | R42: ='cao regelingen ort'!R21*'cao regelingen ort'!$B21 -> 9.500319489 | S42: ='cao regelingen ort'!S21*'cao regelingen ort'!$B21 -> 9.500319489 | T42: ='cao regelingen ort'!T21*'cao regelingen ort'!$B21 -> 9.500319489 | U42: ='cao regelingen ort'!U21*'cao regelingen ort'!$B21 -> 9.500319489 | V42: ='cao regelingen ort'!V21*'cao regelingen ort'!$B21 -> 9.500319489 | W42: ='cao regelingen ort'!W21*'cao regelingen ort'!$B21 -> 9.500319489 | X42: ='cao regelingen ort'!X21*'cao regelingen ort'!$B21 -> 9.500319489 | Y42: ='cao regelingen ort'!Y21*'cao regelingen ort'!$B21 -> 9.500319489 | Z42: ='cao regelingen ort'!Z21*'cao regelingen ort'!$B21 -> 9.500319489 | AA42: ='cao regelingen ort'!AA21*'cao regelingen ort'!$B21 -> 9.500319489
C43: =Lijsten!$F$6 -> VVT | D43: ='cao regelingen ort'!D22*'cao regelingen ort'!$B22 -> 9.972 | E43: ='cao regelingen ort'!E22*'cao regelingen ort'!$B22 -> 9.972 | F43: ='cao regelingen ort'!F22*'cao regelingen ort'!$B22 -> 9.972 | G43: ='cao regelingen ort'!G22*'cao regelingen ort'!$B22 -> 9.972 | H43: ='cao regelingen ort'!H22*'cao regelingen ort'!$B22 -> 9.972 | I43: ='cao regelingen ort'!I22*'cao regelingen ort'!$B22 -> 9.972 | J43: ='cao regelingen ort'!J22*'cao regelingen ort'!$B22 -> 9.972 | K43: ='cao regelingen ort'!K22*'cao regelingen ort'!$B22 -> 9.972 | L43: ='cao regelingen ort'!L22*'cao regelingen ort'!$B22 -> 9.972 | M43: ='cao regelingen ort'!M22*'cao regelingen ort'!$B22 -> 9.972 | N43: ='cao regelingen ort'!N22*'cao regelingen ort'!$B22 -> 9.972 | O43: ='cao regelingen ort'!O22*'cao regelingen ort'!$B22 -> 9.972 | P43: ='cao regelingen ort'!P22*'cao regelingen ort'!$B22 -> 9.972 | Q43: ='cao regelingen ort'!Q22*'cao regelingen ort'!$B22 -> 9.972 | R43: ='cao regelingen ort'!R22*'cao regelingen ort'!$B22 -> 9.972 | S43: ='cao regelingen ort'!S22*'cao regelingen ort'!$B22 -> 9.972 | T43: ='cao regelingen ort'!T22*'cao regelingen ort'!$B22 -> 9.972 | U43: ='cao regelingen ort'!U22*'cao regelingen ort'!$B22 -> 9.972 | V43: ='cao regelingen ort'!V22*'cao regelingen ort'!$B22 -> 9.972 | W43: ='cao regelingen ort'!W22*'cao regelingen ort'!$B22 -> 9.972 | X43: ='cao regelingen ort'!X22*'cao regelingen ort'!$B22 -> 9.972 | Y43: ='cao regelingen ort'!Y22*'cao regelingen ort'!$B22 -> 9.972 | Z43: ='cao regelingen ort'!Z22*'cao regelingen ort'!$B22 -> 9.972 | AA43: ='cao regelingen ort'!AA22*'cao regelingen ort'!$B22 -> 9.972

Sheet Onderhoudsblad (hidden)
D2: Jaar
B3: Voor de tariefbepaling van welk jaar wordt dit bestand gebruikt? | D3: 2021 | J3: Het model is gebouwd voor de tariefstelling 2019. Bij gebruik in een volgend jaar, vul in voor welk jaar de tarieven worden bepaald.
D5: =Lijsten!F2 -> Sociaal werk | E5: =Lijsten!F4 -> GGZ | F5: =Lijsten!F3 -> Jeugdzorg | G5: =Lijsten!F5 -> Gehandicaptenzorg | I5: =Lijsten!F6 -> VVT
B6: Vanaf welke datum zijn de cao-bedragen van de 'Salaristabel cao' op tabblad 'cao's'? | D6: =INDEX('cao''s'!$D$4:$I$5,2,MATCH(D5,'cao''s'!$D$4:$I$4,0)) -> 2020-07-01 | E6: =INDEX('cao''s'!$D$4:$I$5,2,MATCH(E5,'cao''s'!$D$4:$I$4,0)) -> 2020-08-01 | F6: =INDEX('cao''s'!$D$4:$I$5,2,MATCH(F5,'cao''s'!$D$4:$I$4,0)) -> 2020-01-01 | G6: =INDEX('cao''s'!$D$4:$I$5,2,MATCH(G5,'cao''s'!$D$4:$I$4,0)) -> 2019-01-01 | I6: =INDEX('cao''s'!$D$4:$I$5,2,MATCH(I5,'cao''s'!$D$4:$I$4,0)) -> 2018-10-01 | K6: Het model is oorspronkelijk gevuld met salarissen 2018. Neem bij voorkeur uit alle cao's de max bedragen over. Het alternatief is hieronder alleen de loonsverhoging in te vullen. Het model verhoogt de caobedragen dan automatisch. Dat is minder betrouwbaar, soms krijgen bepaalde schalen bijvoorbeeld extra verhogingen.
B7: Vanaf welke datum zijn de cao-bedragen van de tabel 'Minimum bedragen cao' op tabblad 'cao's'? | D7: ='cao''s'!M6 -> 2020-07-01 | E7: ='cao''s'!M7 -> 2020-08-01 | F7: ='cao''s'!M8 -> 2018-07-01 | G7: ='cao''s'!M9 -> 2019-01-01 | I7: ='cao''s'!M10 -> 2019-05-01 | K7: Voor de minimumbedragen voor vakantiegeld en eindejaarsuitkering geldt hetzelfde als voor de salarisbedragen.
B8: Van welk jaar (prijspeil) zijn de bedragen 'overhead per fte' op tablad 'Inputblad'? | D8: 2021 | J8: De oorspronkelijke bedragen van 20.000, 25.000 en 5950 zijn genormeerd prijspeil 2019. Ook deze kosten stijgen jaarlijks, grotendeels met de cao-stijging, deels ook met de inflatie. Kies nieuwe bedragen (en vul hier het jaar / prijspeil in waarvoor die nieuwe bedragen gelden) of laat het model de oorspronkelijke bedragen al dan niet verhogen.
C12: Onderhoud tarieven | D12: 2018-01-01 | E12: 2019-01-01 | F12: 2020-01-01 | G12: 2021-01-01 | H12: 2022-01-01 | I12: 2023-01-01 | J12: 2024-01-01 | K12: 2025-01-01 | L12: 2026-01-01 | M12: 2027-01-01 | N12: 2028-01-01 | O12: 2029-01-01 | P12: 2030-01-01
B13: =Lijsten!F2 -> Sociaal werk | C13: ="Loonsverhoging "&Lijsten!$F$2 -> Loonsverhoging Sociaal werk | G13: 0.025
C14: ="Ingangsdatum loonverhoging "&Lijsten!$F$2 -> Ingangsdatum loonverhoging Sociaal werk | G14: 2021-01-01
C15: ="Loonsverhoging "&Lijsten!$F$2&" als rekenfactor" -> Loonsverhoging Sociaal werk als rekenfactor | D15: =IF(YEAR(D$12)>$D$3,0,IF(YEAR(D$12)=$D$3,1+ROUND((362-_xlfn.DAYS(D14,D$12))/362,2)*D13,1+D13)) -> 1 | E15: 1 | F15: 1 | G15: =IF(YEAR(G$12)>$D$3,0,IF(YEAR(G$12)=$D$3,1+ROUND((362-_xlfn.DAYS(G14,G$12))/362,2)*G13,1+G13)) -> 1.025 | H15: =IF(YEAR(H$12)>$D$3,0,IF(YEAR(H$12)=$D$3,1+ROUND((362-_xlfn.DAYS(H14,H$12))/362,2)*H13,1+H13)) -> 0 | I15: 0 | J15: 0 | K15: 0 | L15: 0 | M15: 0 | N15: 0 | O15: 0 | P15: 0
C16: ="Effectieve loonstijging voor "&Lijsten!$F$2&" t/m "&$D$3 -> Effectieve loonstijging voor Sociaal werk t/m 2021 | D16: =IF(YEAR(D$12)=$D$3,IF(PRODUCT(IF($D14:D14>INDEX($D$5:$I$6,2,MATCH($B13,$D$5:$I$5,0)),$D15:D15))=0,0,PRODUCT(IF($D14:D14>INDEX($D$5:$I$6,2,MATCH($B13,$D$5:$I$5,0)),$D15:D15))-1),0) -> 0 | E16: =IF(YEAR(E$12)=$D$3,IF(PRODUCT(IF($D14:E14>INDEX($D$5:$I$6,2,MATCH($B13,$D$5:$I$5,0)),$D15:E15))=0,0,PRODUCT(IF($D14:E14>INDEX($D$5:$I$6,2,MATCH($B13,$D$5:$I$5,0)),$D15:E15))-1),0) -> 0 | F16: =IF(YEAR(F$12)=$D$3,IF(PRODUCT(IF($D14:F14>INDEX($D$5:$I$6,2,MATCH($B13,$D$5:$I$5,0)),$D15:F15))=0,0,PRODUCT(IF($D14:F14>INDEX($D$5:$I$6,2,MATCH($B13,$D$5:$I$5,0)),$D15:F15))-1),0) -> 0 | G16: =IF(YEAR(G$12)=$D$3,IF(PRODUCT(IF($D14:G14>INDEX($D$5:$I$6,2,MATCH($B13,$D$5:$I$5,0)),$D15:G15))=0,0,PRODUCT(IF($D14:G14>INDEX($D$5:$I$6,2,MATCH($B13,$D$5:$I$5,0)),$D15:G15))-1),0) -> 0.025 | H16: =IF(YEAR(H$12)=$D$3,IF(PRODUCT(IF($D14:H14>INDEX($D$5:$I$6,2,MATCH($B13,$D$5:$I$5,0)),$D15:H15))=0,0,PRODUCT(IF($D14:H14>INDEX($D$5:$I$6,2,MATCH($B13,$D$5:$I$5,0)),$D15:H15))-1),0) -> 0 | I16: =IF(YEAR(I$12)=$D$3,IF(PRODUCT(IF($D14:I14>INDEX($D$5:$I$6,2,MATCH($B13,$D$5:$I$5,0)),$D15:I15))=0,0,PRODUCT(IF($D14:I14>INDEX($D$5:$I$6,2,MATCH($B13,$D$5:$I$5,0)),$D15:I15))-1),0) -> 0 | J16: =IF(YEAR(J$12)=$D$3,IF(PRODUCT(IF($D14:J14>INDEX($D$5:$I$6,2,MATCH($B13,$D$5:$I$5,0)),$D15:J15))=0,0,PRODUCT(IF($D14:J14>INDEX($D$5:$I$6,2,MATCH($B13,$D$5:$I$5,0)),$D15:J15))-1),0) -> 0 | K16: =IF(YEAR(K$12)=$D$3,IF(PRODUCT(IF($D14:K14>INDEX($D$5:$I$6,2,MATCH($B13,$D$5:$I$5,0)),$D15:K15))=0,0,PRODUCT(IF($D14:K14>INDEX($D$5:$I$6,2,MATCH($B13,$D$5:$I$5,0)),$D15:K15))-1),0) -> 0 | L16: =IF(YEAR(L$12)=$D$3,IF(PRODUCT(IF($D14:L14>INDEX($D$5:$I$6,2,MATCH($B13,$D$5:$I$5,0)),$D15:L15))=0,0,PRODUCT(IF($D14:L14>INDEX($D$5:$I$6,2,MATCH($B13,$D$5:$I$5,0)),$D15:L15))-1),0) -> 0 | M16: =IF(YEAR(M$12)=$D$3,IF(PRODUCT(IF($D14:M14>INDEX($D$5:$I$6,2,MATCH($B13,$D$5:$I$5,0)),$D15:M15))=0,0,PRODUCT(IF($D14:M14>INDEX($D$5:$I$6,2,MATCH($B13,$D$5:$I$5,0)),$D15:M15))-1),0) -> 0 | N16: =IF(YEAR(N$12)=$D$3,IF(PRODUCT(IF($D14:N14>INDEX($D$5:$I$6,2,MATCH($B13,$D$5:$I$5,0)),$D15:N15))=0,0,PRODUCT(IF($D14:N14>INDEX($D$5:$I$6,2,MATCH($B13,$D$5:$I$5,0)),$D15:N15))-1),0) -> 0 | O16: =IF(YEAR(O$12)=$D$3,IF(PRODUCT(IF($D14:O14>INDEX($D$5:$I$6,2,MATCH($B13,$D$5:$I$5,0)),$D15:O15))=0,0,PRODUCT(IF($D14:O14>INDEX($D$5:$I$6,2,MATCH($B13,$D$5:$I$5,0)),$D15:O15))-1),0) -> 0 | P16: =IF(YEAR(P$12)=$D$3,IF(PRODUCT(IF($D14:P14>INDEX($D$5:$I$6,2,MATCH($B13,$D$5:$I$5,0)),$D15:P15))=0,0,PRODUCT(IF($D14:P14>INDEX($D$5:$I$6,2,MATCH($B13,$D$5:$I$5,0)),$D15:P15))-1),0) -> 0
B17: =Lijsten!F3 -> Jeugdzorg | C17: ="Loonsverhoging "&Lijsten!$F$3 -> Loonsverhoging Jeugdzorg | F17: 0.04 | G17: 0.025
C18: ="Ingangsdatum loonverhoging "&Lijsten!$F$3 -> Ingangsdatum loonverhoging Jeugdzorg | F18: 2020-01-01 | G18: 2021-01-01
C19: ="Loonsverhoging "&Lijsten!$F$3&" als rekenfactor" -> Loonsverhoging Jeugdzorg als rekenfactor | D19: =IF(YEAR(D$12)>$D$3,0,IF(YEAR(D$12)=$D$3,1+ROUND((362-_xlfn.DAYS(D18,D$12))/362,2)*D17,1+D17)) -> 1 | E19: =IF(YEAR(E$12)>$D$3,0,IF(YEAR(E$12)=$D$3,1+ROUND((362-_xlfn.DAYS(E18,E$12))/362,2)*E17,1+E17)) -> 1 | F19: =IF(YEAR(F$12)>$D$3,0,IF(YEAR(F$12)=$D$3,1+ROUND((362-_xlfn.DAYS(F18,F$12))/362,2)*F17,1+F17)) -> 1.04 | G19: =IF(YEAR(G$12)>$D$3,0,IF(YEAR(G$12)=$D$3,1+ROUND((362-_xlfn.DAYS(G18,G$12))/362,2)*G17,1+G17)) -> 1.025 | H19: =IF(YEAR(H$12)>$D$3,0,IF(YEAR(H$12)=$D$3,1+ROUND((362-_xlfn.DAYS(H18,H$12))/362,2)*H17,1+H17)) -> 0 | I19: =IF(YEAR(I$12)>$D$3,0,IF(YEAR(I$12)=$D$3,1+ROUND((362-_xlfn.DAYS(I18,I$12))/362,2)*I17,1+I17)) -> 0 | J19: =IF(YEAR(J$12)>$D$3,0,IF(YEAR(J$12)=$D$3,1+ROUND((362-_xlfn.DAYS(J18,J$12))/362,2)*J17,1+J17)) -> 0 | K19: =IF(YEAR(K$12)>$D$3,0,IF(YEAR(K$12)=$D$3,1+ROUND((362-_xlfn.DAYS(K18,K$12))/362,2)*K17,1+K17)) -> 0 | L19: =IF(YEAR(L$12)>$D$3,0,IF(YEAR(L$12)=$D$3,1+ROUND((362-_xlfn.DAYS(L18,L$12))/362,2)*L17,1+L17)) -> 0 | M19: =IF(YEAR(M$12)>$D$3,0,IF(YEAR(M$12)=$D$3,1+ROUND((362-_xlfn.DAYS(M18,M$12))/362,2)*M17,1+M17)) -> 0 | N19: =IF(YEAR(N$12)>$D$3,0,IF(YEAR(N$12)=$D$3,1+ROUND((362-_xlfn.DAYS(N18,N$12))/362,2)*N17,1+N17)) -> 0 | O19: =IF(YEAR(O$12)>$D$3,0,IF(YEAR(O$12)=$D$3,1+ROUND((362-_xlfn.DAYS(O18,O$12))/362,2)*O17,1+O17)) -> 0 | P19: =IF(YEAR(P$12)>$D$3,0,IF(YEAR(P$12)=$D$3,1+ROUND((362-_xlfn.DAYS(P18,P$12))/362,2)*P17,1+P17)) -> 0
C20: ="Effectieve loonstijging voor "&Lijsten!$F$3&" t/m "&$D$3 -> Effectieve loonstijging voor Jeugdzorg t/m 2021 | D20: =IF(YEAR(D$12)=$D$3,IF(PRODUCT(IF($D18:D18>INDEX($D$5:$I$6,2,MATCH($B17,$D$5:$I$5,0)),$D19:D19))=0,0,PRODUCT(IF($D18:D18>INDEX($D$5:$I$6,2,MATCH($B17,$D$5:$I$5,0)),$D19:D19))-1),0) -> 0 | E20: =IF(YEAR(E$12)=$D$3,IF(PRODUCT(IF($D18:E18>INDEX($D$5:$I$6,2,MATCH($B17,$D$5:$I$5,0)),$D19:E19))=0,0,PRODUCT(IF($D18:E18>INDEX($D$5:$I$6,2,MATCH($B17,$D$5:$I$5,0)),$D19:E19))-1),0) -> 0 | F20: =IF(YEAR(F$12)=$D$3,IF(PRODUCT(IF($D18:F18>INDEX($D$5:$I$6,2,MATCH($B17,$D$5:$I$5,0)),$D19:F19))=0,0,PRODUCT(IF($D18:F18>INDEX($D$5:$I$6,2,MATCH($B17,$D$5:$I$5,0)),$D19:F19))-1),0) -> 0 | G20: =IF(YEAR(G$12)=$D$3,IF(PRODUCT(IF($D18:G18>INDEX($D$5:$I$6,2,MATCH($B17,$D$5:$I$5,0)),$D19:G19))=0,0,PRODUCT(IF($D18:G18>INDEX($D$5:$I$6,2,MATCH($B17,$D$5:$I$5,0)),$D19:G19))-1),0) -> 0.025 | H20: =IF(YEAR(H$12)=$D$3,IF(PRODUCT(IF($D18:H18>INDEX($D$5:$I$6,2,MATCH($B17,$D$5:$I$5,0)),$D19:H19))=0,0,PRODUCT(IF($D18:H18>INDEX($D$5:$I$6,2,MATCH($B17,$D$5:$I$5,0)),$D19:H19))-1),0) -> 0 | I20: =IF(YEAR(I$12)=$D$3,IF(PRODUCT(IF($D18:I18>INDEX($D$5:$I$6,2,MATCH($B17,$D$5:$I$5,0)),$D19:I19))=0,0,PRODUCT(IF($D18:I18>INDEX($D$5:$I$6,2,MATCH($B17,$D$5:$I$5,0)),$D19:I19))-1),0) -> 0 | J20: =IF(YEAR(J$12)=$D$3,IF(PRODUCT(IF($D18:J18>INDEX($D$5:$I$6,2,MATCH($B17,$D$5:$I$5,0)),$D19:J19))=0,0,PRODUCT(IF($D18:J18>INDEX($D$5:$I$6,2,MATCH($B17,$D$5:$I$5,0)),$D19:J19))-1),0) -> 0 | K20: =IF(YEAR(K$12)=$D$3,IF(PRODUCT(IF($D18:K18>INDEX($D$5:$I$6,2,MATCH($B17,$D$5:$I$5,0)),$D19:K19))=0,0,PRODUCT(IF($D18:K18>INDEX($D$5:$I$6,2,MATCH($B17,$D$5:$I$5,0)),$D19:K19))-1),0) -> 0 | L20: =IF(YEAR(L$12)=$D$3,IF(PRODUCT(IF($D18:L18>INDEX($D$5:$I$6,2,MATCH($B17,$D$5:$I$5,0)),$D19:L19))=0,0,PRODUCT(IF($D18:L18>INDEX($D$5:$I$6,2,MATCH($B17,$D$5:$I$5,0)),$D19:L19))-1),0) -> 0 | M20: =IF(YEAR(M$12)=$D$3,IF(PRODUCT(IF($D18:M18>INDEX($D$5:$I$6,2,MATCH($B17,$D$5:$I$5,0)),$D19:M19))=0,0,PRODUCT(IF($D18:M18>INDEX($D$5:$I$6,2,MATCH($B17,$D$5:$I$5,0)),$D19:M19))-1),0) -> 0 | N20: =IF(YEAR(N$12)=$D$3,IF(PRODUCT(IF($D18:N18>INDEX($D$5:$I$6,2,MATCH($B17,$D$5:$I$5,0)),$D19:N19))=0,0,PRODUCT(IF($D18:N18>INDEX($D$5:$I$6,2,MATCH($B17,$D$5:$I$5,0)),$D19:N19))-1),0) -> 0 | O20: =IF(YEAR(O$12)=$D$3,IF(PRODUCT(IF($D18:O18>INDEX($D$5:$I$6,2,MATCH($B17,$D$5:$I$5,0)),$D19:O19))=0,0,PRODUCT(IF($D18:O18>INDEX($D$5:$I$6,2,MATCH($B17,$D$5:$I$5,0)),$D19:O19))-1),0) -> 0 | P20: =IF(YEAR(P$12)=$D$3,IF(PRODUCT(IF($D18:P18>INDEX($D$5:$I$6,2,MATCH($B17,$D$5:$I$5,0)),$D19:P19))=0,0,PRODUCT(IF($D18:P18>INDEX($D$5:$I$6,2,MATCH($B17,$D$5:$I$5,0)),$D19:P19))-1),0) -> 0
B21: =Lijsten!F4 -> GGZ | C21: ="Loonsverhoging "&Lijsten!$F$4 -> Loonsverhoging GGZ | E21: 0.03 | F21: 0.03 | G21: 0.021
C22: ="Ingangsdatum loonverhoging "&Lijsten!$F$4 -> Ingangsdatum loonverhoging GGZ | E22: 2019-10-01 | F22: 2020-08-01 | G22: 2021-06-01
C23: ="Loonsverhoging "&Lijsten!$F$4&" als rekenfactor" -> Loonsverhoging GGZ als rekenfactor | D23: =IF(YEAR(D$12)>$D$3,0,IF(YEAR(D$12)=$D$3,1+ROUND((362-_xlfn.DAYS(D22,D$12))/362,2)*D21,1+D21)) -> 1 | E23: =IF(YEAR(E$12)>$D$3,0,IF(YEAR(E$12)=$D$3,1+ROUND((362-_xlfn.DAYS(E22,E$12))/362,2)*E21,1+E21)) -> 1.03 | F23: =IF(YEAR(F$12)>$D$3,0,IF(YEAR(F$12)=$D$3,1+ROUND((362-_xlfn.DAYS(F22,F$12))/362,2)*F21,1+F21)) -> 1.03 | G23: =IF(YEAR(G$12)>$D$3,0,IF(YEAR(G$12)=$D$3,1+ROUND((362-_xlfn.DAYS(G22,G$12))/362,2)*G21,1+G21)) -> 1.01218 | H23: =IF(YEAR(H$12)>$D$3,0,IF(YEAR(H$12)=$D$3,1+ROUND((362-_xlfn.DAYS(H22,H$12))/362,2)*H21,1+H21)) -> 0 | I23: =IF(YEAR(I$12)>$D$3,0,IF(YEAR(I$12)=$D$3,1+ROUND((362-_xlfn.DAYS(I22,I$12))/362,2)*I21,1+I21)) -> 0 | J23: =IF(YEAR(J$12)>$D$3,0,IF(YEAR(J$12)=$D$3,1+ROUND((362-_xlfn.DAYS(J22,J$12))/362,2)*J21,1+J21)) -> 0 | K23: =IF(YEAR(K$12)>$D$3,0,IF(YEAR(K$12)=$D$3,1+ROUND((362-_xlfn.DAYS(K22,K$12))/362,2)*K21,1+K21)) -> 0 | L23: =IF(YEAR(L$12)>$D$3,0,IF(YEAR(L$12)=$D$3,1+ROUND((362-_xlfn.DAYS(L22,L$12))/362,2)*L21,1+L21)) -> 0 | M23: =IF(YEAR(M$12)>$D$3,0,IF(YEAR(M$12)=$D$3,1+ROUND((362-_xlfn.DAYS(M22,M$12))/362,2)*M21,1+M21)) -> 0 | N23: =IF(YEAR(N$12)>$D$3,0,IF(YEAR(N$12)=$D$3,1+ROUND((362-_xlfn.DAYS(N22,N$12))/362,2)*N21,1+N21)) -> 0 | O23: =IF(YEAR(O$12)>$D$3,0,IF(YEAR(O$12)=$D$3,1+ROUND((362-_xlfn.DAYS(O22,O$12))/362,2)*O21,1+O21)) -> 0 | P23: =IF(YEAR(P$12)>$D$3,0,IF(YEAR(P$12)=$D$3,1+ROUND((362-_xlfn.DAYS(P22,P$12))/362,2)*P21,1+P21)) -> 0
C24: ="Effectieve loonstijging voor "&Lijsten!$F$4&" t/m "&$D$3 -> Effectieve loonstijging voor GGZ t/m 2021 | D24: =IF(YEAR(D$12)=$D$3,IF(PRODUCT(IF($D22:D22>INDEX($D$5:$I$6,2,MATCH($B21,$D$5:$I$5,0)),$D23:D23))=0,0,PRODUCT(IF($D22:D22>INDEX($D$5:$I$6,2,MATCH($B21,$D$5:$I$5,0)),$D23:D23))-1),0) -> 0 | E24: =IF(YEAR(E$12)=$D$3,IF(PRODUCT(IF($D22:E22>INDEX($D$5:$I$6,2,MATCH($B21,$D$5:$I$5,0)),$D23:E23))=0,0,PRODUCT(IF($D22:E22>INDEX($D$5:$I$6,2,MATCH($B21,$D$5:$I$5,0)),$D23:E23))-1),0) -> 0 | F24: =IF(YEAR(F$12)=$D$3,IF(PRODUCT(IF($D22:F22>INDEX($D$5:$I$6,2,MATCH($B21,$D$5:$I$5,0)),$D23:F23))=0,0,PRODUCT(IF($D22:F22>INDEX($D$5:$I$6,2,MATCH($B21,$D$5:$I$5,0)),$D23:F23))-1),0) -> 0 | G24: =IF(YEAR(G$12)=$D$3,IF(PRODUCT(IF($D22:G22>INDEX($D$5:$I$6,2,MATCH($B21,$D$5:$I$5,0)),$D23:G23))=0,0,PRODUCT(IF($D22:G22>INDEX($D$5:$I$6,2,MATCH($B21,$D$5:$I$5,0)),$D23:G23))-1),0) -> 0.01218 | H24: =IF(YEAR(H$12)=$D$3,IF(PRODUCT(IF($D22:H22>INDEX($D$5:$I$6,2,MATCH($B21,$D$5:$I$5,0)),$D23:H23))=0,0,PRODUCT(IF($D22:H22>INDEX($D$5:$I$6,2,MATCH($B21,$D$5:$I$5,0)),$D23:H23))-1),0) -> 0 | I24: =IF(YEAR(I$12)=$D$3,IF(PRODUCT(IF($D22:I22>INDEX($D$5:$I$6,2,MATCH($B21,$D$5:$I$5,0)),$D23:I23))=0,0,PRODUCT(IF($D22:I22>INDEX($D$5:$I$6,2,MATCH($B21,$D$5:$I$5,0)),$D23:I23))-1),0) -> 0 | J24: =IF(YEAR(J$12)=$D$3,IF(PRODUCT(IF($D22:J22>INDEX($D$5:$I$6,2,MATCH($B21,$D$5:$I$5,0)),$D23:J23))=0,0,PRODUCT(IF($D22:J22>INDEX($D$5:$I$6,2,MATCH($B21,$D$5:$I$5,0)),$D23:J23))-1),0) -> 0 | K24: =IF(YEAR(K$12)=$D$3,IF(PRODUCT(IF($D22:K22>INDEX($D$5:$I$6,2,MATCH($B21,$D$5:$I$5,0)),$D23:K23))=0,0,PRODUCT(IF($D22:K22>INDEX($D$5:$I$6,2,MATCH($B21,$D$5:$I$5,0)),$D23:K23))-1),0) -> 0 | L24: =IF(YEAR(L$12)=$D$3,IF(PRODUCT(IF($D22:L22>INDEX($D$5:$I$6,2,MATCH($B21,$D$5:$I$5,0)),$D23:L23))=0,0,PRODUCT(IF($D22:L22>INDEX($D$5:$I$6,2,MATCH($B21,$D$5:$I$5,0)),$D23:L23))-1),0) -> 0 | M24: =IF(YEAR(M$12)=$D$3,IF(PRODUCT(IF($D22:M22>INDEX($D$5:$I$6,2,MATCH($B21,$D$5:$I$5,0)),$D23:M23))=0,0,PRODUCT(IF($D22:M22>INDEX($D$5:$I$6,2,MATCH($B21,$D$5:$I$5,0)),$D23:M23))-1),0) -> 0 | N24: =IF(YEAR(N$12)=$D$3,IF(PRODUCT(IF($D22:N22>INDEX($D$5:$I$6,2,MATCH($B21,$D$5:$I$5,0)),$D23:N23))=0,0,PRODUCT(IF($D22:N22>INDEX($D$5:$I$6,2,MATCH($B21,$D$5:$I$5,0)),$D23:N23))-1),0) -> 0 | O24: =IF(YEAR(O$12)=$D$3,IF(PRODUCT(IF($D22:O22>INDEX($D$5:$I$6,2,MATCH($B21,$D$5:$I$5,0)),$D23:O23))=0,0,PRODUCT(IF($D22:O22>INDEX($D$5:$I$6,2,MATCH($B21,$D$5:$I$5,0)),$D23:O23))-1),0) -> 0 | P24: =IF(YEAR(P$12)=$D$3,IF(PRODUCT(IF($D22:P22>INDEX($D$5:$I$6,2,MATCH($B21,$D$5:$I$5,0)),$D23:P23))=0,0,PRODUCT(IF($D22:P22>INDEX($D$5:$I$6,2,MATCH($B21,$D$5:$I$5,0)),$D23:P23))-1),0) -> 0
B25: =Lijsten!F5 -> Gehandicaptenzorg | C25: ="Loonsverhoging "&Lijsten!$F$5 -> Loonsverhoging Gehandicaptenzorg | F25: 0.034 | G25: 0.0314
C26: ="Ingangsdatum loonverhoging "&Lijsten!$F$5 -> Ingangsdatum loonverhoging Gehandicaptenzorg | E26: 2019-01-01 | F26: 2020-06-01 | G26: 2021-06-01
C27: ="Loonsverhoging "&Lijsten!$F$5&" als rekenfactor" -> Loonsverhoging Gehandicaptenzorg als rekenfactor | D27: =IF(YEAR(D$12)>$D$3,0,IF(YEAR(D$12)=$D$3,1+ROUND((362-_xlfn.DAYS(D26,D$12))/362,2)*D25,1+D25)) -> 1 | E27: =IF(YEAR(E$12)>$D$3,0,IF(YEAR(E$12)=$D$3,1+ROUND((362-_xlfn.DAYS(E26,E$12))/362,2)*E25,1+E25)) -> 1 | F27: =IF(YEAR(F$12)>$D$3,0,IF(YEAR(F$12)=$D$3,1+ROUND((362-_xlfn.DAYS(F26,F$12))/362,2)*F25,1+F25)) -> 1.034 | G27: =IF(YEAR(G$12)>$D$3,0,IF(YEAR(G$12)=$D$3,1+ROUND((362-_xlfn.DAYS(G26,G$12))/362,2)*G25,1+G25)) -> 1.018212 | H27: =IF(YEAR(H$12)>$D$3,0,IF(YEAR(H$12)=$D$3,1+ROUND((362-_xlfn.DAYS(H26,H$12))/362,2)*H25,1+H25)) -> 0 | I27: =IF(YEAR(I$12)>$D$3,0,IF(YEAR(I$12)=$D$3,1+ROUND((362-_xlfn.DAYS(I26,I$12))/362,2)*I25,1+I25)) -> 0 | J27: =IF(YEAR(J$12)>$D$3,0,IF(YEAR(J$12)=$D$3,1+ROUND((362-_xlfn.DAYS(J26,J$12))/362,2)*J25,1+J25)) -> 0 | K27: =IF(YEAR(K$12)>$D$3,0,IF(YEAR(K$12)=$D$3,1+ROUND((362-_xlfn.DAYS(K26,K$12))/362,2)*K25,1+K25)) -> 0 | L27: =IF(YEAR(L$12)>$D$3,0,IF(YEAR(L$12)=$D$3,1+ROUND((362-_xlfn.DAYS(L26,L$12))/362,2)*L25,1+L25)) -> 0 | M27: =IF(YEAR(M$12)>$D$3,0,IF(YEAR(M$12)=$D$3,1+ROUND((362-_xlfn.DAYS(M26,M$12))/362,2)*M25,1+M25)) -> 0 | N27: =IF(YEAR(N$12)>$D$3,0,IF(YEAR(N$12)=$D$3,1+ROUND((362-_xlfn.DAYS(N26,N$12))/362,2)*N25,1+N25)) -> 0 | O27: =IF(YEAR(O$12)>$D$3,0,IF(YEAR(O$12)=$D$3,1+ROUND((362-_xlfn.DAYS(O26,O$12))/362,2)*O25,1+O25)) -> 0 | P27: =IF(YEAR(P$12)>$D$3,0,IF(YEAR(P$12)=$D$3,1+ROUND((362-_xlfn.DAYS(P26,P$12))/362,2)*P25,1+P25)) -> 0
C28: ="Effectieve loonstijging voor "&Lijsten!$F$5&" t/m "&$D$3 -> Effectieve loonstijging voor Gehandicaptenzorg t/m 2021 | D28: =IF(YEAR(D$12)=$D$3,IF(PRODUCT(IF($D26:D26>INDEX($D$5:$I$6,2,MATCH($B25,$D$5:$I$5,0)),$D27:D27))=0,0,PRODUCT(IF($D26:D26>INDEX($D$5:$I$6,2,MATCH($B25,$D$5:$I$5,0)),$D27:D27))-1),0) -> 0 | E28: =IF(YEAR(E$12)=$D$3,IF(PRODUCT(IF($D26:E26>INDEX($D$5:$I$6,2,MATCH($B25,$D$5:$I$5,0)),$D27:E27))=0,0,PRODUCT(IF($D26:E26>INDEX($D$5:$I$6,2,MATCH($B25,$D$5:$I$5,0)),$D27:E27))-1),0) -> 0 | F28: =IF(YEAR(F$12)=$D$3,IF(PRODUCT(IF($D26:F26>INDEX($D$5:$I$6,2,MATCH($B25,$D$5:$I$5,0)),$D27:F27))=0,0,PRODUCT(IF($D26:F26>INDEX($D$5:$I$6,2,MATCH($B25,$D$5:$I$5,0)),$D27:F27))-1),0) -> 0 | G28: =IF(YEAR(G$12)=$D$3,IF(PRODUCT(IF($D26:G26>INDEX($D$5:$I$6,2,MATCH($B25,$D$5:$I$5,0)),$D27:G27))=0,0,PRODUCT(IF($D26:G26>INDEX($D$5:$I$6,2,MATCH($B25,$D$5:$I$5,0)),$D27:G27))-1),0) -> 0.052831208 | H28: =IF(YEAR(H$12)=$D$3,IF(PRODUCT(IF($D26:H26>INDEX($D$5:$I$6,2,MATCH($B25,$D$5:$I$5,0)),$D27:H27))=0,0,PRODUCT(IF($D26:H26>INDEX($D$5:$I$6,2,MATCH($B25,$D$5:$I$5,0)),$D27:H27))-1),0) -> 0 | I28: =IF(YEAR(I$12)=$D$3,IF(PRODUCT(IF($D26:I26>INDEX($D$5:$I$6,2,MATCH($B25,$D$5:$I$5,0)),$D27:I27))=0,0,PRODUCT(IF($D26:I26>INDEX($D$5:$I$6,2,MATCH($B25,$D$5:$I$5,0)),$D27:I27))-1),0) -> 0 | J28: =IF(YEAR(J$12)=$D$3,IF(PRODUCT(IF($D26:J26>INDEX($D$5:$I$6,2,MATCH($B25,$D$5:$I$5,0)),$D27:J27))=0,0,PRODUCT(IF($D26:J26>INDEX($D$5:$I$6,2,MATCH($B25,$D$5:$I$5,0)),$D27:J27))-1),0) -> 0 | K28: =IF(YEAR(K$12)=$D$3,IF(PRODUCT(IF($D26:K26>INDEX($D$5:$I$6,2,MATCH($B25,$D$5:$I$5,0)),$D27:K27))=0,0,PRODUCT(IF($D26:K26>INDEX($D$5:$I$6,2,MATCH($B25,$D$5:$I$5,0)),$D27:K27))-1),0) -> 0 | L28: =IF(YEAR(L$12)=$D$3,IF(PRODUCT(IF($D26:L26>INDEX($D$5:$I$6,2,MATCH($B25,$D$5:$I$5,0)),$D27:L27))=0,0,PRODUCT(IF($D26:L26>INDEX($D$5:$I$6,2,MATCH($B25,$D$5:$I$5,0)),$D27:L27))-1),0) -> 0 | M28: =IF(YEAR(M$12)=$D$3,IF(PRODUCT(IF($D26:M26>INDEX($D$5:$I$6,2,MATCH($B25,$D$5:$I$5,0)),$D27:M27))=0,0,PRODUCT(IF($D26:M26>INDEX($D$5:$I$6,2,MATCH($B25,$D$5:$I$5,0)),$D27:M27))-1),0) -> 0 | N28: =IF(YEAR(N$12)=$D$3,IF(PRODUCT(IF($D26:N26>INDEX($D$5:$I$6,2,MATCH($B25,$D$5:$I$5,0)),$D27:N27))=0,0,PRODUCT(IF($D26:N26>INDEX($D$5:$I$6,2,MATCH($B25,$D$5:$I$5,0)),$D27:N27))-1),0) -> 0 | O28: =IF(YEAR(O$12)=$D$3,IF(PRODUCT(IF($D26:O26>INDEX($D$5:$I$6,2,MATCH($B25,$D$5:$I$5,0)),$D27:O27))=0,0,PRODUCT(IF($D26:O26>INDEX($D$5:$I$6,2,MATCH($B25,$D$5:$I$5,0)),$D27:O27))-1),0) -> 0 | P28: =IF(YEAR(P$12)=$D$3,IF(PRODUCT(IF($D26:P26>INDEX($D$5:$I$6,2,MATCH($B25,$D$5:$I$5,0)),$D27:P27))=0,0,PRODUCT(IF($D26:P26>INDEX($D$5:$I$6,2,MATCH($B25,$D$5:$I$5,0)),$D27:P27))-1),0) -> 0
B29: =Lijsten!F6 -> VVT | C29: ="Loonsverhoging "&Lijsten!$F$6 -> Loonsverhoging VVT | F29: 0.035 | G29: 0.03
C30: ="Ingangsdatum loonverhoging "&Lijsten!$F$6 -> Ingangsdatum loonverhoging VVT | E30: 2019-01-01 | F30: 2020-06-01 | G30: 2021-07-01
C31: ="Loonsverhoging "&Lijsten!$F$6&" als rekenfactor" -> Loonsverhoging VVT als rekenfactor | D31: =IF(YEAR(D$12)>$D$3,0,IF(YEAR(D$12)=$D$3,1+ROUND((362-_xlfn.DAYS(D30,D$12))/362,2)*D29,1+D29)) -> 1 | E31: =IF(YEAR(E$12)>$D$3,0,IF(YEAR(E$12)=$D$3,1+ROUND((362-_xlfn.DAYS(E30,E$12))/362,2)*E29,1+E29)) -> 1 | F31: =IF(YEAR(F$12)>$D$3,0,IF(YEAR(F$12)=$D$3,1+ROUND((362-_xlfn.DAYS(F30,F$12))/362,2)*F29,1+F29)) -> 1.035 | G31: =IF(YEAR(G$12)>$D$3,0,IF(YEAR(G$12)=$D$3,1+ROUND((362-_xlfn.DAYS(G30,G$12))/362,2)*G29,1+G29)) -> 1.015 | H31: =IF(YEAR(H$12)>$D$3,0,IF(YEAR(H$12)=$D$3,1+ROUND((362-_xlfn.DAYS(H30,H$12))/362,2)*H29,1+H29)) -> 0 | I31: =IF(YEAR(I$12)>$D$3,0,IF(YEAR(I$12)=$D$3,1+ROUND((362-_xlfn.DAYS(I30,I$12))/362,2)*I29,1+I29)) -> 0 | J31: =IF(YEAR(J$12)>$D$3,0,IF(YEAR(J$12)=$D$3,1+ROUND((362-_xlfn.DAYS(J30,J$12))/362,2)*J29,1+J29)) -> 0 | K31: =IF(YEAR(K$12)>$D$3,0,IF(YEAR(K$12)=$D$3,1+ROUND((362-_xlfn.DAYS(K30,K$12))/362,2)*K29,1+K29)) -> 0 | L31: =IF(YEAR(L$12)>$D$3,0,IF(YEAR(L$12)=$D$3,1+ROUND((362-_xlfn.DAYS(L30,L$12))/362,2)*L29,1+L29)) -> 0 | M31: =IF(YEAR(M$12)>$D$3,0,IF(YEAR(M$12)=$D$3,1+ROUND((362-_xlfn.DAYS(M30,M$12))/362,2)*M29,1+M29)) -> 0 | N31: =IF(YEAR(N$12)>$D$3,0,IF(YEAR(N$12)=$D$3,1+ROUND((362-_xlfn.DAYS(N30,N$12))/362,2)*N29,1+N29)) -> 0 | O31: =IF(YEAR(O$12)>$D$3,0,IF(YEAR(O$12)=$D$3,1+ROUND((362-_xlfn.DAYS(O30,O$12))/362,2)*O29,1+O29)) -> 0 | P31: =IF(YEAR(P$12)>$D$3,0,IF(YEAR(P$12)=$D$3,1+ROUND((362-_xlfn.DAYS(P30,P$12))/362,2)*P29,1+P29)) -> 0
C32: ="Effectieve loonstijging voor "&Lijsten!$F$6&" t/m "&$D$3 -> Effectieve loonstijging voor VVT t/m 2021 | D32: =IF(YEAR(D$12)=$D$3,IF(PRODUCT(IF($D30:D30>INDEX($D$5:$I$6,2,MATCH($B29,$D$5:$I$5,0)),$D31:D31))=0,0,PRODUCT(IF($D30:D30>INDEX($D$5:$I$6,2,MATCH($B29,$D$5:$I$5,0)),$D31:D31))-1),0) -> 0 | E32: =IF(YEAR(E$12)=$D$3,IF(PRODUCT(IF($D30:E30>INDEX($D$5:$I$6,2,MATCH($B29,$D$5:$I$5,0)),$D31:E31))=0,0,PRODUCT(IF($D30:E30>INDEX($D$5:$I$6,2,MATCH($B29,$D$5:$I$5,0)),$D31:E31))-1),0) -> 0 | F32: =IF(YEAR(F$12)=$D$3,IF(PRODUCT(IF($D30:F30>INDEX($D$5:$I$6,2,MATCH($B29,$D$5:$I$5,0)),$D31:F31))=0,0,PRODUCT(IF($D30:F30>INDEX($D$5:$I$6,2,MATCH($B29,$D$5:$I$5,0)),$D31:F31))-1),0) -> 0 | G32: =IF(YEAR(G$12)=$D$3,IF(PRODUCT(IF($D30:G30>INDEX($D$5:$I$6,2,MATCH($B29,$D$5:$I$5,0)),$D31:G31))=0,0,PRODUCT(IF($D30:G30>INDEX($D$5:$I$6,2,MATCH($B29,$D$5:$I$5,0)),$D31:G31))-1),0) -> 0.050525 | H32: =IF(YEAR(H$12)=$D$3,IF(PRODUCT(IF($D30:H30>INDEX($D$5:$I$6,2,MATCH($B29,$D$5:$I$5,0)),$D31:H31))=0,0,PRODUCT(IF($D30:H30>INDEX($D$5:$I$6,2,MATCH($B29,$D$5:$I$5,0)),$D31:H31))-1),0) -> 0 | I32: =IF(YEAR(I$12)=$D$3,IF(PRODUCT(IF($D30:I30>INDEX($D$5:$I$6,2,MATCH($B29,$D$5:$I$5,0)),$D31:I31))=0,0,PRODUCT(IF($D30:I30>INDEX($D$5:$I$6,2,MATCH($B29,$D$5:$I$5,0)),$D31:I31))-1),0) -> 0 | J32: =IF(YEAR(J$12)=$D$3,IF(PRODUCT(IF($D30:J30>INDEX($D$5:$I$6,2,MATCH($B29,$D$5:$I$5,0)),$D31:J31))=0,0,PRODUCT(IF($D30:J30>INDEX($D$5:$I$6,2,MATCH($B29,$D$5:$I$5,0)),$D31:J31))-1),0) -> 0 | K32: =IF(YEAR(K$12)=$D$3,IF(PRODUCT(IF($D30:K30>INDEX($D$5:$I$6,2,MATCH($B29,$D$5:$I$5,0)),$D31:K31))=0,0,PRODUCT(IF($D30:K30>INDEX($D$5:$I$6,2,MATCH($B29,$D$5:$I$5,0)),$D31:K31))-1),0) -> 0 | L32: =IF(YEAR(L$12)=$D$3,IF(PRODUCT(IF($D30:L30>INDEX($D$5:$I$6,2,MATCH($B29,$D$5:$I$5,0)),$D31:L31))=0,0,PRODUCT(IF($D30:L30>INDEX($D$5:$I$6,2,MATCH($B29,$D$5:$I$5,0)),$D31:L31))-1),0) -> 0 | M32: =IF(YEAR(M$12)=$D$3,IF(PRODUCT(IF($D30:M30>INDEX($D$5:$I$6,2,MATCH($B29,$D$5:$I$5,0)),$D31:M31))=0,0,PRODUCT(IF($D30:M30>INDEX($D$5:$I$6,2,MATCH($B29,$D$5:$I$5,0)),$D31:M31))-1),0) -> 0 | N32: =IF(YEAR(N$12)=$D$3,IF(PRODUCT(IF($D30:N30>INDEX($D$5:$I$6,2,MATCH($B29,$D$5:$I$5,0)),$D31:N31))=0,0,PRODUCT(IF($D30:N30>INDEX($D$5:$I$6,2,MATCH($B29,$D$5:$I$5,0)),$D31:N31))-1),0) -> 0 | O32: =IF(YEAR(O$12)=$D$3,IF(PRODUCT(IF($D30:O30>INDEX($D$5:$I$6,2,MATCH($B29,$D$5:$I$5,0)),$D31:O31))=0,0,PRODUCT(IF($D30:O30>INDEX($D$5:$I$6,2,MATCH($B29,$D$5:$I$5,0)),$D31:O31))-1),0) -> 0 | P32: =IF(YEAR(P$12)=$D$3,IF(PRODUCT(IF($D30:P30>INDEX($D$5:$I$6,2,MATCH($B29,$D$5:$I$5,0)),$D31:P31))=0,0,PRODUCT(IF($D30:P30>INDEX($D$5:$I$6,2,MATCH($B29,$D$5:$I$5,0)),$D31:P31))-1),0) -> 0
B33: Overhead | C33: Stijging overhead (loon en materieel samen) | E33: 0 | F33: =IFERROR(AVERAGE(#REF!,F13,F17,F21,F25),0) -> 0 | G33: 0 | H33: 0 | I33: 0 | J33: 0 | K33: 0 | L33: 0 | M33: 0 | N33: 0 | O33: 0 | P33: 0
C34: Loonsverhoging overhead als rekenfactor | D34: =IF(YEAR(D$12)>$D$3,0,1+D33) -> 1 | E34: 1 | F34: 1 | G34: 1 | H34: 0 | I34: 0 | J34: 0 | K34: 0 | L34: 0 | M34: 0 | N34: 0 | O34: 0 | P34: 0
C35: ="Effectief percentage stijging overhead voor "&$D$3 -> Effectief percentage stijging overhead voor 2021 | D35: =IF(YEAR(D$12)=$D$3,PRODUCT(IF($D12:D12>#REF!,$D34:D34))-1,0) -> 0 | E35: =IF(YEAR(E$12)=$D$3,PRODUCT(IF($D12:E12>D8,$D34:E34))-1,0) -> 0 | F35: 0 | G35: 0 | H35: 0 | I35: 0 | J35: =IF(YEAR(J$12)=$D$3,PRODUCT(IF($D12:J12>J8,$D34:J34))-1,0) -> 0 | K35: =IF(YEAR(K$12)=$D$3,PRODUCT(IF($D12:K12>#REF!,$D34:K34))-1,0) -> 0 | L35: =IF(YEAR(L$12)=$D$3,PRODUCT(IF($D12:L12>K8,$D34:L34))-1,0) -> 0 | M35: 0 | N35: 0 | O35: 0 | P35: 0

Sheet Werkbare uren (hidden)
B4: Berekening werkbare uren BG en BH bij fulltime dienstverband
B5: 365/7*40 | C5: Bruto beschikbaar per jaar | D5: =365/7*40 -> 2085.714286
B6: 4 | C6: Arbeidsduurverkorting uren per week | D6: =365/7*B6 -> 208.5714286
C7: Bruto beschikbaar per jaar | D7: =D5-D6+1 -> 1878.142857
B8: 6 | C8: Feestdagen 2019 | D8: =B8*7.2 -> 43.2
B9: =Inputblad!C10 -> 200 | C9: Uren vakantie (=vakantiedagen x 7,2 uren) | D9: =B9 -> 200
B10: =Inputblad!C11 -> 13 | C10: Uren buitengewoon verlof (=verlofdagen x 7,2 uren) | D10: 13
B11: =Inputblad!C12 -> 0.05 | C11: ="Percentage ziekteverzuim (t.o.v. "&TEXT(D7,"0.000")&" uren)" -> Percentage ziekteverzuim (t.o.v. 1.878 uren) | D11: =B11*D7 -> 93.90714286
B12: =Inputblad!C13 -> 13 | C12: Uren vitaliteit/levensfase budget | D12: =B12 -> 13
B13: =Inputblad!C14 -> 40 | C13: Uren opleidingen (=opleidingsdagen x 7,2 uren) | D13: 40
B14: 75 | C14: Overleg en overig indirect | D14: 75
B15: Werkbare uren per jaar | D15: =D7-SUM(D8:D14) -> 1400.035714

Sheet cao-stijgingen (hidden)
B2: ="Berekende effectieve cao-bedragen voor tariefstelling "&Onderhoudsblad!D3 -> Berekende effectieve cao-bedragen voor tariefstelling 2021 | L2: ="Berekende cao minimum-bedragen voor tariefstelling "&Onderhoudsblad!D3 -> Berekende cao minimum-bedragen voor tariefstelling 2021
B4: Salaristabel cao | D4: =Lijsten!F6 -> VVT | E4: =Lijsten!F4 -> GGZ | F4: =Lijsten!F5 -> Gehandicaptenzorg | H4: =Lijsten!F3 -> Jeugdzorg | I4: =Lijsten!F2 -> Sociaal werk | L4: Minimumbedragen cao | P4: ="Loon- en prijsstijgingen naar prijspeil "&Onderhoudsblad!D3 -> Loon- en prijsstijgingen naar prijspeil 2021
B5: Opleiding | C5: schaal | E5: max | F5: max | G5: Schaal | H5: max | I5: max | L5: cao | M5: eindejaars_over_vakantiegeld | N5: eindejaars | O5: vakantiegeld | P5: Loonstijging | Q5: Overhead
C6: ='cao''s'!C7 -> FWG 10 | D6: ='cao''s'!D7*INDEX($L$6:$Q$10,MATCH(D$4,$L$6:$L$10,0),MATCH($P$5,$L$5:$Q$5,0)) -> 1801.314207 | E6: ='cao''s'!E7*INDEX($L$6:$Q$10,MATCH(E$4,$L$6:$L$10,0),MATCH($P$5,$L$5:$Q$5,0)) -> 2102.29786 | F6: ='cao''s'!F7*INDEX($L$6:$Q$10,MATCH(F$4,$L$6:$L$10,0),MATCH($P$5,$L$5:$Q$5,0)) -> 2122.507715 | G6: ='cao''s'!G7 -> schaal 2 | H6: ='cao''s'!H7*INDEX($L$6:$Q$10,MATCH(H$4,$L$6:$L$10,0),MATCH($P$5,$L$5:$Q$5,0)) -> 2381.28 | I6: ='cao''s'!I7*INDEX($L$6:$Q$10,MATCH(I$4,$L$6:$L$10,0),MATCH($P$5,$L$5:$Q$5,0)) -> 2463.075 | L6: =Lijsten!F2 -> Sociaal werk | M6: met | N6: ='cao''s'!O6*P6 -> 1283.874 | O6: ='cao''s'!P6*P6 -> 2151.639 | P6: =1+INDEX(Onderhoudsblad!$D$12:$P$35,MATCH("Effectieve loonstijging voor "&L6&" t/m "&Onderhoudsblad!$D$3,Onderhoudsblad!$C$12:$C$35,0),MATCH(Onderhoudsblad!$D$3,YEAR(Onderhoudsblad!$D$12:$P$12),0)) -> 1.025 | Q6: =1+INDEX(Onderhoudsblad!$D$12:$P$35,MATCH("Effectief percentage stijging overhead voor "&Onderhoudsblad!$D$3,Onderhoudsblad!$C$12:$C$35,0),MATCH(Onderhoudsblad!$D$3,YEAR(Onderhoudsblad!$D$12:$P$12),0)) -> 1
C7: ='cao''s'!C8 -> FWG 15 | D7: ='cao''s'!D8*INDEX($L$6:$Q$10,MATCH(D$4,$L$6:$L$10,0),MATCH($P$5,$L$5:$Q$5,0)) -> 2238.857869 | E7: ='cao''s'!E8*INDEX($L$6:$Q$10,MATCH(E$4,$L$6:$L$10,0),MATCH($P$5,$L$5:$Q$5,0)) -> 2245.01524 | F7: ='cao''s'!F8*INDEX($L$6:$Q$10,MATCH(F$4,$L$6:$L$10,0),MATCH($P$5,$L$5:$Q$5,0)) -> 2266.745591 | G7: ='cao''s'!G8 -> schaal 3 | H7: ='cao''s'!H8*INDEX($L$6:$Q$10,MATCH(H$4,$L$6:$L$10,0),MATCH($P$5,$L$5:$Q$5,0)) -> 2513.792 | I7: ='cao''s'!I8*INDEX($L$6:$Q$10,MATCH(I$4,$L$6:$L$10,0),MATCH($P$5,$L$5:$Q$5,0)) -> 2613.75 | L7: =Lijsten!F4 -> GGZ | M7: zonder | N7: ='cao''s'!O7*P7 -> 2384.753977 | O7: ='cao''s'!P7*P7 -> 2290.27993 | P7: =1+INDEX(Onderhoudsblad!$D$12:$P$35,MATCH("Effectieve loonstijging voor "&L7&" t/m "&Onderhoudsblad!$D$3,Onderhoudsblad!$C$12:$C$35,0),MATCH(Onderhoudsblad!$D$3,YEAR(Onderhoudsblad!$D$12:$P$12),0)) -> 1.01218 | Q7: =1+INDEX(Onderhoudsblad!$D$12:$P$35,MATCH("Effectief percentage stijging overhead voor "&Onderhoudsblad!$D$3,Onderhoudsblad!$C$12:$C$35,0),MATCH(Onderhoudsblad!$D$3,YEAR(Onderhoudsblad!$D$12:$P$12),0)) -> 1
C8: ='cao''s'!C9 -> FWG 20 | D8: ='cao''s'!D9*INDEX($L$6:$Q$10,MATCH(D$4,$L$6:$L$10,0),MATCH($P$5,$L$5:$Q$5,0)) -> 2380.100956 | E8: ='cao''s'!E9*INDEX($L$6:$Q$10,MATCH(E$4,$L$6:$L$10,0),MATCH($P$5,$L$5:$Q$5,0)) -> 2385.70826 | F8: ='cao''s'!F9*INDEX($L$6:$Q$10,MATCH(F$4,$L$6:$L$10,0),MATCH($P$5,$L$5:$Q$5,0)) -> 2407.824973 | G8: ='cao''s'!G9 -> schaal 4 | H8: ='cao''s'!H9*INDEX($L$6:$Q$10,MATCH(H$4,$L$6:$L$10,0),MATCH($P$5,$L$5:$Q$5,0)) -> 2689.01575 | I8: ='cao''s'!I9*INDEX($L$6:$Q$10,MATCH(I$4,$L$6:$L$10,0),MATCH($P$5,$L$5:$Q$5,0)) -> 2832.075 | L8: =Lijsten!F3 -> Jeugdzorg | M8: met | N8: ='cao''s'!O8*P8 -> 0 | O8: ='cao''s'!P8*P8 -> 2110.188 | P8: =1+INDEX(Onderhoudsblad!$D$12:$P$35,MATCH("Effectieve loonstijging voor "&L8&" t/m "&Onderhoudsblad!$D$3,Onderhoudsblad!$C$12:$C$35,0),MATCH(Onderhoudsblad!$D$3,YEAR(Onderhoudsblad!$D$12:$P$12),0)) -> 1.025 | Q8: =1+INDEX(Onderhoudsblad!$D$12:$P$35,MATCH("Effectief percentage stijging overhead voor "&Onderhoudsblad!$D$3,Onderhoudsblad!$C$12:$C$35,0),MATCH(Onderhoudsblad!$D$3,YEAR(Onderhoudsblad!$D$12:$P$12),0)) -> 1
C9: ='cao''s'!C10 -> FWG 25 | D9: ='cao''s'!D10*INDEX($L$6:$Q$10,MATCH(D$4,$L$6:$L$10,0),MATCH($P$5,$L$5:$Q$5,0)) -> 2518.51813 | E9: ='cao''s'!E10*INDEX($L$6:$Q$10,MATCH(E$4,$L$6:$L$10,0),MATCH($P$5,$L$5:$Q$5,0)) -> 2517.29166 | F9: ='cao''s'!F10*INDEX($L$6:$Q$10,MATCH(F$4,$L$6:$L$10,0),MATCH($P$5,$L$5:$Q$5,0)) -> 2540.481705 | G9: ='cao''s'!G10 -> schaal 5 | H9: ='cao''s'!H10*INDEX($L$6:$Q$10,MATCH(H$4,$L$6:$L$10,0),MATCH($P$5,$L$5:$Q$5,0)) -> 2887.18925 | I9: ='cao''s'!I10*INDEX($L$6:$Q$10,MATCH(I$4,$L$6:$L$10,0),MATCH($P$5,$L$5:$Q$5,0)) -> 3009.4 | L9: =Lijsten!F5 -> Gehandicaptenzorg | M9: zonder | N9: ='cao''s'!O9+N("wordt niet geïndexeerd!") -> 979.36 | O9: ='cao''s'!P9+N("wordt niet geïndexeerd!") -> 1519.2 | P9: =1+INDEX(Onderhoudsblad!$D$12:$P$35,MATCH("Effectieve loonstijging voor "&L9&" t/m "&Onderhoudsblad!$D$3,Onderhoudsblad!$C$12:$C$35,0),MATCH(Onderhoudsblad!$D$3,YEAR(Onderhoudsblad!$D$12:$P$12),0)) -> 1.052831208 | Q9: =1+INDEX(Onderhoudsblad!$D$12:$P$35,MATCH("Effectief percentage stijging overhead voor "&Onderhoudsblad!$D$3,Onderhoudsblad!$C$12:$C$35,0),MATCH(Onderhoudsblad!$D$3,YEAR(Onderhoudsblad!$D$12:$P$12),0)) -> 1
C10: ='cao''s'!C11 -> FWG 30 | D10: ='cao''s'!D11*INDEX($L$6:$Q$10,MATCH(D$4,$L$6:$L$10,0),MATCH($P$5,$L$5:$Q$5,0)) -> 2593.305004 | E10: ='cao''s'!E11*INDEX($L$6:$Q$10,MATCH(E$4,$L$6:$L$10,0),MATCH($P$5,$L$5:$Q$5,0)) -> 2653.93596 | F10: ='cao''s'!F11*INDEX($L$6:$Q$10,MATCH(F$4,$L$6:$L$10,0),MATCH($P$5,$L$5:$Q$5,0)) -> 2680.508256 | G10: ='cao''s'!G11 -> schaal 6 | H10: ='cao''s'!H11*INDEX($L$6:$Q$10,MATCH(H$4,$L$6:$L$10,0),MATCH($P$5,$L$5:$Q$5,0)) -> 3112.79175 | I10: ='cao''s'!I11*INDEX($L$6:$Q$10,MATCH(I$4,$L$6:$L$10,0),MATCH($P$5,$L$5:$Q$5,0)) -> 3360.975 | L10: =Lijsten!F6 -> VVT | M10: zonder | N10: ='cao''s'!O10*P10 -> 2164.376233 | O10: ='cao''s'!P9*P10 -> 1595.95758 | P10: =1+INDEX(Onderhoudsblad!$D$12:$P$35,MATCH("Effectieve loonstijging voor "&L10&" t/m "&Onderhoudsblad!$D$3,Onderhoudsblad!$C$12:$C$35,0),MATCH(Onderhoudsblad!$D$3,YEAR(Onderhoudsblad!$D$12:$P$12),0)) -> 1.050525 | Q10: =1+INDEX(Onderhoudsblad!$D$12:$P$35,MATCH("Effectief percentage stijging overhead voor "&Onderhoudsblad!$D$3,Onderhoudsblad!$C$12:$C$35,0),MATCH(Onderhoudsblad!$D$3,YEAR(Onderhoudsblad!$D$12:$P$12),0)) -> 1
C11: ='cao''s'!C12 -> FWG 35 | D11: ='cao''s'!D12*INDEX($L$6:$Q$10,MATCH(D$4,$L$6:$L$10,0),MATCH($P$5,$L$5:$Q$5,0)) -> 2803.777688 | E11: ='cao''s'!E12*INDEX($L$6:$Q$10,MATCH(E$4,$L$6:$L$10,0),MATCH($P$5,$L$5:$Q$5,0)) -> 2790.58026 | F11: ='cao''s'!F12*INDEX($L$6:$Q$10,MATCH(F$4,$L$6:$L$10,0),MATCH($P$5,$L$5:$Q$5,0)) -> 2816.323481 | G11: ='cao''s'!G12 -> schaal 7 | H11: ='cao''s'!H12*INDEX($L$6:$Q$10,MATCH(H$4,$L$6:$L$10,0),MATCH($P$5,$L$5:$Q$5,0)) -> 3367.658 | I11: ='cao''s'!I12*INDEX($L$6:$Q$10,MATCH(I$4,$L$6:$L$10,0),MATCH($P$5,$L$5:$Q$5,0)) -> 3581.35
C12: ='cao''s'!C13 -> FWG 40 | D12: ='cao''s'!D13*INDEX($L$6:$Q$10,MATCH(D$4,$L$6:$L$10,0),MATCH($P$5,$L$5:$Q$5,0)) -> 3015.616054 | E12: ='cao''s'!E13*INDEX($L$6:$Q$10,MATCH(E$4,$L$6:$L$10,0),MATCH($P$5,$L$5:$Q$5,0)) -> 3073.99066 | F12: ='cao''s'!F13*INDEX($L$6:$Q$10,MATCH(F$4,$L$6:$L$10,0),MATCH($P$5,$L$5:$Q$5,0)) -> 2955.297201 | G12: ='cao''s'!G13 -> schaal 8 | H12: ='cao''s'!H13*INDEX($L$6:$Q$10,MATCH(H$4,$L$6:$L$10,0),MATCH($P$5,$L$5:$Q$5,0)) -> 3658.2045 | I12: ='cao''s'!I13*INDEX($L$6:$Q$10,MATCH(I$4,$L$6:$L$10,0),MATCH($P$5,$L$5:$Q$5,0)) -> 3960.6
B13: hbo | C13: ='cao''s'!C14 -> FWG 45 | D13: ='cao''s'!D14*INDEX($L$6:$Q$10,MATCH(D$4,$L$6:$L$10,0),MATCH($P$5,$L$5:$Q$5,0)) -> 3313.250797 | E13: ='cao''s'!E14*INDEX($L$6:$Q$10,MATCH(E$4,$L$6:$L$10,0),MATCH($P$5,$L$5:$Q$5,0)) -> 3366.51068 | F13: ='cao''s'!F14*INDEX($L$6:$Q$10,MATCH(F$4,$L$6:$L$10,0),MATCH($P$5,$L$5:$Q$5,0)) -> 3246.931445 | G13: ='cao''s'!G14 -> schaal 9 | H13: ='cao''s'!H14*INDEX($L$6:$Q$10,MATCH(H$4,$L$6:$L$10,0),MATCH($P$5,$L$5:$Q$5,0)) -> 3985.774 | I13: ='cao''s'!I14*INDEX($L$6:$Q$10,MATCH(I$4,$L$6:$L$10,0),MATCH($P$5,$L$5:$Q$5,0)) -> 4358.3
C14: ='cao''s'!C15 -> FWG 50 | D14: ='cao''s'!D15*INDEX($L$6:$Q$10,MATCH(D$4,$L$6:$L$10,0),MATCH($P$5,$L$5:$Q$5,0)) -> 3763.253686 | E14: ='cao''s'!E15*INDEX($L$6:$Q$10,MATCH(E$4,$L$6:$L$10,0),MATCH($P$5,$L$5:$Q$5,0)) -> 3722.79804 | F14: ='cao''s'!F15*INDEX($L$6:$Q$10,MATCH(F$4,$L$6:$L$10,0),MATCH($P$5,$L$5:$Q$5,0)) -> 3690.173384 | G14: ='cao''s'!G15 -> schaal 10 | H14: ='cao''s'!H15*INDEX($L$6:$Q$10,MATCH(H$4,$L$6:$L$10,0),MATCH($P$5,$L$5:$Q$5,0)) -> 4362.34875 | I14: ='cao''s'!I15*INDEX($L$6:$Q$10,MATCH(I$4,$L$6:$L$10,0),MATCH($P$5,$L$5:$Q$5,0)) -> 4829.8 | L14: IN DIT TABBLAD NIETS INVULLEN!!!
C15: ='cao''s'!C16 -> FWG 55 | D15: ='cao''s'!D16*INDEX($L$6:$Q$10,MATCH(D$4,$L$6:$L$10,0),MATCH($P$5,$L$5:$Q$5,0)) -> 4224.350119 | E15: ='cao''s'!E16*INDEX($L$6:$Q$10,MATCH(E$4,$L$6:$L$10,0),MATCH($P$5,$L$5:$Q$5,0)) -> 4181.31558 | F15: ='cao''s'!F16*INDEX($L$6:$Q$10,MATCH(F$4,$L$6:$L$10,0),MATCH($P$5,$L$5:$Q$5,0)) -> 4156.577609 | G15: ='cao''s'!G16 -> schaal 11 | H15: ='cao''s'!H16*INDEX($L$6:$Q$10,MATCH(H$4,$L$6:$L$10,0),MATCH($P$5,$L$5:$Q$5,0)) -> 5018.6665 | I15: ='cao''s'!I16*INDEX($L$6:$Q$10,MATCH(I$4,$L$6:$L$10,0),MATCH($P$5,$L$5:$Q$5,0)) -> 5355.625
B16: wo | C16: ='cao''s'!C17 -> FWG 60 | D16: ='cao''s'!D17*INDEX($L$6:$Q$10,MATCH(D$4,$L$6:$L$10,0),MATCH($P$5,$L$5:$Q$5,0)) -> 4815.564579 | E16: ='cao''s'!E17*INDEX($L$6:$Q$10,MATCH(E$4,$L$6:$L$10,0),MATCH($P$5,$L$5:$Q$5,0)) -> 4676.2716 | F16: ='cao''s'!F17*INDEX($L$6:$Q$10,MATCH(F$4,$L$6:$L$10,0),MATCH($P$5,$L$5:$Q$5,0)) -> 4736.687605 | G16: ='cao''s'!G17 -> schaal 12 | H16: ='cao''s'!H17*INDEX($L$6:$Q$10,MATCH(H$4,$L$6:$L$10,0),MATCH($P$5,$L$5:$Q$5,0)) -> 5757.1995 | I16: ='cao''s'!I17*INDEX($L$6:$Q$10,MATCH(I$4,$L$6:$L$10,0),MATCH($P$5,$L$5:$Q$5,0)) -> 5946.025
B17: wo+ | C17: ='cao''s'!C18 -> FWG 65 | D17: ='cao''s'!D18*INDEX($L$6:$Q$10,MATCH(D$4,$L$6:$L$10,0),MATCH($P$5,$L$5:$Q$5,0)) -> 5668.443805 | E17: ='cao''s'!E18*INDEX($L$6:$Q$10,MATCH(E$4,$L$6:$L$10,0),MATCH($P$5,$L$5:$Q$5,0)) -> 5505.24702 | F17: ='cao''s'!F18*INDEX($L$6:$Q$10,MATCH(F$4,$L$6:$L$10,0),MATCH($P$5,$L$5:$Q$5,0)) -> 5575.794078 | G17: ='cao''s'!G18 -> 0 | H17: ='cao''s'!H18*INDEX($L$6:$Q$10,MATCH(H$4,$L$6:$L$10,0),MATCH($P$5,$L$5:$Q$5,0)) -> 0 | I17: ='cao''s'!I18*INDEX($L$6:$Q$10,MATCH(I$4,$L$6:$L$10,0),MATCH($P$5,$L$5:$Q$5,0)) -> 0
B18: wo++ | C18: ='cao''s'!C19 -> FWG 70 | D18: ='cao''s'!D19*INDEX($L$6:$Q$10,MATCH(D$4,$L$6:$L$10,0),MATCH($P$5,$L$5:$Q$5,0)) -> 6841.197389 | E18: ='cao''s'!E19*INDEX($L$6:$Q$10,MATCH(E$4,$L$6:$L$10,0),MATCH($P$5,$L$5:$Q$5,0)) -> 6643.94952 | F18: ='cao''s'!F19*INDEX($L$6:$Q$10,MATCH(F$4,$L$6:$L$10,0),MATCH($P$5,$L$5:$Q$5,0)) -> 6733.908406 | G18: ='cao''s'!G19 -> 0 | H18: ='cao''s'!H19*INDEX($L$6:$Q$10,MATCH(H$4,$L$6:$L$10,0),MATCH($P$5,$L$5:$Q$5,0)) -> 0 | I18: ='cao''s'!I19*INDEX($L$6:$Q$10,MATCH(I$4,$L$6:$L$10,0),MATCH($P$5,$L$5:$Q$5,0)) -> 0
B19: TG6 | C19: ='cao''s'!C20 -> FWG 75 | D19: ='cao''s'!D20*INDEX($L$6:$Q$10,MATCH(D$4,$L$6:$L$10,0),MATCH($P$5,$L$5:$Q$5,0)) -> 8268.67177 | E19: ='cao''s'!E20*INDEX($L$6:$Q$10,MATCH(E$4,$L$6:$L$10,0),MATCH($P$5,$L$5:$Q$5,0)) -> 8030.63612 | F19: ='cao''s'!F20*INDEX($L$6:$Q$10,MATCH(F$4,$L$6:$L$10,0),MATCH($P$5,$L$5:$Q$5,0)) -> 8149.966381 | G19: ='cao''s'!G20 -> 0 | H19: ='cao''s'!H20*INDEX($L$6:$Q$10,MATCH(H$4,$L$6:$L$10,0),MATCH($P$5,$L$5:$Q$5,0)) -> 0 | I19: ='cao''s'!I20*INDEX($L$6:$Q$10,MATCH(I$4,$L$6:$L$10,0),MATCH($P$5,$L$5:$Q$5,0)) -> 0
C20: ='cao''s'!C21 -> FWG 80 | D20: ='cao''s'!D21*INDEX($L$6:$Q$10,MATCH(D$4,$L$6:$L$10,0),MATCH($P$5,$L$5:$Q$5,0)) -> 9668.475322 | E20: ='cao''s'!E21*INDEX($L$6:$Q$10,MATCH(E$4,$L$6:$L$10,0),MATCH($P$5,$L$5:$Q$5,0)) -> 9391.00604 | F20: ='cao''s'!F21*INDEX($L$6:$Q$10,MATCH(F$4,$L$6:$L$10,0),MATCH($P$5,$L$5:$Q$5,0)) -> 9688.152776 | G20: ='cao''s'!G21 -> 0 | H20: ='cao''s'!H21*INDEX($L$6:$Q$10,MATCH(H$4,$L$6:$L$10,0),MATCH($P$5,$L$5:$Q$5,0)) -> 0 | I20: ='cao''s'!I21*INDEX($L$6:$Q$10,MATCH(I$4,$L$6:$L$10,0),MATCH($P$5,$L$5:$Q$5,0)) -> 0
B25: Salaristabel gemiddelde salarissen | C25: =D4 -> VVT | D25: GGZ | E25: Gehandicaptenzorg | F25: =H4 -> Jeugdzorg | G25: Sociaal werk | H25: Gemiddeld
B26: =Lijsten!E13 -> FWG 10 | C26: =IFERROR(INDEX('cao-stijgingen'!$C$4:$I$20,MATCH($B26,'cao-stijgingen'!$C$4:$C$20,0),MATCH(C$25,'cao-stijgingen'!$C$4:$I$4,0)),"") -> 1801.314207 | D26: =IFERROR(INDEX('cao-stijgingen'!$C$4:$I$20,MATCH($B26,'cao-stijgingen'!$C$4:$C$20,0),MATCH(D$25,'cao-stijgingen'!$C$4:$I$4,0)),"") -> 2102.29786 | E26: =IFERROR(INDEX('cao-stijgingen'!$C$4:$I$20,MATCH($B26,'cao-stijgingen'!$C$4:$C$20,0),MATCH(E$25,'cao-stijgingen'!$C$4:$I$4,0)),"") -> 2122.507715 | H26: =AVERAGEIF(C26:G26,">0",C26:G26) -> 2008.706594
B27: =Lijsten!E14 -> FWG 15 | C27: =IFERROR(INDEX('cao-stijgingen'!$C$4:$I$20,MATCH($B27,'cao-stijgingen'!$C$4:$C$20,0),MATCH(C$25,'cao-stijgingen'!$C$4:$I$4,0)),"") -> 2238.857869 | D27: =IFERROR(INDEX('cao-stijgingen'!$C$4:$I$20,MATCH($B27,'cao-stijgingen'!$C$4:$C$20,0),MATCH(D$25,'cao-stijgingen'!$C$4:$I$4,0)),"") -> 2245.01524 | E27: =IFERROR(INDEX('cao-stijgingen'!$C$4:$I$20,MATCH($B27,'cao-stijgingen'!$C$4:$C$20,0),MATCH(E$25,'cao-stijgingen'!$C$4:$I$4,0)),"") -> 2266.745591 | H27: 2250.206233
B28: =Lijsten!E15 -> FWG 20 | C28: =IFERROR(INDEX('cao-stijgingen'!$C$4:$I$20,MATCH($B28,'cao-stijgingen'!$C$4:$C$20,0),MATCH(C$25,'cao-stijgingen'!$C$4:$I$4,0)),"") -> 2380.100956 | D28: =IFERROR(INDEX('cao-stijgingen'!$C$4:$I$20,MATCH($B28,'cao-stijgingen'!$C$4:$C$20,0),MATCH(D$25,'cao-stijgingen'!$C$4:$I$4,0)),"") -> 2385.70826 | E28: =IFERROR(INDEX('cao-stijgingen'!$C$4:$I$20,MATCH($B28,'cao-stijgingen'!$C$4:$C$20,0),MATCH(E$25,'cao-stijgingen'!$C$4:$I$4,0)),"") -> 2407.824973 | H28: 2391.211396
B29: =Lijsten!E16 -> FWG 25 | C29: =IFERROR(INDEX('cao-stijgingen'!$C$4:$I$20,MATCH($B29,'cao-stijgingen'!$C$4:$C$20,0),MATCH(C$25,'cao-stijgingen'!$C$4:$I$4,0)),"") -> 2518.51813 | D29: =IFERROR(INDEX('cao-stijgingen'!$C$4:$I$20,MATCH($B29,'cao-stijgingen'!$C$4:$C$20,0),MATCH(D$25,'cao-stijgingen'!$C$4:$I$4,0)),"") -> 2517.29166 | E29: =IFERROR(INDEX('cao-stijgingen'!$C$4:$I$20,MATCH($B29,'cao-stijgingen'!$C$4:$C$20,0),MATCH(E$25,'cao-stijgingen'!$C$4:$I$4,0)),"") -> 2540.481705 | H29: 2525.430498
B30: =Lijsten!E17 -> FWG 30 | C30: =IFERROR(INDEX('cao-stijgingen'!$C$4:$I$20,MATCH($B30,'cao-stijgingen'!$C$4:$C$20,0),MATCH(C$25,'cao-stijgingen'!$C$4:$I$4,0)),"") -> 2593.305004 | D30: =IFERROR(INDEX('cao-stijgingen'!$C$4:$I$20,MATCH($B30,'cao-stijgingen'!$C$4:$C$20,0),MATCH(D$25,'cao-stijgingen'!$C$4:$I$4,0)),"") -> 2653.93596 | E30: =IFERROR(INDEX('cao-stijgingen'!$C$4:$I$20,MATCH($B30,'cao-stijgingen'!$C$4:$C$20,0),MATCH(E$25,'cao-stijgingen'!$C$4:$I$4,0)),"") -> 2680.508256 | H30: 2642.583073
B31: =Lijsten!E18 -> FWG 35 | C31: =IFERROR(INDEX('cao-stijgingen'!$C$4:$I$20,MATCH($B31,'cao-stijgingen'!$C$4:$C$20,0),MATCH(C$25,'cao-stijgingen'!$C$4:$I$4,0)),"") -> 2803.777688 | D31: =IFERROR(INDEX('cao-stijgingen'!$C$4:$I$20,MATCH($B31,'cao-stijgingen'!$C$4:$C$20,0),MATCH(D$25,'cao-stijgingen'!$C$4:$I$4,0)),"") -> 2790.58026 | E31: =IFERROR(INDEX('cao-stijgingen'!$C$4:$I$20,MATCH($B31,'cao-stijgingen'!$C$4:$C$20,0),MATCH(E$25,'cao-stijgingen'!$C$4:$I$4,0)),"") -> 2816.323481 | H31: 2803.560477
B32: =Lijsten!E19 -> FWG 40 | C32: =IFERROR(INDEX('cao-stijgingen'!$C$4:$I$20,MATCH($B32,'cao-stijgingen'!$C$4:$C$20,0),MATCH(C$25,'cao-stijgingen'!$C$4:$I$4,0)),"") -> 3015.616054 | D32: =IFERROR(INDEX('cao-stijgingen'!$C$4:$I$20,MATCH($B32,'cao-stijgingen'!$C$4:$C$20,0),MATCH(D$25,'cao-stijgingen'!$C$4:$I$4,0)),"") -> 3073.99066 | E32: =IFERROR(INDEX('cao-stijgingen'!$C$4:$I$20,MATCH($B32,'cao-stijgingen'!$C$4:$C$20,0),MATCH(E$25,'cao-stijgingen'!$C$4:$I$4,0)),"") -> 2955.297201 | H32: 3014.967972
B33: =Lijsten!E20 -> FWG 45 | C33: =IFERROR(INDEX('cao-stijgingen'!$C$4:$I$20,MATCH($B33,'cao-stijgingen'!$C$4:$C$20,0),MATCH(C$25,'cao-stijgingen'!$C$4:$I$4,0)),"") -> 3313.250797 | D33: =IFERROR(INDEX('cao-stijgingen'!$C$4:$I$20,MATCH($B33,'cao-stijgingen'!$C$4:$C$20,0),MATCH(D$25,'cao-stijgingen'!$C$4:$I$4,0)),"") -> 3366.51068 | E33: =IFERROR(INDEX('cao-stijgingen'!$C$4:$I$20,MATCH($B33,'cao-stijgingen'!$C$4:$C$20,0),MATCH(E$25,'cao-stijgingen'!$C$4:$I$4,0)),"") -> 3246.931445 | H33: 3308.897641
B34: =Lijsten!E21 -> FWG 50 | C34: =IFERROR(INDEX('cao-stijgingen'!$C$4:$I$20,MATCH($B34,'cao-stijgingen'!$C$4:$C$20,0),MATCH(C$25,'cao-stijgingen'!$C$4:$I$4,0)),"") -> 3763.253686 | D34: =IFERROR(INDEX('cao-stijgingen'!$C$4:$I$20,MATCH($B34,'cao-stijgingen'!$C$4:$C$20,0),MATCH(D$25,'cao-stijgingen'!$C$4:$I$4,0)),"") -> 3722.79804 | E34: =IFERROR(INDEX('cao-stijgingen'!$C$4:$I$20,MATCH($B34,'cao-stijgingen'!$C$4:$C$20,0),MATCH(E$25,'cao-stijgingen'!$C$4:$I$4,0)),"") -> 3690.173384 | H34: 3725.40837
B35: =Lijsten!E22 -> FWG 55 | C35: =IFERROR(INDEX('cao-stijgingen'!$C$4:$I$20,MATCH($B35,'cao-stijgingen'!$C$4:$C$20,0),MATCH(C$25,'cao-stijgingen'!$C$4:$I$4,0)),"") -> 4224.350119 | D35: =IFERROR(INDEX('cao-stijgingen'!$C$4:$I$20,MATCH($B35,'cao-stijgingen'!$C$4:$C$20,0),MATCH(D$25,'cao-stijgingen'!$C$4:$I$4,0)),"") -> 4181.31558 | E35: =IFERROR(INDEX('cao-stijgingen'!$C$4:$I$20,MATCH($B35,'cao-stijgingen'!$C$4:$C$20,0),MATCH(E$25,'cao-stijgingen'!$C$4:$I$4,0)),"") -> 4156.577609 | H35: 4187.414436
B36: =Lijsten!E23 -> FWG 60 | C36: =IFERROR(INDEX('cao-stijgingen'!$C$4:$I$20,MATCH($B36,'cao-stijgingen'!$C$4:$C$20,0),MATCH(C$25,'cao-stijgingen'!$C$4:$I$4,0)),"") -> 4815.564579 | D36: =IFERROR(INDEX('cao-stijgingen'!$C$4:$I$20,MATCH($B36,'cao-stijgingen'!$C$4:$C$20,0),MATCH(D$25,'cao-stijgingen'!$C$4:$I$4,0)),"") -> 4676.2716 | E36: =IFERROR(INDEX('cao-stijgingen'!$C$4:$I$20,MATCH($B36,'cao-stijgingen'!$C$4:$C$20,0),MATCH(E$25,'cao-stijgingen'!$C$4:$I$4,0)),"") -> 4736.687605 | H36: 4742.841261
B37: =Lijsten!E24 -> FWG 65 | C37: =IFERROR(INDEX('cao-stijgingen'!$C$4:$I$20,MATCH($B37,'cao-stijgingen'!$C$4:$C$20,0),MATCH(C$25,'cao-stijgingen'!$C$4:$I$4,0)),"") -> 5668.443805 | D37: =IFERROR(INDEX('cao-stijgingen'!$C$4:$I$20,MATCH($B37,'cao-stijgingen'!$C$4:$C$20,0),MATCH(D$25,'cao-stijgingen'!$C$4:$I$4,0)),"") -> 5505.24702 | E37: =IFERROR(INDEX('cao-stijgingen'!$C$4:$I$20,MATCH($B37,'cao-stijgingen'!$C$4:$C$20,0),MATCH(E$25,'cao-stijgingen'!$C$4:$I$4,0)),"") -> 5575.794078 | H37: 5583.161634
B38: =Lijsten!E25 -> FWG 70 | C38: =IFERROR(INDEX('cao-stijgingen'!$C$4:$I$20,MATCH($B38,'cao-stijgingen'!$C$4:$C$20,0),MATCH(C$25,'cao-stijgingen'!$C$4:$I$4,0)),"") -> 6841.197389 | D38: =IFERROR(INDEX('cao-stijgingen'!$C$4:$I$20,MATCH($B38,'cao-stijgingen'!$C$4:$C$20,0),MATCH(D$25,'cao-stijgingen'!$C$4:$I$4,0)),"") -> 6643.94952 | E38: =IFERROR(INDEX('cao-stijgingen'!$C$4:$I$20,MATCH($B38,'cao-stijgingen'!$C$4:$C$20,0),MATCH(E$25,'cao-stijgingen'!$C$4:$I$4,0)),"") -> 6733.908406 | H38: 6739.685105
B39: =Lijsten!E26 -> FWG 75 | C39: =IFERROR(INDEX('cao-stijgingen'!$C$4:$I$20,MATCH($B39,'cao-stijgingen'!$C$4:$C$20,0),MATCH(C$25,'cao-stijgingen'!$C$4:$I$4,0)),"") -> 8268.67177 | D39: =IFERROR(INDEX('cao-stijgingen'!$C$4:$I$20,MATCH($B39,'cao-stijgingen'!$C$4:$C$20,0),MATCH(D$25,'cao-stijgingen'!$C$4:$I$4,0)),"") -> 8030.63612 | E39: =IFERROR(INDEX('cao-stijgingen'!$C$4:$I$20,MATCH($B39,'cao-stijgingen'!$C$4:$C$20,0),MATCH(E$25,'cao-stijgingen'!$C$4:$I$4,0)),"") -> 8149.966381 | H39: 8149.75809
B40: =Lijsten!E27 -> FWG 80 | C40: =IFERROR(INDEX('cao-stijgingen'!$C$4:$I$20,MATCH($B40,'cao-stijgingen'!$C$4:$C$20,0),MATCH(C$25,'cao-stijgingen'!$C$4:$I$4,0)),"") -> 9668.475322 | D40: =IFERROR(INDEX('cao-stijgingen'!$C$4:$I$20,MATCH($B40,'cao-stijgingen'!$C$4:$C$20,0),MATCH(D$25,'cao-stijgingen'!$C$4:$I$4,0)),"") -> 9391.00604 | E40: =IFERROR(INDEX('cao-stijgingen'!$C$4:$I$20,MATCH($B40,'cao-stijgingen'!$C$4:$C$20,0),MATCH(E$25,'cao-stijgingen'!$C$4:$I$4,0)),"") -> 9688.152776 | H40: 9582.544713
B41: =Lijsten!E2 -> schaal 2 | C41: =IFERROR(INDEX('cao-stijgingen'!$C$4:$I$20,MATCH(#REF!,'cao-stijgingen'!$C$4:$C$20,0),MATCH(C$25,'cao-stijgingen'!$C$4:$I$4,0)),"") ->  | D41: =IFERROR(INDEX('cao-stijgingen'!$C$4:$I$20,MATCH(#REF!,'cao-stijgingen'!$C$4:$C$20,0),MATCH(D$25,'cao-stijgingen'!$C$4:$I$4,0)),"") ->  | E41: =IFERROR(INDEX('cao-stijgingen'!$C$4:$I$20,MATCH(#REF!,'cao-stijgingen'!$C$4:$C$20,0),MATCH(E$25,'cao-stijgingen'!$C$4:$I$4,0)),"") ->  | F41: =IFERROR(INDEX('cao-stijgingen'!$C$4:$I$20,MATCH($B41,'cao-stijgingen'!$G$4:$G$20,0),MATCH(F$25,'cao-stijgingen'!$C$4:$I$4,0)),"") -> 2381.28 | G41: =IFERROR(INDEX('cao-stijgingen'!$C$4:$I$20,MATCH($B41,'cao-stijgingen'!$G$4:$G$20,0),MATCH(G$25,'cao-stijgingen'!$C$4:$I$4,0)),"") -> 2463.075 | H41: 2422.1775
B42: =Lijsten!E3 -> schaal 3 | F42: =IFERROR(INDEX('cao-stijgingen'!$C$4:$I$20,MATCH($B42,'cao-stijgingen'!$G$4:$G$20,0),MATCH(F$25,'cao-stijgingen'!$C$4:$I$4,0)),"") -> 2513.792 | G42: =IFERROR(INDEX('cao-stijgingen'!$C$4:$I$20,MATCH($B42,'cao-stijgingen'!$G$4:$G$20,0),MATCH(G$25,'cao-stijgingen'!$C$4:$I$4,0)),"") -> 2613.75 | H42: 2563.771
B43: =Lijsten!E4 -> schaal 4 | F43: =IFERROR(INDEX('cao-stijgingen'!$C$4:$I$20,MATCH($B41,'cao-stijgingen'!$G$4:$G$20,0),MATCH(F$25,'cao-stijgingen'!$C$4:$I$4,0)),"") -> 2381.28 | G43: =IFERROR(INDEX('cao-stijgingen'!$C$4:$I$20,MATCH($B41,'cao-stijgingen'!$G$4:$G$20,0),MATCH(G$25,'cao-stijgingen'!$C$4:$I$4,0)),"") -> 2463.075 | H43: 2422.1775
B44: =Lijsten!E5 -> schaal 5 | F44: =IFERROR(INDEX('cao-stijgingen'!$C$4:$I$20,MATCH($B44,'cao-stijgingen'!$G$4:$G$20,0),MATCH(F$25,'cao-stijgingen'!$C$4:$I$4,0)),"") -> 2887.18925 | G44: =IFERROR(INDEX('cao-stijgingen'!$C$4:$I$20,MATCH($B44,'cao-stijgingen'!$G$4:$G$20,0),MATCH(G$25,'cao-stijgingen'!$C$4:$I$4,0)),"") -> 3009.4 | H44: 2948.294625
B45: =Lijsten!E6 -> schaal 6 | F45: =IFERROR(INDEX('cao-stijgingen'!$C$4:$I$20,MATCH($B45,'cao-stijgingen'!$G$4:$G$20,0),MATCH(F$25,'cao-stijgingen'!$C$4:$I$4,0)),"") -> 3112.79175 | G45: =IFERROR(INDEX('cao-stijgingen'!$C$4:$I$20,MATCH($B45,'cao-stijgingen'!$G$4:$G$20,0),MATCH(G$25,'cao-stijgingen'!$C$4:$I$4,0)),"") -> 3360.975 | H45: 3236.883375
B46: =Lijsten!E7 -> schaal 7 | F46: =IFERROR(INDEX('cao-stijgingen'!$C$4:$I$20,MATCH($B46,'cao-stijgingen'!$G$4:$G$20,0),MATCH(F$25,'cao-stijgingen'!$C$4:$I$4,0)),"") -> 3367.658 | G46: =IFERROR(INDEX('cao-stijgingen'!$C$4:$I$20,MATCH($B46,'cao-stijgingen'!$G$4:$G$20,0),MATCH(G$25,'cao-stijgingen'!$C$4:$I$4,0)),"") -> 3581.35 | H46: 3474.504
B47: =Lijsten!E8 -> schaal 8 | F47: =IFERROR(INDEX('cao-stijgingen'!$C$4:$I$20,MATCH($B47,'cao-stijgingen'!$G$4:$G$20,0),MATCH(F$25,'cao-stijgingen'!$C$4:$I$4,0)),"") -> 3658.2045 | G47: =IFERROR(INDEX('cao-stijgingen'!$C$4:$I$20,MATCH($B47,'cao-stijgingen'!$G$4:$G$20,0),MATCH(G$25,'cao-stijgingen'!$C$4:$I$4,0)),"") -> 3960.6 | H47: 3809.40225
B48: =Lijsten!E9 -> schaal 9 | F48: =IFERROR(INDEX('cao-stijgingen'!$C$4:$I$20,MATCH($B48,'cao-stijgingen'!$G$4:$G$20,0),MATCH(F$25,'cao-stijgingen'!$C$4:$I$4,0)),"") -> 3985.774 | G48: =IFERROR(INDEX('cao-stijgingen'!$C$4:$I$20,MATCH($B48,'cao-stijgingen'!$G$4:$G$20,0),MATCH(G$25,'cao-stijgingen'!$C$4:$I$4,0)),"") -> 4358.3 | H48: 4172.037
B49: =Lijsten!E10 -> schaal 10 | F49: =IFERROR(INDEX('cao-stijgingen'!$C$4:$I$20,MATCH($B49,'cao-stijgingen'!$G$4:$G$20,0),MATCH(F$25,'cao-stijgingen'!$C$4:$I$4,0)),"") -> 4362.34875 | G49: =IFERROR(INDEX('cao-stijgingen'!$C$4:$I$20,MATCH($B49,'cao-stijgingen'!$G$4:$G$20,0),MATCH(G$25,'cao-stijgingen'!$C$4:$I$4,0)),"") -> 4829.8 | H49: 4596.074375
B50: =Lijsten!E11 -> schaal 11 | F50: =IFERROR(INDEX('cao-stijgingen'!$C$4:$I$20,MATCH($B50,'cao-stijgingen'!$G$4:$G$20,0),MATCH(F$25,'cao-stijgingen'!$C$4:$I$4,0)),"") -> 5018.6665 | G50: =IFERROR(INDEX('cao-stijgingen'!$C$4:$I$20,MATCH($B50,'cao-stijgingen'!$G$4:$G$20,0),MATCH(G$25,'cao-stijgingen'!$C$4:$I$4,0)),"") -> 5355.625 | H50: 5187.14575
B51: =Lijsten!E12 -> schaal 12 | F51: =IFERROR(INDEX('cao-stijgingen'!$C$4:$I$20,MATCH($B51,'cao-stijgingen'!$G$4:$G$20,0),MATCH(F$25,'cao-stijgingen'!$C$4:$I$4,0)),"") -> 5757.1995 | G51: =IFERROR(INDEX('cao-stijgingen'!$C$4:$I$20,MATCH($B51,'cao-stijgingen'!$G$4:$G$20,0),MATCH(G$25,'cao-stijgingen'!$C$4:$I$4,0)),"") -> 5946.025 | H51: 5851.61225

Sheet Uurtarieven per schaal (hidden)
B2: ="BEREKENING OP BASIS VAN " -> BEREKENING OP BASIS VAN
B3: =UPPER(Inputblad!C8) -> SPECIFIEKE CAO'S
B5: OPLEIDINGSTARIEVEN | C5: ='cao-stijgingen'!C25 -> VVT | D5: ='cao-stijgingen'!D25 -> GGZ | E5: ='cao-stijgingen'!E25 -> Gehandicaptenzorg | F5: ='cao-stijgingen'!F25 -> Jeugdzorg | G5: ='cao-stijgingen'!G25 -> Sociaal werk
B6: mbo | C6: =SUMPRODUCT(C23:C37,Inputblad!$C$44:$C$58) -> 57.49283589 | D6: =(SUMPRODUCT(D23:D37,Inputblad!$C$44:$C$58)) -> 57.7316708 | E6: =(SUMPRODUCT(E23:E37,Inputblad!$C$44:$C$58)) -> 56.95397274 | F6: =(SUMPRODUCT(F12:F22,Inputblad!$C$31:$C$41)) -> 59.52014656 | G6: =(SUMPRODUCT(G12:G22,Inputblad!$C$31:$C$41)) -> 62.86840308 | H6: =AVERAGE(C6:E6) -> 57.39282648
B7: hbo | C7: =(SUMPRODUCT(C23:C37,Inputblad!$D$44:$D$58)) -> 68.41926512 | D7: =(SUMPRODUCT(D23:D37,Inputblad!$D$44:$D$58)) -> 67.82247331 | E7: =(SUMPRODUCT(E23:E37,Inputblad!$D$44:$D$58)) -> 67.48762252 | F7: =(SUMPRODUCT(F12:F22,Inputblad!$D$31:$D$41)) -> 68.4454328 | G7: =(SUMPRODUCT(G12:G22,Inputblad!$D$31:$D$41)) -> 73.08930137 | H7: 67.90978698
B11: UURTARIEVEN | C11: =Lijsten!F6 -> VVT | D11: =Lijsten!$F$4 -> GGZ | E11: =Lijsten!$F$5 -> Gehandicaptenzorg | F11: =Lijsten!$F$3 -> Jeugdzorg | G11: =Lijsten!$F$2 -> Sociaal werk
B12: =Lijsten!$E$2 -> schaal 2 | F12: =(F99*12+F134+F163+F192+Inputblad!$C$25)*(1+Inputblad!$C$26)/Inputblad!$C$18 -> 48.65792464 | G12: =(G99*12+G134+G163+G192+Inputblad!$C$25)*(1+Inputblad!$C$26)/Inputblad!$C$18 -> 49.7527269
B13: =Lijsten!$E$3 -> schaal 3 | F13: =(F100*12+F135+F164+F193+Inputblad!$C$25)*(1+Inputblad!$C$26)/Inputblad!$C$18 -> 50.43155917 | G13: =(G100*12+G135+G164+G193+Inputblad!$C$25)*(1+Inputblad!$C$26)/Inputblad!$C$18 -> 51.7694679
B14: =Lijsten!$E$4 -> schaal 4 | F14: =(F101*12+F136+F165+F194+Inputblad!$C$25)*(1+Inputblad!$C$26)/Inputblad!$C$18 -> 48.65792464 | G14: =(G101*12+G136+G165+G194+Inputblad!$C$25)*(1+Inputblad!$C$26)/Inputblad!$C$18 -> 49.7527269
B15: =Lijsten!$E$5 -> schaal 5 | F15: =(F102*12+F137+F166+F195+Inputblad!$C$25)*(1+Inputblad!$C$26)/Inputblad!$C$18 -> 55.42937265 | G15: =(G102*12+G137+G166+G195+Inputblad!$C$25)*(1+Inputblad!$C$26)/Inputblad!$C$18 -> 57.06512795
B16: =Lijsten!$E$6 -> schaal 6 | F16: =(F103*12+F138+F167+F196+Inputblad!$C$25)*(1+Inputblad!$C$26)/Inputblad!$C$18 -> 58.44899642 | G16: =(G103*12+G138+G167+G196+Inputblad!$C$25)*(1+Inputblad!$C$26)/Inputblad!$C$18 -> 61.77085696
B17: =Lijsten!$E$7 -> schaal 7 | F17: =(F104*12+F139+F168+F197+Inputblad!$C$25)*(1+Inputblad!$C$26)/Inputblad!$C$18 -> 61.86030697 | G17: =(G104*12+G139+G168+G197+Inputblad!$C$25)*(1+Inputblad!$C$26)/Inputblad!$C$18 -> 64.72051217
B18: =Lijsten!$E$8 -> schaal 8 | F18: =(F105*12+F140+F169+F198+Inputblad!$C$25)*(1+Inputblad!$C$26)/Inputblad!$C$18 -> 65.74918727 | G18: =(G105*12+G140+G169+G198+Inputblad!$C$25)*(1+Inputblad!$C$26)/Inputblad!$C$18 -> 69.79666299
B19: =Lijsten!$E$9 -> schaal 9 | F19: =(F106*12+F141+F170+F199+Inputblad!$C$25)*(1+Inputblad!$C$26)/Inputblad!$C$18 -> 70.13360965 | G19: =(G106*12+G141+G170+G199+Inputblad!$C$25)*(1+Inputblad!$C$26)/Inputblad!$C$18 -> 75.1197617
B20: =Lijsten!$E$10 -> schaal 10 | F20: =(F107*12+F142+F171+F200+Inputblad!$C$25)*(1+Inputblad!$C$26)/Inputblad!$C$18 -> 75.17395304 | G20: =(G107*12+G142+G171+G200+Inputblad!$C$25)*(1+Inputblad!$C$26)/Inputblad!$C$18 -> 81.43065191
B21: =Lijsten!$E$11 -> schaal 11 | F21: =(F108*12+F143+F172+F201+Inputblad!$C$25)*(1+Inputblad!$C$26)/Inputblad!$C$18 -> 83.95857502 | G21: =(G108*12+G143+G172+G201+Inputblad!$C$25)*(1+Inputblad!$C$26)/Inputblad!$C$18 -> 88.46866643
B22: =Lijsten!$E$12 -> schaal 12 | F22: =(F109*12+F144+F173+F202+Inputblad!$C$25)*(1+Inputblad!$C$26)/Inputblad!$C$18 -> 93.84362419 | G22: =(G109*12+G144+G173+G202+Inputblad!$C$25)*(1+Inputblad!$C$26)/Inputblad!$C$18 -> 96.37099853
B23: =Lijsten!$E$13 -> FWG 10 | C23: =(C110*12+C145+C174+C203+Inputblad!$C$25)*(1+Inputblad!$C$26)/Inputblad!$C$18 -> 41.39374001 | D23: =(D110*12+D145+D174+D203+Inputblad!$C$25)*(1+Inputblad!$C$26)/Inputblad!$C$18 -> 45.48299818 | E23: =(E110*12+E145+E174+E203+Inputblad!$C$25)*(1+Inputblad!$C$26)/Inputblad!$C$18 -> 45.19433295
B24: =Lijsten!$E$14 -> FWG 15 | C24: =(C111*12+C146+C175+C204+Inputblad!$C$25)*(1+Inputblad!$C$26)/Inputblad!$C$18 -> 46.81632753 | D24: =(D111*12+D146+D175+D204+Inputblad!$C$25)*(1+Inputblad!$C$26)/Inputblad!$C$18 -> 47.11572413 | E24: =(E111*12+E146+E175+E204+Inputblad!$C$25)*(1+Inputblad!$C$26)/Inputblad!$C$18 -> 47.12491492
B25: =Lijsten!$E$15 -> FWG 20 | C25: =(C112*12+C147+C176+C205+Inputblad!$C$25)*(1+Inputblad!$C$26)/Inputblad!$C$18 -> 48.64214347 | D25: =(D112*12+D147+D176+D205+Inputblad!$C$25)*(1+Inputblad!$C$26)/Inputblad!$C$18 -> 48.72529084 | E25: =(E112*12+E147+E176+E205+Inputblad!$C$25)*(1+Inputblad!$C$26)/Inputblad!$C$18 -> 49.01322137
B26: =Lijsten!$E$16 -> FWG 25 | C26: =(C113*12+C148+C177+C206+Inputblad!$C$25)*(1+Inputblad!$C$26)/Inputblad!$C$18 -> 50.49481705 | D26: =(D113*12+D148+D177+D206+Inputblad!$C$25)*(1+Inputblad!$C$26)/Inputblad!$C$18 -> 50.30608196 | E26: =(E113*12+E148+E177+E206+Inputblad!$C$25)*(1+Inputblad!$C$26)/Inputblad!$C$18 -> 50.7887931
B27: =Lijsten!$E$17 -> FWG 30 | C27: =(C114*12+C149+C178+C207+Inputblad!$C$25)*(1+Inputblad!$C$26)/Inputblad!$C$18 -> 51.49581759 | D27: =(D114*12+D149+D178+D207+Inputblad!$C$25)*(1+Inputblad!$C$26)/Inputblad!$C$18 -> 52.10501454 | E27: =(E114*12+E149+E178+E207+Inputblad!$C$25)*(1+Inputblad!$C$26)/Inputblad!$C$18 -> 52.66300771
B28: =Lijsten!$E$18 -> FWG 35 | C28: =(C115*12+C150+C179+C208+Inputblad!$C$25)*(1+Inputblad!$C$26)/Inputblad!$C$18 -> 54.31293318 | D28: =(D115*12+D150+D179+D208+Inputblad!$C$25)*(1+Inputblad!$C$26)/Inputblad!$C$18 -> 53.92354122 | E28: =(E115*12+E150+E179+E208+Inputblad!$C$25)*(1+Inputblad!$C$26)/Inputblad!$C$18 -> 54.48085497
B29: =Lijsten!$E$19 -> FWG 40 | C29: =(C116*12+C151+C180+C209+Inputblad!$C$25)*(1+Inputblad!$C$26)/Inputblad!$C$18 -> 57.14832803 | D29: =(D116*12+D151+D180+D209+Inputblad!$C$25)*(1+Inputblad!$C$26)/Inputblad!$C$18 -> 57.69530027 | E29: =(E116*12+E151+E180+E209+Inputblad!$C$25)*(1+Inputblad!$C$26)/Inputblad!$C$18 -> 56.34097774
B30: =Lijsten!$E$20 -> FWG 45 | C30: =(C117*12+C152+C181+C210+Inputblad!$C$25)*(1+Inputblad!$C$26)/Inputblad!$C$18 -> 61.1320824 | D30: =(D117*12+D152+D181+D210+Inputblad!$C$25)*(1+Inputblad!$C$26)/Inputblad!$C$18 -> 61.58829443 | E30: =(E117*12+E152+E181+E210+Inputblad!$C$25)*(1+Inputblad!$C$26)/Inputblad!$C$18 -> 60.24441719
B31: =Lijsten!$E$21 -> FWG 50 | C31: =(C118*12+C153+C182+C211+Inputblad!$C$25)*(1+Inputblad!$C$26)/Inputblad!$C$18 -> 67.15524005 | D31: =(D118*12+D153+D182+D211+Inputblad!$C$25)*(1+Inputblad!$C$26)/Inputblad!$C$18 -> 66.32993437 | E31: =(E118*12+E153+E182+E211+Inputblad!$C$25)*(1+Inputblad!$C$26)/Inputblad!$C$18 -> 66.17708148
B32: =Lijsten!$E$22 -> FWG 55 | C32: =(C119*12+C154+C183+C212+Inputblad!$C$25)*(1+Inputblad!$C$26)/Inputblad!$C$18 -> 73.32688155 | D32: =(D119*12+D154+D183+D212+Inputblad!$C$25)*(1+Inputblad!$C$26)/Inputblad!$C$18 -> 72.43210169 | E32: =(E119*12+E154+E183+E212+Inputblad!$C$25)*(1+Inputblad!$C$26)/Inputblad!$C$18 -> 72.41976623
B33: =Lijsten!$E$23 -> FWG 60 | C33: =(C120*12+C155+C184+C213+Inputblad!$C$25)*(1+Inputblad!$C$26)/Inputblad!$C$18 -> 81.24011495 | D33: =(D120*12+D155+D184+D213+Inputblad!$C$25)*(1+Inputblad!$C$26)/Inputblad!$C$18 -> 79.01920945 | E33: =(E120*12+E155+E184+E213+Inputblad!$C$25)*(1+Inputblad!$C$26)/Inputblad!$C$18 -> 80.18436961
B34: =Lijsten!$E$24 -> FWG 65 | C34: =(C121*12+C156+C185+C214+Inputblad!$C$25)*(1+Inputblad!$C$26)/Inputblad!$C$18 -> 92.65565506 | D34: =(D121*12+D156+D185+D214+Inputblad!$C$25)*(1+Inputblad!$C$26)/Inputblad!$C$18 -> 90.05160466 | E34: =(E121*12+E156+E185+E214+Inputblad!$C$25)*(1+Inputblad!$C$26)/Inputblad!$C$18 -> 91.41556543
B35: =Lijsten!$E$25 -> FWG 70 | C35: =(C122*12+C157+C186+C215+Inputblad!$C$25)*(1+Inputblad!$C$26)/Inputblad!$C$18 -> 108.3526203 | D35: =(D122*12+D157+D186+D215+Inputblad!$C$25)*(1+Inputblad!$C$26)/Inputblad!$C$18 -> 105.2059937 | E35: =(E122*12+E157+E186+E215+Inputblad!$C$25)*(1+Inputblad!$C$26)/Inputblad!$C$18 -> 106.9165885
B36: =Lijsten!$E$26 -> FWG 75 | C36: =(C123*12+C158+C187+C216+Inputblad!$C$25)*(1+Inputblad!$C$26)/Inputblad!$C$18 -> 127.4589493 | D36: =(D123*12+D158+D187+D216+Inputblad!$C$25)*(1+Inputblad!$C$26)/Inputblad!$C$18 -> 123.6606719 | E36: =(E123*12+E158+E187+E216+Inputblad!$C$25)*(1+Inputblad!$C$26)/Inputblad!$C$18 -> 125.8701122
B37: =Lijsten!$E$27 -> FWG 80 | C37: =(C124*12+C159+C188+C217+Inputblad!$C$25)*(1+Inputblad!$C$26)/Inputblad!$C$18 -> 146.1949122 | D37: =(D124*12+D159+D188+D217+Inputblad!$C$25)*(1+Inputblad!$C$26)/Inputblad!$C$18 -> 141.7651153 | E37: =(E124*12+E159+E188+E217+Inputblad!$C$25)*(1+Inputblad!$C$26)/Inputblad!$C$18 -> 146.4582892
B40: SALARISSEN | C40: =Lijsten!$F$6 -> VVT | D40: =Lijsten!$F$4 -> GGZ | E40: =Lijsten!$F$5 -> Gehandicaptenzorg | F40: =Lijsten!$F$3 -> Jeugdzorg | G40: =Lijsten!$F$2 -> Sociaal werk
B41: =Lijsten!$E$2 -> schaal 2 | F41: =IF(Inputblad!$C$8=Lijsten!$C$2,INDEX('cao-stijgingen'!$B$25:$H$51,MATCH('Uurtarieven per schaal'!$B41,'cao-stijgingen'!$B$25:$B$51,0),MATCH('Uurtarieven per schaal'!F$69,'cao-stijgingen'!$B$25:$H$25,0)),IF(Inputblad!$C$8=Lijsten!$C$3,INDEX('cao-stijgingen'!$B$25:$H$51,MATCH('Uurtarieven per schaal'!$B41,'cao-stijgingen'!$B$25:$B$51,0),MATCH('cao-stijgingen'!$H$25,'cao-stijgingen'!$B$25:$H$25,0)),)) -> 2381.28 | G41: =IF(Inputblad!$C$8=Lijsten!$C$2,INDEX('cao-stijgingen'!$B$25:$H$51,MATCH('Uurtarieven per schaal'!$B41,'cao-stijgingen'!$B$25:$B$51,0),MATCH('Uurtarieven per schaal'!G$69,'cao-stijgingen'!$B$25:$H$25,0)),IF(Inputblad!$C$8=Lijsten!$C$3,INDEX('cao-stijgingen'!$B$25:$H$51,MATCH('Uurtarieven per schaal'!$B41,'cao-stijgingen'!$B$25:$B$51,0),MATCH('cao-stijgingen'!$H$25,'cao-stijgingen'!$B$25:$H$25,0)),)) -> 2463.075
B42: =Lijsten!$E$3 -> schaal 3 | F42: =IF(Inputblad!$C$8=Lijsten!$C$2,INDEX('cao-stijgingen'!$B$25:$H$51,MATCH('Uurtarieven per schaal'!$B42,'cao-stijgingen'!$B$25:$B$51,0),MATCH('Uurtarieven per schaal'!F$69,'cao-stijgingen'!$B$25:$H$25,0)),IF(Inputblad!$C$8=Lijsten!$C$3,INDEX('cao-stijgingen'!$B$25:$H$51,MATCH('Uurtarieven per schaal'!$B42,'cao-stijgingen'!$B$25:$B$51,0),MATCH('cao-stijgingen'!$H$25,'cao-stijgingen'!$B$25:$H$25,0)),)) -> 2513.792 | G42: =IF(Inputblad!$C$8=Lijsten!$C$2,INDEX('cao-stijgingen'!$B$25:$H$51,MATCH('Uurtarieven per schaal'!$B42,'cao-stijgingen'!$B$25:$B$51,0),MATCH('Uurtarieven per schaal'!G$69,'cao-stijgingen'!$B$25:$H$25,0)),IF(Inputblad!$C$8=Lijsten!$C$3,INDEX('cao-stijgingen'!$B$25:$H$51,MATCH('Uurtarieven per schaal'!$B42,'cao-stijgingen'!$B$25:$B$51,0),MATCH('cao-stijgingen'!$H$25,'cao-stijgingen'!$B$25:$H$25,0)),)) -> 2613.75
B43: =Lijsten!$E$4 -> schaal 4 | F43: =IF(Inputblad!$C$8=Lijsten!$C$2,INDEX('cao-stijgingen'!$B$25:$H$51,MATCH('Uurtarieven per schaal'!$B43,'cao-stijgingen'!$B$25:$B$51,0),MATCH('Uurtarieven per schaal'!F$69,'cao-stijgingen'!$B$25:$H$25,0)),IF(Inputblad!$C$8=Lijsten!$C$3,INDEX('cao-stijgingen'!$B$25:$H$51,MATCH('Uurtarieven per schaal'!$B43,'cao-stijgingen'!$B$25:$B$51,0),MATCH('cao-stijgingen'!$H$25,'cao-stijgingen'!$B$25:$H$25,0)),)) -> 2381.28 | G43: =IF(Inputblad!$C$8=Lijsten!$C$2,INDEX('cao-stijgingen'!$B$25:$H$51,MATCH('Uurtarieven per schaal'!$B43,'cao-stijgingen'!$B$25:$B$51,0),MATCH('Uurtarieven per schaal'!G$69,'cao-stijgingen'!$B$25:$H$25,0)),IF(Inputblad!$C$8=Lijsten!$C$3,INDEX('cao-stijgingen'!$B$25:$H$51,MATCH('Uurtarieven per schaal'!$B43,'cao-stijgingen'!$B$25:$B$51,0),MATCH('cao-stijgingen'!$H$25,'cao-stijgingen'!$B$25:$H$25,0)),)) -> 2463.075
B44: =Lijsten!$E$5 -> schaal 5 | F44: =IF(Inputblad!$C$8=Lijsten!$C$2,INDEX('cao-stijgingen'!$B$25:$H$51,MATCH('Uurtarieven per schaal'!$B44,'cao-stijgingen'!$B$25:$B$51,0),MATCH('Uurtarieven per schaal'!F$69,'cao-stijgingen'!$B$25:$H$25,0)),IF(Inputblad!$C$8=Lijsten!$C$3,INDEX('cao-stijgingen'!$B$25:$H$51,MATCH('Uurtarieven per schaal'!$B44,'cao-stijgingen'!$B$25:$B$51,0),MATCH('cao-stijgingen'!$H$25,'cao-stijgingen'!$B$25:$H$25,0)),)) -> 2887.18925 | G44: =IF(Inputblad!$C$8=Lijsten!$C$2,INDEX('cao-stijgingen'!$B$25:$H$51,MATCH('Uurtarieven per schaal'!$B44,'cao-stijgingen'!$B$25:$B$51,0),MATCH('Uurtarieven per schaal'!G$69,'cao-stijgingen'!$B$25:$H$25,0)),IF(Inputblad!$C$8=Lijsten!$C$3,INDEX('cao-stijgingen'!$B$25:$H$51,MATCH('Uurtarieven per schaal'!$B44,'cao-stijgingen'!$B$25:$B$51,0),MATCH('cao-stijgingen'!$H$25,'cao-stijgingen'!$B$25:$H$25,0)),)) -> 3009.4
B45: =Lijsten!$E$6 -> schaal 6 | F45: =IF(Inputblad!$C$8=Lijsten!$C$2,INDEX('cao-stijgingen'!$B$25:$H$51,MATCH('Uurtarieven per schaal'!$B45,'cao-stijgingen'!$B$25:$B$51,0),MATCH('Uurtarieven per schaal'!F$69,'cao-stijgingen'!$B$25:$H$25,0)),IF(Inputblad!$C$8=Lijsten!$C$3,INDEX('cao-stijgingen'!$B$25:$H$51,MATCH('Uurtarieven per schaal'!$B45,'cao-stijgingen'!$B$25:$B$51,0),MATCH('cao-stijgingen'!$H$25,'cao-stijgingen'!$B$25:$H$25,0)),)) -> 3112.79175 | G45: =IF(Inputblad!$C$8=Lijsten!$C$2,INDEX('cao-stijgingen'!$B$25:$H$51,MATCH('Uurtarieven per schaal'!$B45,'cao-stijgingen'!$B$25:$B$51,0),MATCH('Uurtarieven per schaal'!G$69,'cao-stijgingen'!$B$25:$H$25,0)),IF(Inputblad!$C$8=Lijsten!$C$3,INDEX('cao-stijgingen'!$B$25:$H$51,MATCH('Uurtarieven per schaal'!$B45,'cao-stijgingen'!$B$25:$B$51,0),MATCH('cao-stijgingen'!$H$25,'cao-stijgingen'!$B$25:$H$25,0)),)) -> 3360.975
B46: =Lijsten!$E$7 -> schaal 7 | F46: =IF(Inputblad!$C$8=Lijsten!$C$2,INDEX('cao-stijgingen'!$B$25:$H$51,MATCH('Uurtarieven per schaal'!$B46,'cao-stijgingen'!$B$25:$B$51,0),MATCH('Uurtarieven per schaal'!F$69,'cao-stijgingen'!$B$25:$H$25,0)),IF(Inputblad!$C$8=Lijsten!$C$3,INDEX('cao-stijgingen'!$B$25:$H$51,MATCH('Uurtarieven per schaal'!$B46,'cao-stijgingen'!$B$25:$B$51,0),MATCH('cao-stijgingen'!$H$25,'cao-stijgingen'!$B$25:$H$25,0)),)) -> 3367.658 | G46: =IF(Inputblad!$C$8=Lijsten!$C$2,INDEX('cao-stijgingen'!$B$25:$H$51,MATCH('Uurtarieven per schaal'!$B46,'cao-stijgingen'!$B$25:$B$51,0),MATCH('Uurtarieven per schaal'!G$69,'cao-stijgingen'!$B$25:$H$25,0)),IF(Inputblad!$C$8=Lijsten!$C$3,INDEX('cao-stijgingen'!$B$25:$H$51,MATCH('Uurtarieven per schaal'!$B46,'cao-stijgingen'!$B$25:$B$51,0),MATCH('cao-stijgingen'!$H$25,'cao-stijgingen'!$B$25:$H$25,0)),)) -> 3581.35
B47: =Lijsten!$E$8 -> schaal 8 | F47: =IF(Inputblad!$C$8=Lijsten!$C$2,INDEX('cao-stijgingen'!$B$25:$H$51,MATCH('Uurtarieven per schaal'!$B47,'cao-stijgingen'!$B$25:$B$51,0),MATCH('Uurtarieven per schaal'!F$69,'cao-stijgingen'!$B$25:$H$25,0)),IF(Inputblad!$C$8=Lijsten!$C$3,INDEX('cao-stijgingen'!$B$25:$H$51,MATCH('Uurtarieven per schaal'!$B47,'cao-stijgingen'!$B$25:$B$51,0),MATCH('cao-stijgingen'!$H$25,'cao-stijgingen'!$B$25:$H$25,0)),)) -> 3658.2045 | G47: =IF(Inputblad!$C$8=Lijsten!$C$2,INDEX('cao-stijgingen'!$B$25:$H$51,MATCH('Uurtarieven per schaal'!$B47,'cao-stijgingen'!$B$25:$B$51,0),MATCH('Uurtarieven per schaal'!G$69,'cao-stijgingen'!$B$25:$H$25,0)),IF(Inputblad!$C$8=Lijsten!$C$3,INDEX('cao-stijgingen'!$B$25:$H$51,MATCH('Uurtarieven per schaal'!$B47,'cao-stijgingen'!$B$25:$B$51,0),MATCH('cao-stijgingen'!$H$25,'cao-stijgingen'!$B$25:$H$25,0)),)) -> 3960.6
B48: =Lijsten!$E$9 -> schaal 9 | F48: =IF(Inputblad!$C$8=Lijsten!$C$2,INDEX('cao-stijgingen'!$B$25:$H$51,MATCH('Uurtarieven per schaal'!$B48,'cao-stijgingen'!$B$25:$B$51,0),MATCH('Uurtarieven per schaal'!F$69,'cao-stijgingen'!$B$25:$H$25,0)),IF(Inputblad!$C$8=Lijsten!$C$3,INDEX('cao-stijgingen'!$B$25:$H$51,MATCH('Uurtarieven per schaal'!$B48,'cao-stijgingen'!$B$25:$B$51,0),MATCH('cao-stijgingen'!$H$25,'cao-stijgingen'!$B$25:$H$25,0)),)) -> 3985.774 | G48: =IF(Inputblad!$C$8=Lijsten!$C$2,INDEX('cao-stijgingen'!$B$25:$H$51,MATCH('Uurtarieven per schaal'!$B48,'cao-stijgingen'!$B$25:$B$51,0),MATCH('Uurtarieven per schaal'!G$69,'cao-stijgingen'!$B$25:$H$25,0)),IF(Inputblad!$C$8=Lijsten!$C$3,INDEX('cao-stijgingen'!$B$25:$H$51,MATCH('Uurtarieven per schaal'!$B48,'cao-stijgingen'!$B$25:$B$51,0),MATCH('cao-stijgingen'!$H$25,'cao-stijgingen'!$B$25:$H$25,0)),)) -> 4358.3
B49: =Lijsten!$E$10 -> schaal 10 | F49: =IF(Inputblad!$C$8=Lijsten!$C$2,INDEX('cao-stijgingen'!$B$25:$H$51,MATCH('Uurtarieven per schaal'!$B49,'cao-stijgingen'!$B$25:$B$51,0),MATCH('Uurtarieven per schaal'!F$69,'cao-stijgingen'!$B$25:$H$25,0)),IF(Inputblad!$C$8=Lijsten!$C$3,INDEX('cao-stijgingen'!$B$25:$H$51,MATCH('Uurtarieven per schaal'!$B49,'cao-stijgingen'!$B$25:$B$51,0),MATCH('cao-stijgingen'!$H$25,'cao-stijgingen'!$B$25:$H$25,0)),)) -> 4362.34875 | G49: =IF(Inputblad!$C$8=Lijsten!$C$2,INDEX('cao-stijgingen'!$B$25:$H$51,MATCH('Uurtarieven per schaal'!$B49,'cao-stijgingen'!$B$25:$B$51,0),MATCH('Uurtarieven per schaal'!G$69,'cao-stijgingen'!$B$25:$H$25,0)),IF(Inputblad!$C$8=Lijsten!$C$3,INDEX('cao-stijgingen'!$B$25:$H$51,MATCH('Uurtarieven per schaal'!$B49,'cao-stijgingen'!$B$25:$B$51,0),MATCH('cao-stijgingen'!$H$25,'cao-stijgingen'!$B$25:$H$25,0)),)) -> 4829.8
B50: =Lijsten!$E$11 -> schaal 11 | F50: =IF(Inputblad!$C$8=Lijsten!$C$2,INDEX('cao-stijgingen'!$B$25:$H$51,MATCH('Uurtarieven per schaal'!$B50,'cao-stijgingen'!$B$25:$B$51,0),MATCH('Uurtarieven per schaal'!F$69,'cao-stijgingen'!$B$25:$H$25,0)),IF(Inputblad!$C$8=Lijsten!$C$3,INDEX('cao-stijgingen'!$B$25:$H$51,MATCH('Uurtarieven per schaal'!$B50,'cao-stijgingen'!$B$25:$B$51,0),MATCH('cao-stijgingen'!$H$25,'cao-stijgingen'!$B$25:$H$25,0)),)) -> 5018.6665 | G50: =IF(Inputblad!$C$8=Lijsten!$C$2,INDEX('cao-stijgingen'!$B$25:$H$51,MATCH('Uurtarieven per schaal'!$B50,'cao-stijgingen'!$B$25:$B$51,0),MATCH('Uurtarieven per schaal'!G$69,'cao-stijgingen'!$B$25:$H$25,0)),IF(Inputblad!$C$8=Lijsten!$C$3,INDEX('cao-stijgingen'!$B$25:$H$51,MATCH('Uurtarieven per schaal'!$B50,'cao-stijgingen'!$B$25:$B$51,0),MATCH('cao-stijgingen'!$H$25,'cao-stijgingen'!$B$25:$H$25,0)),)) -> 5355.625
B51: =Lijsten!$E$12 -> schaal 12 | F51: =IF(Inputblad!$C$8=Lijsten!$C$2,INDEX('cao-stijgingen'!$B$25:$H$51,MATCH('Uurtarieven per schaal'!$B51,'cao-stijgingen'!$B$25:$B$51,0),MATCH('Uurtarieven per schaal'!F$69,'cao-stijgingen'!$B$25:$H$25,0)),IF(Inputblad!$C$8=Lijsten!$C$3,INDEX('cao-stijgingen'!$B$25:$H$51,MATCH('Uurtarieven per schaal'!$B51,'cao-stijgingen'!$B$25:$B$51,0),MATCH('cao-stijgingen'!$H$25,'cao-stijgingen'!$B$25:$H$25,0)),)) -> 5757.1995 | G51: =IF(Inputblad!$C$8=Lijsten!$C$2,INDEX('cao-stijgingen'!$B$25:$H$51,MATCH('Uurtarieven per schaal'!$B51,'cao-stijgingen'!$B$25:$B$51,0),MATCH('Uurtarieven per schaal'!G$69,'cao-stijgingen'!$B$25:$H$25,0)),IF(Inputblad!$C$8=Lijsten!$C$3,INDEX('cao-stijgingen'!$B$25:$H$51,MATCH('Uurtarieven per schaal'!$B51,'cao-stijgingen'!$B$25:$B$51,0),MATCH('cao-stijgingen'!$H$25,'cao-stijgingen'!$B$25:$H$25,0)),)) -> 5946.025
B52: =Lijsten!$E$13 -> FWG 10 | C52: =IF(Inputblad!$C$8=Lijsten!$C$2,INDEX('cao-stijgingen'!$B$25:$H$51,MATCH('Uurtarieven per schaal'!$B52,'cao-stijgingen'!$B$25:$B$51,0),MATCH('Uurtarieven per schaal'!C$69,'cao-stijgingen'!$B$25:$H$25,0)),IF(Inputblad!$C$8=Lijsten!$C$3,INDEX('cao-stijgingen'!$B$25:$H$51,MATCH('Uurtarieven per schaal'!$B52,'cao-stijgingen'!$B$25:$B$51,0),MATCH('cao-stijgingen'!$H$25,'cao-stijgingen'!$B$25:$H$25,0)),)) -> 1801.314207 | D52: =IF(Inputblad!$C$8=Lijsten!$C$2,INDEX('cao-stijgingen'!$B$25:$H$51,MATCH('Uurtarieven per schaal'!$B52,'cao-stijgingen'!$B$25:$B$51,0),MATCH('Uurtarieven per schaal'!D$69,'cao-stijgingen'!$B$25:$H$25,0)),IF(Inputblad!$C$8=Lijsten!$C$3,INDEX('cao-stijgingen'!$B$25:$H$51,MATCH('Uurtarieven per schaal'!$B52,'cao-stijgingen'!$B$25:$B$51,0),MATCH('cao-stijgingen'!$H$25,'cao-stijgingen'!$B$25:$H$25,0)),)) -> 2102.29786 | E52: =IF(Inputblad!$C$8=Lijsten!$C$2,INDEX('cao-stijgingen'!$B$25:$H$51,MATCH('Uurtarieven per schaal'!$B52,'cao-stijgingen'!$B$25:$B$51,0),MATCH('Uurtarieven per schaal'!E$69,'cao-stijgingen'!$B$25:$H$25,0)),IF(Inputblad!$C$8=Lijsten!$C$3,INDEX('cao-stijgingen'!$B$25:$H$51,MATCH('Uurtarieven per schaal'!$B52,'cao-stijgingen'!$B$25:$B$51,0),MATCH('cao-stijgingen'!$H$25,'cao-stijgingen'!$B$25:$H$25,0)),)) -> 2122.507715
B53: =Lijsten!$E$14 -> FWG 15 | C53: =IF(Inputblad!$C$8=Lijsten!$C$2,INDEX('cao-stijgingen'!$B$25:$H$51,MATCH('Uurtarieven per schaal'!$B53,'cao-stijgingen'!$B$25:$B$51,0),MATCH('Uurtarieven per schaal'!C$69,'cao-stijgingen'!$B$25:$H$25,0)),IF(Inputblad!$C$8=Lijsten!$C$3,INDEX('cao-stijgingen'!$B$25:$H$51,MATCH('Uurtarieven per schaal'!$B53,'cao-stijgingen'!$B$25:$B$51,0),MATCH('cao-stijgingen'!$H$25,'cao-stijgingen'!$B$25:$H$25,0)),)) -> 2238.857869 | D53: =IF(Inputblad!$C$8=Lijsten!$C$2,INDEX('cao-stijgingen'!$B$25:$H$51,MATCH('Uurtarieven per schaal'!$B53,'cao-stijgingen'!$B$25:$B$51,0),MATCH('Uurtarieven per schaal'!D$69,'cao-stijgingen'!$B$25:$H$25,0)),IF(Inputblad!$C$8=Lijsten!$C$3,INDEX('cao-stijgingen'!$B$25:$H$51,MATCH('Uurtarieven per schaal'!$B53,'cao-stijgingen'!$B$25:$B$51,0),MATCH('cao-stijgingen'!$H$25,'cao-stijgingen'!$B$25:$H$25,0)),)) -> 2245.01524 | E53: =IF(Inputblad!$C$8=Lijsten!$C$2,INDEX('cao-stijgingen'!$B$25:$H$51,MATCH('Uurtarieven per schaal'!$B53,'cao-stijgingen'!$B$25:$B$51,0),MATCH('Uurtarieven per schaal'!E$69,'cao-stijgingen'!$B$25:$H$25,0)),IF(Inputblad!$C$8=Lijsten!$C$3,INDEX('cao-stijgingen'!$B$25:$H$51,MATCH('Uurtarieven per schaal'!$B53,'cao-stijgingen'!$B$25:$B$51,0),MATCH('cao-stijgingen'!$H$25,'cao-stijgingen'!$B$25:$H$25,0)),)) -> 2266.745591
B54: =Lijsten!$E$15 -> FWG 20 | C54: =IF(Inputblad!$C$8=Lijsten!$C$2,INDEX('cao-stijgingen'!$B$25:$H$51,MATCH('Uurtarieven per schaal'!$B54,'cao-stijgingen'!$B$25:$B$51,0),MATCH('Uurtarieven per schaal'!C$69,'cao-stijgingen'!$B$25:$H$25,0)),IF(Inputblad!$C$8=Lijsten!$C$3,INDEX('cao-stijgingen'!$B$25:$H$51,MATCH('Uurtarieven per schaal'!$B54,'cao-stijgingen'!$B$25:$B$51,0),MATCH('cao-stijgingen'!$H$25,'cao-stijgingen'!$B$25:$H$25,0)),)) -> 2380.100956 | D54: =IF(Inputblad!$C$8=Lijsten!$C$2,INDEX('cao-stijgingen'!$B$25:$H$51,MATCH('Uurtarieven per schaal'!$B54,'cao-stijgingen'!$B$25:$B$51,0),MATCH('Uurtarieven per schaal'!D$69,'cao-stijgingen'!$B$25:$H$25,0)),IF(Inputblad!$C$8=Lijsten!$C$3,INDEX('cao-stijgingen'!$B$25:$H$51,MATCH('Uurtarieven per schaal'!$B54,'cao-stijgingen'!$B$25:$B$51,0),MATCH('cao-stijgingen'!$H$25,'cao-stijgingen'!$B$25:$H$25,0)),)) -> 2385.70826 | E54: =IF(Inputblad!$C$8=Lijsten!$C$2,INDEX('cao-stijgingen'!$B$25:$H$51,MATCH('Uurtarieven per schaal'!$B54,'cao-stijgingen'!$B$25:$B$51,0),MATCH('Uurtarieven per schaal'!E$69,'cao-stijgingen'!$B$25:$H$25,0)),IF(Inputblad!$C$8=Lijsten!$C$3,INDEX('cao-stijgingen'!$B$25:$H$51,MATCH('Uurtarieven per schaal'!$B54,'cao-stijgingen'!$B$25:$B$51,0),MATCH('cao-stijgingen'!$H$25,'cao-stijgingen'!$B$25:$H$25,0)),)) -> 2407.824973
B55: =Lijsten!$E$16 -> FWG 25 | C55: =IF(Inputblad!$C$8=Lijsten!$C$2,INDEX('cao-stijgingen'!$B$25:$H$51,MATCH('Uurtarieven per schaal'!$B55,'cao-stijgingen'!$B$25:$B$51,0),MATCH('Uurtarieven per schaal'!C$69,'cao-stijgingen'!$B$25:$H$25,0)),IF(Inputblad!$C$8=Lijsten!$C$3,INDEX('cao-stijgingen'!$B$25:$H$51,MATCH('Uurtarieven per schaal'!$B55,'cao-stijgingen'!$B$25:$B$51,0),MATCH('cao-stijgingen'!$H$25,'cao-stijgingen'!$B$25:$H$25,0)),)) -> 2518.51813 | D55: =IF(Inputblad!$C$8=Lijsten!$C$2,INDEX('cao-stijgingen'!$B$25:$H$51,MATCH('Uurtarieven per schaal'!$B55,'cao-stijgingen'!$B$25:$B$51,0),MATCH('Uurtarieven per schaal'!D$69,'cao-stijgingen'!$B$25:$H$25,0)),IF(Inputblad!$C$8=Lijsten!$C$3,INDEX('cao-stijgingen'!$B$25:$H$51,MATCH('Uurtarieven per schaal'!$B55,'cao-stijgingen'!$B$25:$B$51,0),MATCH('cao-stijgingen'!$H$25,'cao-stijgingen'!$B$25:$H$25,0)),)) -> 2517.29166 | E55: =IF(Inputblad!$C$8=Lijsten!$C$2,INDEX('cao-stijgingen'!$B$25:$H$51,MATCH('Uurtarieven per schaal'!$B55,'cao-stijgingen'!$B$25:$B$51,0),MATCH('Uurtarieven per schaal'!E$69,'cao-stijgingen'!$B$25:$H$25,0)),IF(Inputblad!$C$8=Lijsten!$C$3,INDEX('cao-stijgingen'!$B$25:$H$51,MATCH('Uurtarieven per schaal'!$B55,'cao-stijgingen'!$B$25:$B$51,0),MATCH('cao-stijgingen'!$H$25,'cao-stijgingen'!$B$25:$H$25,0)),)) -> 2540.481705
B56: =Lijsten!$E$17 -> FWG 30 | C56: =IF(Inputblad!$C$8=Lijsten!$C$2,INDEX('cao-stijgingen'!$B$25:$H$51,MATCH('Uurtarieven per schaal'!$B56,'cao-stijgingen'!$B$25:$B$51,0),MATCH('Uurtarieven per schaal'!C$69,'cao-stijgingen'!$B$25:$H$25,0)),IF(Inputblad!$C$8=Lijsten!$C$3,INDEX('cao-stijgingen'!$B$25:$H$51,MATCH('Uurtarieven per schaal'!$B56,'cao-stijgingen'!$B$25:$B$51,0),MATCH('cao-stijgingen'!$H$25,'cao-stijgingen'!$B$25:$H$25,0)),)) -> 2593.305004 | D56: =IF(Inputblad!$C$8=Lijsten!$C$2,INDEX('cao-stijgingen'!$B$25:$H$51,MATCH('Uurtarieven per schaal'!$B56,'cao-stijgingen'!$B$25:$B$51,0),MATCH('Uurtarieven per schaal'!D$69,'cao-stijgingen'!$B$25:$H$25,0)),IF(Inputblad!$C$8=Lijsten!$C$3,INDEX('cao-stijgingen'!$B$25:$H$51,MATCH('Uurtarieven per schaal'!$B56,'cao-stijgingen'!$B$25:$B$51,0),MATCH('cao-stijgingen'!$H$25,'cao-stijgingen'!$B$25:$H$25,0)),)) -> 2653.93596 | E56: =IF(Inputblad!$C$8=Lijsten!$C$2,INDEX('cao-stijgingen'!$B$25:$H$51,MATCH('Uurtarieven per schaal'!$B56,'cao-stijgingen'!$B$25:$B$51,0),MATCH('Uurtarieven per schaal'!E$69,'cao-stijgingen'!$B$25:$H$25,0)),IF(Inputblad!$C$8=Lijsten!$C$3,INDEX('cao-stijgingen'!$B$25:$H$51,MATCH('Uurtarieven per schaal'!$B56,'cao-stijgingen'!$B$25:$B$51,0),MATCH('cao-stijgingen'!$H$25,'cao-stijgingen'!$B$25:$H$25,0)),)) -> 2680.508256
B57: =Lijsten!$E$18 -> FWG 35 | C57: =IF(Inputblad!$C$8=Lijsten!$C$2,INDEX('cao-stijgingen'!$B$25:$H$51,MATCH('Uurtarieven per schaal'!$B57,'cao-stijgingen'!$B$25:$B$51,0),MATCH('Uurtarieven per schaal'!C$69,'cao-stijgingen'!$B$25:$H$25,0)),IF(Inputblad!$C$8=Lijsten!$C$3,INDEX('cao-stijgingen'!$B$25:$H$51,MATCH('Uurtarieven per schaal'!$B57,'cao-stijgingen'!$B$25:$B$51,0),MATCH('cao-stijgingen'!$H$25,'cao-stijgingen'!$B$25:$H$25,0)),)) -> 2803.777688 | D57: =IF(Inputblad!$C$8=Lijsten!$C$2,INDEX('cao-stijgingen'!$B$25:$H$51,MATCH('Uurtarieven per schaal'!$B57,'cao-stijgingen'!$B$25:$B$51,0),MATCH('Uurtarieven per schaal'!D$69,'cao-stijgingen'!$B$25:$H$25,0)),IF(Inputblad!$C$8=Lijsten!$C$3,INDEX('cao-stijgingen'!$B$25:$H$51,MATCH('Uurtarieven per schaal'!$B57,'cao-stijgingen'!$B$25:$B$51,0),MATCH('cao-stijgingen'!$H$25,'cao-stijgingen'!$B$25:$H$25,0)),)) -> 2790.58026 | E57: =IF(Inputblad!$C$8=Lijsten!$C$2,INDEX('cao-stijgingen'!$B$25:$H$51,MATCH('Uurtarieven per schaal'!$B57,'cao-stijgingen'!$B$25:$B$51,0),MATCH('Uurtarieven per schaal'!E$69,'cao-stijgingen'!$B$25:$H$25,0)),IF(Inputblad!$C$8=Lijsten!$C$3,INDEX('cao-stijgingen'!$B$25:$H$51,MATCH('Uurtarieven per schaal'!$B57,'cao-stijgingen'!$B$25:$B$51,0),MATCH('cao-stijgingen'!$H$25,'cao-stijgingen'!$B$25:$H$25,0)),)) -> 2816.323481
B58: =Lijsten!$E$19 -> FWG 40 | C58: =IF(Inputblad!$C$8=Lijsten!$C$2,INDEX('cao-stijgingen'!$B$25:$H$51,MATCH('Uurtarieven per schaal'!$B58,'cao-stijgingen'!$B$25:$B$51,0),MATCH('Uurtarieven per schaal'!C$69,'cao-stijgingen'!$B$25:$H$25,0)),IF(Inputblad!$C$8=Lijsten!$C$3,INDEX('cao-stijgingen'!$B$25:$H$51,MATCH('Uurtarieven per schaal'!$B58,'cao-stijgingen'!$B$25:$B$51,0),MATCH('cao-stijgingen'!$H$25,'cao-stijgingen'!$B$25:$H$25,0)),)) -> 3015.616054 | D58: =IF(Inputblad!$C$8=Lijsten!$C$2,INDEX('cao-stijgingen'!$B$25:$H$51,MATCH('Uurtarieven per schaal'!$B58,'cao-stijgingen'!$B$25:$B$51,0),MATCH('Uurtarieven per schaal'!D$69,'cao-stijgingen'!$B$25:$H$25,0)),IF(Inputblad!$C$8=Lijsten!$C$3,INDEX('cao-stijgingen'!$B$25:$H$51,MATCH('Uurtarieven per schaal'!$B58,'cao-stijgingen'!$B$25:$B$51,0),MATCH('cao-stijgingen'!$H$25,'cao-stijgingen'!$B$25:$H$25,0)),)) -> 3073.99066 | E58: =IF(Inputblad!$C$8=Lijsten!$C$2,INDEX('cao-stijgingen'!$B$25:$H$51,MATCH('Uurtarieven per schaal'!$B58,'cao-stijgingen'!$B$25:$B$51,0),MATCH('Uurtarieven per schaal'!E$69,'cao-stijgingen'!$B$25:$H$25,0)),IF(Inputblad!$C$8=Lijsten!$C$3,INDEX('cao-stijgingen'!$B$25:$H$51,MATCH('Uurtarieven per schaal'!$B58,'cao-stijgingen'!$B$25:$B$51,0),MATCH('cao-stijgingen'!$H$25,'cao-stijgingen'!$B$25:$H$25,0)),)) -> 2955.297201
B59: =Lijsten!$E$20 -> FWG 45 | C59: =IF(Inputblad!$C$8=Lijsten!$C$2,INDEX('cao-stijgingen'!$B$25:$H$51,MATCH('Uurtarieven per schaal'!$B59,'cao-stijgingen'!$B$25:$B$51,0),MATCH('Uurtarieven per schaal'!C$69,'cao-stijgingen'!$B$25:$H$25,0)),IF(Inputblad!$C$8=Lijsten!$C$3,INDEX('cao-stijgingen'!$B$25:$H$51,MATCH('Uurtarieven per schaal'!$B59,'cao-stijgingen'!$B$25:$B$51,0),MATCH('cao-stijgingen'!$H$25,'cao-stijgingen'!$B$25:$H$25,0)),)) -> 3313.250797 | D59: =IF(Inputblad!$C$8=Lijsten!$C$2,INDEX('cao-stijgingen'!$B$25:$H$51,MATCH('Uurtarieven per schaal'!$B59,'cao-stijgingen'!$B$25:$B$51,0),MATCH('Uurtarieven per schaal'!D$69,'cao-stijgingen'!$B$25:$H$25,0)),IF(Inputblad!$C$8=Lijsten!$C$3,INDEX('cao-stijgingen'!$B$25:$H$51,MATCH('Uurtarieven per schaal'!$B59,'cao-stijgingen'!$B$25:$B$51,0),MATCH('cao-stijgingen'!$H$25,'cao-stijgingen'!$B$25:$H$25,0)),)) -> 3366.51068 | E59: =IF(Inputblad!$C$8=Lijsten!$C$2,INDEX('cao-stijgingen'!$B$25:$H$51,MATCH('Uurtarieven per schaal'!$B59,'cao-stijgingen'!$B$25:$B$51,0),MATCH('Uurtarieven per schaal'!E$69,'cao-stijgingen'!$B$25:$H$25,0)),IF(Inputblad!$C$8=Lijsten!$C$3,INDEX('cao-stijgingen'!$B$25:$H$51,MATCH('Uurtarieven per schaal'!$B59,'cao-stijgingen'!$B$25:$B$51,0),MATCH('cao-stijgingen'!$H$25,'cao-stijgingen'!$B$25:$H$25,0)),)) -> 3246.931445
B60: =Lijsten!$E$21 -> FWG 50 | C60: =IF(Inputblad!$C$8=Lijsten!$C$2,INDEX('cao-stijgingen'!$B$25:$H$51,MATCH('Uurtarieven per schaal'!$B60,'cao-stijgingen'!$B$25:$B$51,0),MATCH('Uurtarieven per schaal'!C$69,'cao-stijgingen'!$B$25:$H$25,0)),IF(Inputblad!$C$8=Lijsten!$C$3,INDEX('cao-stijgingen'!$B$25:$H$51,MATCH('Uurtarieven per schaal'!$B60,'cao-stijgingen'!$B$25:$B$51,0),MATCH('cao-stijgingen'!$H$25,'cao-stijgingen'!$B$25:$H$25,0)),)) -> 3763.253686 | D60: =IF(Inputblad!$C$8=Lijsten!$C$2,INDEX('cao-stijgingen'!$B$25:$H$51,MATCH('Uurtarieven per schaal'!$B60,'cao-stijgingen'!$B$25:$B$51,0),MATCH('Uurtarieven per schaal'!D$69,'cao-stijgingen'!$B$25:$H$25,0)),IF(Inputblad!$C$8=Lijsten!$C$3,INDEX('cao-stijgingen'!$B$25:$H$51,MATCH('Uurtarieven per schaal'!$B60,'cao-stijgingen'!$B$25:$B$51,0),MATCH('cao-stijgingen'!$H$25,'cao-stijgingen'!$B$25:$H$25,0)),)) -> 3722.79804 | E60: =IF(Inputblad!$C$8=Lijsten!$C$2,INDEX('cao-stijgingen'!$B$25:$H$51,MATCH('Uurtarieven per schaal'!$B60,'cao-stijgingen'!$B$25:$B$51,0),MATCH('Uurtarieven per schaal'!E$69,'cao-stijgingen'!$B$25:$H$25,0)),IF(Inputblad!$C$8=Lijsten!$C$3,INDEX('cao-stijgingen'!$B$25:$H$51,MATCH('Uurtarieven per schaal'!$B60,'cao-stijgingen'!$B$25:$B$51,0),MATCH('cao-stijgingen'!$H$25,'cao-stijgingen'!$B$25:$H$25,0)),)) -> 3690.173384
B61: =Lijsten!$E$22 -> FWG 55 | C61: =IF(Inputblad!$C$8=Lijsten!$C$2,INDEX('cao-stijgingen'!$B$25:$H$51,MATCH('Uurtarieven per schaal'!$B61,'cao-stijgingen'!$B$25:$B$51,0),MATCH('Uurtarieven per schaal'!C$69,'cao-stijgingen'!$B$25:$H$25,0)),IF(Inputblad!$C$8=Lijsten!$C$3,INDEX('cao-stijgingen'!$B$25:$H$51,MATCH('Uurtarieven per schaal'!$B61,'cao-stijgingen'!$B$25:$B$51,0),MATCH('cao-stijgingen'!$H$25,'cao-stijgingen'!$B$25:$H$25,0)),)) -> 4224.350119 | D61: =IF(Inputblad!$C$8=Lijsten!$C$2,INDEX('cao-stijgingen'!$B$25:$H$51,MATCH('Uurtarieven per schaal'!$B61,'cao-stijgingen'!$B$25:$B$51,0),MATCH('Uurtarieven per schaal'!D$69,'cao-stijgingen'!$B$25:$H$25,0)),IF(Inputblad!$C$8=Lijsten!$C$3,INDEX('cao-stijgingen'!$B$25:$H$51,MATCH('Uurtarieven per schaal'!$B61,'cao-stijgingen'!$B$25:$B$51,0),MATCH('cao-stijgingen'!$H$25,'cao-stijgingen'!$B$25:$H$25,0)),)) -> 4181.31558 | E61: =IF(Inputblad!$C$8=Lijsten!$C$2,INDEX('cao-stijgingen'!$B$25:$H$51,MATCH('Uurtarieven per schaal'!$B61,'cao-stijgingen'!$B$25:$B$51,0),MATCH('Uurtarieven per schaal'!E$69,'cao-stijgingen'!$B$25:$H$25,0)),IF(Inputblad!$C$8=Lijsten!$C$3,INDEX('cao-stijgingen'!$B$25:$H$51,MATCH('Uurtarieven per schaal'!$B61,'cao-stijgingen'!$B$25:$B$51,0),MATCH('cao-stijgingen'!$H$25,'cao-stijgingen'!$B$25:$H$25,0)),)) -> 4156.577609
B62: =Lijsten!$E$23 -> FWG 60 | C62: =IF(Inputblad!$C$8=Lijsten!$C$2,INDEX('cao-stijgingen'!$B$25:$H$51,MATCH('Uurtarieven per schaal'!$B62,'cao-stijgingen'!$B$25:$B$51,0),MATCH('Uurtarieven per schaal'!C$69,'cao-stijgingen'!$B$25:$H$25,0)),IF(Inputblad!$C$8=Lijsten!$C$3,INDEX('cao-stijgingen'!$B$25:$H$51,MATCH('Uurtarieven per schaal'!$B62,'cao-stijgingen'!$B$25:$B$51,0),MATCH('cao-stijgingen'!$H$25,'cao-stijgingen'!$B$25:$H$25,0)),)) -> 4815.564579 | D62: =IF(Inputblad!$C$8=Lijsten!$C$2,INDEX('cao-stijgingen'!$B$25:$H$51,MATCH('Uurtarieven per schaal'!$B62,'cao-stijgingen'!$B$25:$B$51,0),MATCH('Uurtarieven per schaal'!D$69,'cao-stijgingen'!$B$25:$H$25,0)),IF(Inputblad!$C$8=Lijsten!$C$3,INDEX('cao-stijgingen'!$B$25:$H$51,MATCH('Uurtarieven per schaal'!$B62,'cao-stijgingen'!$B$25:$B$51,0),MATCH('cao-stijgingen'!$H$25,'cao-stijgingen'!$B$25:$H$25,0)),)) -> 4676.2716 | E62: =IF(Inputblad!$C$8=Lijsten!$C$2,INDEX('cao-stijgingen'!$B$25:$H$51,MATCH('Uurtarieven per schaal'!$B62,'cao-stijgingen'!$B$25:$B$51,0),MATCH('Uurtarieven per schaal'!E$69,'cao-stijgingen'!$B$25:$H$25,0)),IF(Inputblad!$C$8=Lijsten!$C$3,INDEX('cao-stijgingen'!$B$25:$H$51,MATCH('Uurtarieven per schaal'!$B62,'cao-stijgingen'!$B$25:$B$51,0),MATCH('cao-stijgingen'!$H$25,'cao-stijgingen'!$B$25:$H$25,0)),)) -> 4736.687605
B63: =Lijsten!$E$24 -> FWG 65 | C63: =IF(Inputblad!$C$8=Lijsten!$C$2,INDEX('cao-stijgingen'!$B$25:$H$51,MATCH('Uurtarieven per schaal'!$B63,'cao-stijgingen'!$B$25:$B$51,0),MATCH('Uurtarieven per schaal'!C$69,'cao-stijgingen'!$B$25:$H$25,0)),IF(Inputblad!$C$8=Lijsten!$C$3,INDEX('cao-stijgingen'!$B$25:$H$51,MATCH('Uurtarieven per schaal'!$B63,'cao-stijgingen'!$B$25:$B$51,0),MATCH('cao-stijgingen'!$H$25,'cao-stijgingen'!$B$25:$H$25,0)),)) -> 5668.443805 | D63: =IF(Inputblad!$C$8=Lijsten!$C$2,INDEX('cao-stijgingen'!$B$25:$H$51,MATCH('Uurtarieven per schaal'!$B63,'cao-stijgingen'!$B$25:$B$51,0),MATCH('Uurtarieven per schaal'!D$69,'cao-stijgingen'!$B$25:$H$25,0)),IF(Inputblad!$C$8=Lijsten!$C$3,INDEX('cao-stijgingen'!$B$25:$H$51,MATCH('Uurtarieven per schaal'!$B63,'cao-stijgingen'!$B$25:$B$51,0),MATCH('cao-stijgingen'!$H$25,'cao-stijgingen'!$B$25:$H$25,0)),)) -> 5505.24702 | E63: =IF(Inputblad!$C$8=Lijsten!$C$2,INDEX('cao-stijgingen'!$B$25:$H$51,MATCH('Uurtarieven per schaal'!$B63,'cao-stijgingen'!$B$25:$B$51,0),MATCH('Uurtarieven per schaal'!E$69,'cao-stijgingen'!$B$25:$H$25,0)),IF(Inputblad!$C$8=Lijsten!$C$3,INDEX('cao-stijgingen'!$B$25:$H$51,MATCH('Uurtarieven per schaal'!$B63,'cao-stijgingen'!$B$25:$B$51,0),MATCH('cao-stijgingen'!$H$25,'cao-stijgingen'!$B$25:$H$25,0)),)) -> 5575.794078
B64: =Lijsten!$E$25 -> FWG 70 | C64: =IF(Inputblad!$C$8=Lijsten!$C$2,INDEX('cao-stijgingen'!$B$25:$H$51,MATCH('Uurtarieven per schaal'!$B64,'cao-stijgingen'!$B$25:$B$51,0),MATCH('Uurtarieven per schaal'!C$69,'cao-stijgingen'!$B$25:$H$25,0)),IF(Inputblad!$C$8=Lijsten!$C$3,INDEX('cao-stijgingen'!$B$25:$H$51,MATCH('Uurtarieven per schaal'!$B64,'cao-stijgingen'!$B$25:$B$51,0),MATCH('cao-stijgingen'!$H$25,'cao-stijgingen'!$B$25:$H$25,0)),)) -> 6841.197389 | D64: =IF(Inputblad!$C$8=Lijsten!$C$2,INDEX('cao-stijgingen'!$B$25:$H$51,MATCH('Uurtarieven per schaal'!$B64,'cao-stijgingen'!$B$25:$B$51,0),MATCH('Uurtarieven per schaal'!D$69,'cao-stijgingen'!$B$25:$H$25,0)),IF(Inputblad!$C$8=Lijsten!$C$3,INDEX('cao-stijgingen'!$B$25:$H$51,MATCH('Uurtarieven per schaal'!$B64,'cao-stijgingen'!$B$25:$B$51,0),MATCH('cao-stijgingen'!$H$25,'cao-stijgingen'!$B$25:$H$25,0)),)) -> 6643.94952 | E64: =IF(Inputblad!$C$8=Lijsten!$C$2,INDEX('cao-stijgingen'!$B$25:$H$51,MATCH('Uurtarieven per schaal'!$B64,'cao-stijgingen'!$B$25:$B$51,0),MATCH('Uurtarieven per schaal'!E$69,'cao-stijgingen'!$B$25:$H$25,0)),IF(Inputblad!$C$8=Lijsten!$C$3,INDEX('cao-stijgingen'!$B$25:$H$51,MATCH('Uurtarieven per schaal'!$B64,'cao-stijgingen'!$B$25:$B$51,0),MATCH('cao-stijgingen'!$H$25,'cao-stijgingen'!$B$25:$H$25,0)),)) -> 6733.908406
B65: =Lijsten!$E$26 -> FWG 75 | C65: =IF(Inputblad!$C$8=Lijsten!$C$2,INDEX('cao-stijgingen'!$B$25:$H$51,MATCH('Uurtarieven per schaal'!$B65,'cao-stijgingen'!$B$25:$B$51,0),MATCH('Uurtarieven per schaal'!C$69,'cao-stijgingen'!$B$25:$H$25,0)),IF(Inputblad!$C$8=Lijsten!$C$3,INDEX('cao-stijgingen'!$B$25:$H$51,MATCH('Uurtarieven per schaal'!$B65,'cao-stijgingen'!$B$25:$B$51,0),MATCH('cao-stijgingen'!$H$25,'cao-stijgingen'!$B$25:$H$25,0)),)) -> 8268.67177 | D65: =IF(Inputblad!$C$8=Lijsten!$C$2,INDEX('cao-stijgingen'!$B$25:$H$51,MATCH('Uurtarieven per schaal'!$B65,'cao-stijgingen'!$B$25:$B$51,0),MATCH('Uurtarieven per schaal'!D$69,'cao-stijgingen'!$B$25:$H$25,0)),IF(Inputblad!$C$8=Lijsten!$C$3,INDEX('cao-stijgingen'!$B$25:$H$51,MATCH('Uurtarieven per schaal'!$B65,'cao-stijgingen'!$B$25:$B$51,0),MATCH('cao-stijgingen'!$H$25,'cao-stijgingen'!$B$25:$H$25,0)),)) -> 8030.63612 | E65: =IF(Inputblad!$C$8=Lijsten!$C$2,INDEX('cao-stijgingen'!$B$25:$H$51,MATCH('Uurtarieven per schaal'!$B65,'cao-stijgingen'!$B$25:$B$51,0),MATCH('Uurtarieven per schaal'!E$69,'cao-stijgingen'!$B$25:$H$25,0)),IF(Inputblad!$C$8=Lijsten!$C$3,INDEX('cao-stijgingen'!$B$25:$H$51,MATCH('Uurtarieven per schaal'!$B65,'cao-stijgingen'!$B$25:$B$51,0),MATCH('cao-stijgingen'!$H$25,'cao-stijgingen'!$B$25:$H$25,0)),)) -> 8149.966381
B66: =Lijsten!$E$27 -> FWG 80 | C66: =IF(Inputblad!$C$8=Lijsten!$C$2,INDEX('cao-stijgingen'!$B$25:$H$51,MATCH('Uurtarieven per schaal'!$B66,'cao-stijgingen'!$B$25:$B$51,0),MATCH('Uurtarieven per schaal'!C$69,'cao-stijgingen'!$B$25:$H$25,0)),IF(Inputblad!$C$8=Lijsten!$C$3,INDEX('cao-stijgingen'!$B$25:$H$51,MATCH('Uurtarieven per schaal'!$B66,'cao-stijgingen'!$B$25:$B$51,0),MATCH('cao-stijgingen'!$H$25,'cao-stijgingen'!$B$25:$H$25,0)),)) -> 9668.475322 | D66: =IF(Inputblad!$C$8=Lijsten!$C$2,INDEX('cao-stijgingen'!$B$25:$H$51,MATCH('Uurtarieven per schaal'!$B66,'cao-stijgingen'!$B$25:$B$51,0),MATCH('Uurtarieven per schaal'!D$69,'cao-stijgingen'!$B$25:$H$25,0)),IF(Inputblad!$C$8=Lijsten!$C$3,INDEX('cao-stijgingen'!$B$25:$H$51,MATCH('Uurtarieven per schaal'!$B66,'cao-stijgingen'!$B$25:$B$51,0),MATCH('cao-stijgingen'!$H$25,'cao-stijgingen'!$B$25:$H$25,0)),)) -> 9391.00604 | E66: =IF(Inputblad!$C$8=Lijsten!$C$2,INDEX('cao-stijgingen'!$B$25:$H$51,MATCH('Uurtarieven per schaal'!$B66,'cao-stijgingen'!$B$25:$B$51,0),MATCH('Uurtarieven per schaal'!E$69,'cao-stijgingen'!$B$25:$H$25,0)),IF(Inputblad!$C$8=Lijsten!$C$3,INDEX('cao-stijgingen'!$B$25:$H$51,MATCH('Uurtarieven per schaal'!$B66,'cao-stijgingen'!$B$25:$B$51,0),MATCH('cao-stijgingen'!$H$25,'cao-stijgingen'!$B$25:$H$25,0)),)) -> 9688.152776
B69: SALARISSEN * PERCENTAGE VAN HOOGSTE PERIODIEK | C69: =Lijsten!$F$6 -> VVT | D69: =Lijsten!$F$4 -> GGZ | E69: =Lijsten!$F$5 -> Gehandicaptenzorg | F69: =Lijsten!$F$3 -> Jeugdzorg | G69: =Lijsten!$F$2 -> Sociaal werk
B70: =Lijsten!$E$2 -> schaal 2 | F70: =F41*Inputblad!$C$20 -> 2262.216 | G70: =G41*Inputblad!$C$20 -> 2339.92125
B71: =Lijsten!$E$3 -> schaal 3 | F71: =F42*Inputblad!$C$20 -> 2388.1024 | G71: =G42*Inputblad!$C$20 -> 2483.0625
B72: =Lijsten!$E$4 -> schaal 4 | F72: =F43*Inputblad!$C$20 -> 2262.216 | G72: =G43*Inputblad!$C$20 -> 2339.92125
B73: =Lijsten!$E$5 -> schaal 5 | F73: =F44*Inputblad!$C$20 -> 2742.829787 | G73: =G44*Inputblad!$C$20 -> 2858.93
B74: =Lijsten!$E$6 -> schaal 6 | F74: =F45*Inputblad!$C$20 -> 2957.152162 | G74: =G45*Inputblad!$C$20 -> 3192.92625
B75: =Lijsten!$E$7 -> schaal 7 | F75: =F46*Inputblad!$C$20 -> 3199.2751 | G75: =G46*Inputblad!$C$20 -> 3402.2825
B76: =Lijsten!$E$8 -> schaal 8 | F76: =F47*Inputblad!$C$20 -> 3475.294275 | G76: =G47*Inputblad!$C$20 -> 3762.57
B77: =Lijsten!$E$9 -> schaal 9 | F77: =F48*Inputblad!$C$20 -> 3786.4853 | G77: =G48*Inputblad!$C$20 -> 4140.385
B78: =Lijsten!$E$10 -> schaal 10 | F78: =F49*Inputblad!$C$20 -> 4144.231312 | G78: =G49*Inputblad!$C$20 -> 4588.31
B79: =Lijsten!$E$11 -> schaal 11 | F79: =F50*Inputblad!$C$20 -> 4767.733175 | G79: =G50*Inputblad!$C$20 -> 5087.84375
B80: =Lijsten!$E$12 -> schaal 12 | F80: =F51*Inputblad!$C$20 -> 5469.339525 | G80: =G51*Inputblad!$C$20 -> 5648.72375
B81: =Lijsten!$E$13 -> FWG 10 | C81: =C52*Inputblad!$C$20 -> 1711.248497 | D81: =D52*Inputblad!$C$20 -> 1997.182967 | E81: =E52*Inputblad!$C$20 -> 2016.38233
B82: =Lijsten!$E$14 -> FWG 15 | C82: =C53*Inputblad!$C$20 -> 2126.914976 | D82: =D53*Inputblad!$C$20 -> 2132.764478 | E82: =E53*Inputblad!$C$20 -> 2153.408311
B83: =Lijsten!$E$15 -> FWG 20 | C83: =C54*Inputblad!$C$20 -> 2261.095908 | D83: =D54*Inputblad!$C$20 -> 2266.422847 | E83: =E54*Inputblad!$C$20 -> 2287.433724
B84: =Lijsten!$E$16 -> FWG 25 | C84: =C55*Inputblad!$C$20 -> 2392.592223 | D84: =D55*Inputblad!$C$20 -> 2391.427077 | E84: =E55*Inputblad!$C$20 -> 2413.45762
B85: =Lijsten!$E$17 -> FWG 30 | C85: =C56*Inputblad!$C$20 -> 2463.639754 | D85: =D56*Inputblad!$C$20 -> 2521.239162 | E85: =E56*Inputblad!$C$20 -> 2546.482843
B86: =Lijsten!$E$18 -> FWG 35 | C86: =C57*Inputblad!$C$20 -> 2663.588804 | D86: =D57*Inputblad!$C$20 -> 2651.051247 | E86: =E57*Inputblad!$C$20 -> 2675.507307
B87: =Lijsten!$E$19 -> FWG 40 | C87: =C58*Inputblad!$C$20 -> 2864.835252 | D87: =D58*Inputblad!$C$20 -> 2920.291127 | E87: =E58*Inputblad!$C$20 -> 2807.532341
B88: =Lijsten!$E$20 -> FWG 45 | C88: =C59*Inputblad!$C$20 -> 3147.588258 | D88: =D59*Inputblad!$C$20 -> 3198.185146 | E88: =E59*Inputblad!$C$20 -> 3084.584873
B89: =Lijsten!$E$21 -> FWG 50 | C89: =C60*Inputblad!$C$20 -> 3575.091002 | D89: =D60*Inputblad!$C$20 -> 3536.658138 | E89: =E60*Inputblad!$C$20 -> 3505.664715
B90: =Lijsten!$E$22 -> FWG 55 | C90: =C61*Inputblad!$C$20 -> 4013.132614 | D90: =D61*Inputblad!$C$20 -> 3972.249801 | E90: =E61*Inputblad!$C$20 -> 3948.748729
B91: =Lijsten!$E$23 -> FWG 60 | C91: =C62*Inputblad!$C$20 -> 4574.78635 | D91: =D62*Inputblad!$C$20 -> 4442.45802 | E91: =E62*Inputblad!$C$20 -> 4499.853225
B92: =Lijsten!$E$24 -> FWG 65 | C92: =C63*Inputblad!$C$20 -> 5385.021615 | D92: =D63*Inputblad!$C$20 -> 5229.984669 | E92: =E63*Inputblad!$C$20 -> 5297.004374
B93: =Lijsten!$E$25 -> FWG 70 | C93: =C64*Inputblad!$C$20 -> 6499.13752 | D93: =D64*Inputblad!$C$20 -> 6311.752044 | E93: =E64*Inputblad!$C$20 -> 6397.212986
B94: =Lijsten!$E$26 -> FWG 75 | C94: =C65*Inputblad!$C$20 -> 7855.238181 | D94: =D65*Inputblad!$C$20 -> 7629.104314 | E94: =E65*Inputblad!$C$20 -> 7742.468062
B95: =Lijsten!$E$27 -> FWG 80 | C95: =C66*Inputblad!$C$20 -> 9185.051556 | D95: =D66*Inputblad!$C$20 -> 8921.455738 | E95: =E66*Inputblad!$C$20 -> 9203.745137
B98: SALARISSEN * onregelmatigheidstoeslag | C98: =Lijsten!$F$6 -> VVT | D98: =Lijsten!$F$4 -> GGZ | E98: =Lijsten!$F$5 -> Gehandicaptenzorg | F98: =Lijsten!$F$3 -> Jeugdzorg | G98: =Lijsten!$F$2 -> Sociaal werk
B99: =B70 -> schaal 2 | F99: =F70*(1+Inputblad!$C$21) -> 2330.08248 | G99: =G70*(1+Inputblad!$C$21) -> 2410.118887
B100: schaal 3 | F100: =F71*(1+Inputblad!$C$21) -> 2459.745472 | G100: =G71*(1+Inputblad!$C$21) -> 2557.554375
B101: schaal 4 | F101: =F72*(1+Inputblad!$C$21) -> 2330.08248 | G101: =G72*(1+Inputblad!$C$21) -> 2410.118887
B102: schaal 5 | F102: =F73*(1+Inputblad!$C$21) -> 2825.114681 | G102: =G73*(1+Inputblad!$C$21) -> 2944.6979
B103: schaal 6 | F103: =F74*(1+Inputblad!$C$21) -> 3045.866727 | G103: =G74*(1+Inputblad!$C$21) -> 3288.714037
B104: schaal 7 | F104: =F75*(1+Inputblad!$C$21) -> 3295.253353 | G104: =G75*(1+Inputblad!$C$21) -> 3504.350975
B105: schaal 8 | F105: =F76*(1+Inputblad!$C$21) -> 3579.553103 | G105: =G76*(1+Inputblad!$C$21) -> 3875.4471
B106: schaal 9 | F106: =F77*(1+Inputblad!$C$21) -> 3900.079859 | G106: =G77*(1+Inputblad!$C$21) -> 4264.59655
B107: schaal 10 | F107: =F78*(1+Inputblad!$C$21) -> 4268.558252 | G107: =G78*(1+Inputblad!$C$21) -> 4725.9593
B108: schaal 11 | F108: =F79*(1+Inputblad!$C$21) -> 4910.76517 | G108: =G79*(1+Inputblad!$C$21) -> 5240.479062
B109: schaal 12 | F109: =F80*(1+Inputblad!$C$21) -> 5633.419711 | G109: =G80*(1+Inputblad!$C$21) -> 5818.185462
B110: FWG 10 | C110: =C81*(1+Inputblad!$C$21) -> 1762.585952 | D110: =D81*(1+Inputblad!$C$21) -> 2057.098456 | E110: =E81*(1+Inputblad!$C$21) -> 2076.873799
B111: FWG 15 | C111: =C82*(1+Inputblad!$C$21) -> 2190.722425 | D111: =D82*(1+Inputblad!$C$21) -> 2196.747412 | E111: =E82*(1+Inputblad!$C$21) -> 2218.010561
B112: FWG 20 | C112: =C83*(1+Inputblad!$C$21) -> 2328.928785 | D112: =D83*(1+Inputblad!$C$21) -> 2334.415532 | E112: =E83*(1+Inputblad!$C$21) -> 2356.056736
B113: FWG 25 | C113: =C84*(1+Inputblad!$C$21) -> 2464.36999 | D113: =D84*(1+Inputblad!$C$21) -> 2463.169889 | E113: =E84*(1+Inputblad!$C$21) -> 2485.861348
B114: FWG 30 | C114: =C85*(1+Inputblad!$C$21) -> 2537.548947 | D114: =D85*(1+Inputblad!$C$21) -> 2596.876337 | E114: =E85*(1+Inputblad!$C$21) -> 2622.877328
B115: FWG 35 | C115: =C86*(1+Inputblad!$C$21) -> 2743.496468 | D115: =D86*(1+Inputblad!$C$21) -> 2730.582784 | E115: =E86*(1+Inputblad!$C$21) -> 2755.772527
B116: FWG 40 | C116: =C87*(1+Inputblad!$C$21) -> 2950.780309 | D116: =D87*(1+Inputblad!$C$21) -> 3007.899861 | E116: =E87*(1+Inputblad!$C$21) -> 2891.758311
B117: FWG 45 | C117: =C88*(1+Inputblad!$C$21) -> 3242.015905 | D117: =D88*(1+Inputblad!$C$21) -> 3294.1307 | E117: =E88*(1+Inputblad!$C$21) -> 3177.122419
B118: FWG 50 | C118: =C89*(1+Inputblad!$C$21) -> 3682.343732 | D118: =D89*(1+Inputblad!$C$21) -> 3642.757882 | E118: =E89*(1+Inputblad!$C$21) -> 3610.834656
B119: FWG 55 | C119: =C90*(1+Inputblad!$C$21) -> 4133.526592 | D119: =D90*(1+Inputblad!$C$21) -> 4091.417295 | E119: =E90*(1+Inputblad!$C$21) -> 4067.211191
B120: FWG 60 | C120: =C91*(1+Inputblad!$C$21) -> 4712.029941 | D120: =D91*(1+Inputblad!$C$21) -> 4575.731761 | E120: =E91*(1+Inputblad!$C$21) -> 4634.848821
B121: FWG 65 | C121: =C92*(1+Inputblad!$C$21) -> 5546.572264 | D121: =D92*(1+Inputblad!$C$21) -> 5386.884209 | E121: =E92*(1+Inputblad!$C$21) -> 5455.914505
B122: FWG 70 | C122: =C93*(1+Inputblad!$C$21) -> 6694.111645 | D122: =D93*(1+Inputblad!$C$21) -> 6501.104605 | E122: =E93*(1+Inputblad!$C$21) -> 6589.129376
B123: FWG 75 | C123: =C94*(1+Inputblad!$C$21) -> 8090.895327 | D123: =D94*(1+Inputblad!$C$21) -> 7857.977443 | E123: =E94*(1+Inputblad!$C$21) -> 7974.742104
B124: FWG 80 | C124: =C95*(1+Inputblad!$C$21) -> 9460.603102 | D124: =D95*(1+Inputblad!$C$21) -> 9189.09941 | E124: =E95*(1+Inputblad!$C$21) -> 9479.857491
B125: 0
C127: =C133 -> VVT | D127: GGZ | E127: Gehandicaptenzorg | F127: Jeugdzorg | G127: Sociaal werk
B128: Minimumbedrag eindejaarsuitkering | C128: =INDEX('cao-stijgingen'!$L$5:$P$10,MATCH(C$127,'cao-stijgingen'!$L$5:$L$10,0),3) -> 2164.376233 | D128: =INDEX('cao-stijgingen'!$L$5:$P$10,MATCH(D$127,'cao-stijgingen'!$L$5:$L$10,0),3) -> 2384.753977 | E128: =INDEX('cao-stijgingen'!$L$5:$P$10,MATCH(E$127,'cao-stijgingen'!$L$5:$L$10,0),3) -> 979.36 | F128: =INDEX('cao-stijgingen'!$L$5:$P$10,MATCH(F$127,'cao-stijgingen'!$L$5:$L$10,0),3) -> 0 | G128: =INDEX('cao-stijgingen'!$L$5:$P$10,MATCH(G$127,'cao-stijgingen'!$L$5:$L$10,0),3) -> 1283.874
B129: Minimumbedrag vakantiegeld | C129: =INDEX('cao-stijgingen'!$L$5:$Q$10,MATCH('Uurtarieven per schaal'!C$69,'cao-stijgingen'!$L$5:$L$10,0),4) -> 1595.95758 | D129: =INDEX('cao-stijgingen'!$L$5:$Q$10,MATCH('Uurtarieven per schaal'!D$69,'cao-stijgingen'!$L$5:$L$10,0),4) -> 2290.27993 | E129: =INDEX('cao-stijgingen'!$L$5:$Q$10,MATCH('Uurtarieven per schaal'!E$69,'cao-stijgingen'!$L$5:$L$10,0),4) -> 1519.2 | F129: =INDEX('cao-stijgingen'!$L$5:$Q$10,MATCH('Uurtarieven per schaal'!F$69,'cao-stijgingen'!$L$5:$L$10,0),4) -> 2110.188 | G129: =INDEX('cao-stijgingen'!$L$5:$Q$10,MATCH('Uurtarieven per schaal'!G$69,'cao-stijgingen'!$L$5:$L$10,0),4) -> 2151.639
B130: Eindejaarsuitkering over vakantiegeld? | C130: met | D130: =INDEX('cao-stijgingen'!$L$5:$Q$10,MATCH('Uurtarieven per schaal'!D$69,'cao-stijgingen'!$L$5:$L$10,0),2) -> zonder | E130: met | F130: =INDEX('cao-stijgingen'!$L$5:$Q$10,MATCH('Uurtarieven per schaal'!F$69,'cao-stijgingen'!$L$5:$L$10,0),2) -> met | G130: =INDEX('cao-stijgingen'!$L$5:$Q$10,MATCH('Uurtarieven per schaal'!G$69,'cao-stijgingen'!$L$5:$L$10,0),2) -> met
B133: EINDEJAARSUITKERING | C133: =Lijsten!$F$6 -> VVT | D133: =Lijsten!$F$4 -> GGZ | E133: =Lijsten!$F$5 -> Gehandicaptenzorg | F133: =Lijsten!$F$3 -> Jeugdzorg | G133: =Lijsten!$F$2 -> Sociaal werk
B134: =Lijsten!$E$2 -> schaal 2 | F134: =IF(F$130="zonder",IF(F99*12*Inputblad!$C$22<=F$128,F$128,F99*12*Inputblad!$C$22),IF(F$130="met",(F99*12+F163)*Inputblad!$C$22,"")) -> 2515.482483 | G134: =IF(G$130="zonder",IF(G99*12*Inputblad!$C$22<=G$128,G$128,G99*12*Inputblad!$C$22),IF(G$130="met",(G99*12+G163)*Inputblad!$C$22,"")) -> 2601.887227
B135: =Lijsten!$E$3 -> schaal 3 | F135: =IF(F$130="zonder",IF(F100*12*Inputblad!$C$22<=F$128,F$128,F100*12*Inputblad!$C$22),IF(F$130="met",(F100*12+F164)*Inputblad!$C$22,"")) -> 2655.4625 | G135: =IF(G$130="zonder",IF(G100*12*Inputblad!$C$22<=G$128,G$128,G100*12*Inputblad!$C$22),IF(G$130="met",(G100*12+G164)*Inputblad!$C$22,"")) -> 2761.053862
B136: =Lijsten!$E$4 -> schaal 4 | F136: =IF(F$130="zonder",IF(F101*12*Inputblad!$C$22<=F$128,F$128,F101*12*Inputblad!$C$22),IF(F$130="met",(F101*12+F165)*Inputblad!$C$22,"")) -> 2515.482483 | G136: =IF(G$130="zonder",IF(G101*12*Inputblad!$C$22<=G$128,G$128,G101*12*Inputblad!$C$22),IF(G$130="met",(G101*12+G165)*Inputblad!$C$22,"")) -> 2601.887227
B137: =Lijsten!$E$5 -> schaal 5 | F137: =IF(F$130="zonder",IF(F102*12*Inputblad!$C$22<=F$128,F$128,F102*12*Inputblad!$C$22),IF(F$130="met",(F102*12+F166)*Inputblad!$C$22,"")) -> 3049.903406 | G137: =IF(G$130="zonder",IF(G102*12*Inputblad!$C$22<=G$128,G$128,G102*12*Inputblad!$C$22),IF(G$130="met",(G102*12+G166)*Inputblad!$C$22,"")) -> 3179.001623
B138: =Lijsten!$E$6 -> schaal 6 | F138: =IF(F$130="zonder",IF(F103*12*Inputblad!$C$22<=F$128,F$128,F103*12*Inputblad!$C$22),IF(F$130="met",(F103*12+F167)*Inputblad!$C$22,"")) -> 3288.220251 | G138: =IF(G$130="zonder",IF(G103*12*Inputblad!$C$22<=G$128,G$128,G103*12*Inputblad!$C$22),IF(G$130="met",(G103*12+G167)*Inputblad!$C$22,"")) -> 3550.390436
B139: =Lijsten!$E$7 -> schaal 7 | F139: =IF(F$130="zonder",IF(F104*12*Inputblad!$C$22<=F$128,F$128,F104*12*Inputblad!$C$22),IF(F$130="met",(F104*12+F168)*Inputblad!$C$22,"")) -> 3557.450072 | G139: =IF(G$130="zonder",IF(G104*12*Inputblad!$C$22<=G$128,G$128,G104*12*Inputblad!$C$22),IF(G$130="met",(G104*12+G168)*Inputblad!$C$22,"")) -> 3783.185173
B140: =Lijsten!$E$8 -> schaal 8 | F140: =IF(F$130="zonder",IF(F105*12*Inputblad!$C$22<=F$128,F$128,F105*12*Inputblad!$C$22),IF(F$130="met",(F105*12+F169)*Inputblad!$C$22,"")) -> 3864.370985 | G140: =IF(G$130="zonder",IF(G105*12*Inputblad!$C$22<=G$128,G$128,G105*12*Inputblad!$C$22),IF(G$130="met",(G105*12+G169)*Inputblad!$C$22,"")) -> 4183.808675
B141: =Lijsten!$E$9 -> schaal 9 | F141: =IF(F$130="zonder",IF(F106*12*Inputblad!$C$22<=F$128,F$128,F106*12*Inputblad!$C$22),IF(F$130="met",(F106*12+F170)*Inputblad!$C$22,"")) -> 4210.401413 | G141: =IF(G$130="zonder",IF(G106*12*Inputblad!$C$22<=G$128,G$128,G106*12*Inputblad!$C$22),IF(G$130="met",(G106*12+G170)*Inputblad!$C$22,"")) -> 4603.921968
B142: =Lijsten!$E$10 -> schaal 10 | F142: =IF(F$130="zonder",IF(F107*12*Inputblad!$C$22<=F$128,F$128,F107*12*Inputblad!$C$22),IF(F$130="met",(F107*12+F171)*Inputblad!$C$22,"")) -> 4608.198895 | G142: =IF(G$130="zonder",IF(G107*12*Inputblad!$C$22<=G$128,G$128,G107*12*Inputblad!$C$22),IF(G$130="met",(G107*12+G171)*Inputblad!$C$22,"")) -> 5101.99443
B143: =Lijsten!$E$11 -> schaal 11 | F143: =IF(F$130="zonder",IF(F108*12*Inputblad!$C$22<=F$128,F$128,F108*12*Inputblad!$C$22),IF(F$130="met",(F108*12+F172)*Inputblad!$C$22,"")) -> 5301.504933 | G143: =IF(G$130="zonder",IF(G108*12*Inputblad!$C$22<=G$128,G$128,G108*12*Inputblad!$C$22),IF(G$130="met",(G108*12+G172)*Inputblad!$C$22,"")) -> 5657.453501
B144: =Lijsten!$E$12 -> schaal 12 | F144: =IF(F$130="zonder",IF(F109*12*Inputblad!$C$22<=F$128,F$128,F109*12*Inputblad!$C$22),IF(F$130="met",(F109*12+F173)*Inputblad!$C$22,"")) -> 6081.65965 | G144: =IF(G$130="zonder",IF(G109*12*Inputblad!$C$22<=G$128,G$128,G109*12*Inputblad!$C$22),IF(G$130="met",(G109*12+G173)*Inputblad!$C$22,"")) -> 6281.126843
B145: =Lijsten!$E$13 -> FWG 10 | C145: =IF(C$130="zonder",IF(C110*12*Inputblad!$C$22<=C$128,C$128,C110*12*Inputblad!$C$22),IF(C$130="met",(C110*12+C174)*Inputblad!$C$22,"")) -> 1942.173457 | D145: =IF(D$130="zonder",IF(D110*12*Inputblad!$C$22<=D$128,D$128,D110*12*Inputblad!$C$22),IF(D$130="met",(D110*12+D174)*Inputblad!$C$22,"")) -> 2384.753977 | E145: =IF(E$130="zonder",IF(E110*12*Inputblad!$C$22<=E$128,E$128,E110*12*Inputblad!$C$22),IF(E$130="met",(E110*12+E174)*Inputblad!$C$22,"")) -> 2242.126494
B146: =Lijsten!$E$14 -> FWG 15 | C146: =IF(C$130="zonder",IF(C111*12*Inputblad!$C$22<=C$128,C$128,C111*12*Inputblad!$C$22),IF(C$130="met",(C111*12+C175)*Inputblad!$C$22,"")) -> 2370.138677 | D146: =IF(D$130="zonder",IF(D111*12*Inputblad!$C$22<=D$128,D$128,D111*12*Inputblad!$C$22),IF(D$130="met",(D111*12+D175)*Inputblad!$C$22,"")) -> 2384.753977 | E146: =IF(E$130="zonder",IF(E111*12*Inputblad!$C$22<=E$128,E$128,E111*12*Inputblad!$C$22),IF(E$130="met",(E111*12+E175)*Inputblad!$C$22,"")) -> 2394.493225
B147: =Lijsten!$E$15 -> FWG 20 | C147: =IF(C$130="zonder",IF(C112*12*Inputblad!$C$22<=C$128,C$128,C112*12*Inputblad!$C$22),IF(C$130="met",(C112*12+C176)*Inputblad!$C$22,"")) -> 2514.236991 | D147: =IF(D$130="zonder",IF(D112*12*Inputblad!$C$22<=D$128,D$128,D112*12*Inputblad!$C$22),IF(D$130="met",(D112*12+D176)*Inputblad!$C$22,"")) -> 2384.753977 | E147: =IF(E$130="zonder",IF(E112*12*Inputblad!$C$22<=E$128,E$128,E112*12*Inputblad!$C$22),IF(E$130="met",(E112*12+E176)*Inputblad!$C$22,"")) -> 2543.523458
B148: =Lijsten!$E$16 -> FWG 25 | C148: =IF(C$130="zonder",IF(C113*12*Inputblad!$C$22<=C$128,C$128,C113*12*Inputblad!$C$22),IF(C$130="met",(C113*12+C177)*Inputblad!$C$22,"")) -> 2660.454981 | D148: =IF(D$130="zonder",IF(D113*12*Inputblad!$C$22<=D$128,D$128,D113*12*Inputblad!$C$22),IF(D$130="met",(D113*12+D177)*Inputblad!$C$22,"")) -> 2462.184621 | E148: =IF(E$130="zonder",IF(E113*12*Inputblad!$C$22<=E$128,E$128,E113*12*Inputblad!$C$22),IF(E$130="met",(E113*12+E177)*Inputblad!$C$22,"")) -> 2683.656364
B149: =Lijsten!$E$17 -> FWG 30 | C149: =IF(C$130="zonder",IF(C114*12*Inputblad!$C$22<=C$128,C$128,C114*12*Inputblad!$C$22),IF(C$130="met",(C114*12+C178)*Inputblad!$C$22,"")) -> 2739.456642 | D149: =IF(D$130="zonder",IF(D114*12*Inputblad!$C$22<=D$128,D$128,D114*12*Inputblad!$C$22),IF(D$130="met",(D114*12+D178)*Inputblad!$C$22,"")) -> 2595.837586 | E149: =IF(E$130="zonder",IF(E114*12*Inputblad!$C$22<=E$128,E$128,E114*12*Inputblad!$C$22),IF(E$130="met",(E114*12+E178)*Inputblad!$C$22,"")) -> 2831.574431
B150: =Lijsten!$E$18 -> FWG 35 | C150: =IF(C$130="zonder",IF(C115*12*Inputblad!$C$22<=C$128,C$128,C115*12*Inputblad!$C$22),IF(C$130="met",(C115*12+C179)*Inputblad!$C$22,"")) -> 2961.790995 | D150: =IF(D$130="zonder",IF(D115*12*Inputblad!$C$22<=D$128,D$128,D115*12*Inputblad!$C$22),IF(D$130="met",(D115*12+D179)*Inputblad!$C$22,"")) -> 2729.490551 | E150: =IF(E$130="zonder",IF(E115*12*Inputblad!$C$22<=E$128,E$128,E115*12*Inputblad!$C$22),IF(E$130="met",(E115*12+E179)*Inputblad!$C$22,"")) -> 2975.043835
B151: =Lijsten!$E$19 -> FWG 40 | C151: =IF(C$130="zonder",IF(C116*12*Inputblad!$C$22<=C$128,C$128,C116*12*Inputblad!$C$22),IF(C$130="met",(C116*12+C180)*Inputblad!$C$22,"")) -> 3185.567997 | D151: =IF(D$130="zonder",IF(D116*12*Inputblad!$C$22<=D$128,D$128,D116*12*Inputblad!$C$22),IF(D$130="met",(D116*12+D180)*Inputblad!$C$22,"")) -> 3006.696701 | E151: =IF(E$130="zonder",IF(E116*12*Inputblad!$C$22<=E$128,E$128,E116*12*Inputblad!$C$22),IF(E$130="met",(E116*12+E180)*Inputblad!$C$22,"")) -> 3121.849736
B152: =Lijsten!$E$20 -> FWG 45 | C152: =IF(C$130="zonder",IF(C117*12*Inputblad!$C$22<=C$128,C$128,C117*12*Inputblad!$C$22),IF(C$130="met",(C117*12+C181)*Inputblad!$C$22,"")) -> 3499.976627 | D152: =IF(D$130="zonder",IF(D117*12*Inputblad!$C$22<=D$128,D$128,D117*12*Inputblad!$C$22),IF(D$130="met",(D117*12+D181)*Inputblad!$C$22,"")) -> 3292.813048 | E152: =IF(E$130="zonder",IF(E117*12*Inputblad!$C$22<=E$128,E$128,E117*12*Inputblad!$C$22),IF(E$130="met",(E117*12+E181)*Inputblad!$C$22,"")) -> 3429.919696
B153: =Lijsten!$E$21 -> FWG 50 | C153: =IF(C$130="zonder",IF(C118*12*Inputblad!$C$22<=C$128,C$128,C118*12*Inputblad!$C$22),IF(C$130="met",(C118*12+C182)*Inputblad!$C$22,"")) -> 3975.340458 | D153: =IF(D$130="zonder",IF(D118*12*Inputblad!$C$22<=D$128,D$128,D118*12*Inputblad!$C$22),IF(D$130="met",(D118*12+D182)*Inputblad!$C$22,"")) -> 3641.300779 | E153: =IF(E$130="zonder",IF(E118*12*Inputblad!$C$22<=E$128,E$128,E118*12*Inputblad!$C$22),IF(E$130="met",(E118*12+E182)*Inputblad!$C$22,"")) -> 3898.141548
B154: =Lijsten!$E$22 -> FWG 55 | C154: =IF(C$130="zonder",IF(C119*12*Inputblad!$C$22<=C$128,C$128,C119*12*Inputblad!$C$22),IF(C$130="met",(C119*12+C183)*Inputblad!$C$22,"")) -> 4462.423036 | D154: =IF(D$130="zonder",IF(D119*12*Inputblad!$C$22<=D$128,D$128,D119*12*Inputblad!$C$22),IF(D$130="met",(D119*12+D183)*Inputblad!$C$22,"")) -> 4089.780728 | E154: =IF(E$130="zonder",IF(E119*12*Inputblad!$C$22<=E$128,E$128,E119*12*Inputblad!$C$22),IF(E$130="met",(E119*12+E183)*Inputblad!$C$22,"")) -> 4390.831051
B155: =Lijsten!$E$23 -> FWG 60 | C155: =IF(C$130="zonder",IF(C120*12*Inputblad!$C$22<=C$128,C$128,C120*12*Inputblad!$C$22),IF(C$130="met",(C120*12+C184)*Inputblad!$C$22,"")) -> 5086.956739 | D155: =IF(D$130="zonder",IF(D120*12*Inputblad!$C$22<=D$128,D$128,D120*12*Inputblad!$C$22),IF(D$130="met",(D120*12+D184)*Inputblad!$C$22,"")) -> 4573.901468 | E155: =IF(E$130="zonder",IF(E120*12*Inputblad!$C$22<=E$128,E$128,E120*12*Inputblad!$C$22),IF(E$130="met",(E120*12+E184)*Inputblad!$C$22,"")) -> 5003.634472
B156: =Lijsten!$E$24 -> FWG 65 | C156: =IF(C$130="zonder",IF(C121*12*Inputblad!$C$22<=C$128,C$128,C121*12*Inputblad!$C$22),IF(C$130="met",(C121*12+C185)*Inputblad!$C$22,"")) -> 5987.901926 | D156: =IF(D$130="zonder",IF(D121*12*Inputblad!$C$22<=D$128,D$128,D121*12*Inputblad!$C$22),IF(D$130="met",(D121*12+D185)*Inputblad!$C$22,"")) -> 5384.729455 | E156: =IF(E$130="zonder",IF(E121*12*Inputblad!$C$22<=E$128,E$128,E121*12*Inputblad!$C$22),IF(E$130="met",(E121*12+E185)*Inputblad!$C$22,"")) -> 5890.03071
B157: =Lijsten!$E$25 -> FWG 70 | C157: =IF(C$130="zonder",IF(C122*12*Inputblad!$C$22<=C$128,C$128,C122*12*Inputblad!$C$22),IF(C$130="met",(C122*12+C186)*Inputblad!$C$22,"")) -> 7226.748721 | D157: =IF(D$130="zonder",IF(D122*12*Inputblad!$C$22<=D$128,D$128,D122*12*Inputblad!$C$22),IF(D$130="met",(D122*12+D186)*Inputblad!$C$22,"")) -> 6498.504163 | E157: =IF(E$130="zonder",IF(E122*12*Inputblad!$C$22<=E$128,E$128,E122*12*Inputblad!$C$22),IF(E$130="met",(E122*12+E186)*Inputblad!$C$22,"")) -> 7113.413222
B158: =Lijsten!$E$26 -> FWG 75 | C158: =IF(C$130="zonder",IF(C123*12*Inputblad!$C$22<=C$128,C$128,C123*12*Inputblad!$C$22),IF(C$130="met",(C123*12+C187)*Inputblad!$C$22,"")) -> 8734.671686 | D158: =IF(D$130="zonder",IF(D123*12*Inputblad!$C$22<=D$128,D$128,D123*12*Inputblad!$C$22),IF(D$130="met",(D123*12+D187)*Inputblad!$C$22,"")) -> 7854.834252 | E158: =IF(E$130="zonder",IF(E123*12*Inputblad!$C$22<=E$128,E$128,E123*12*Inputblad!$C$22),IF(E$130="met",(E123*12+E187)*Inputblad!$C$22,"")) -> 8609.276384
B159: =Lijsten!$E$27 -> FWG 80 | C159: =IF(C$130="zonder",IF(C124*12*Inputblad!$C$22<=C$128,C$128,C124*12*Inputblad!$C$22),IF(C$130="met",(C124*12+C188)*Inputblad!$C$22,"")) -> 10213.36437 | D159: =IF(D$130="zonder",IF(D124*12*Inputblad!$C$22<=D$128,D$128,D124*12*Inputblad!$C$22),IF(D$130="met",(D124*12+D188)*Inputblad!$C$22,"")) -> 9185.42377 | E159: =IF(E$130="zonder",IF(E124*12*Inputblad!$C$22<=E$128,E$128,E124*12*Inputblad!$C$22),IF(E$130="met",(E124*12+E188)*Inputblad!$C$22,"")) -> 10234.15079
B162: VAKANTIEGELD | C162: =Lijsten!$F$6 -> VVT | D162: =Lijsten!$F$4 -> GGZ | E162: =Lijsten!$F$5 -> Gehandicaptenzorg | F162: =Lijsten!$F$3 -> Jeugdzorg | G162: =Lijsten!$F$2 -> Sociaal werk
B163: =Lijsten!$E$2 -> schaal 2 | F163: =IF(F99*12*8%<=F$128,F$128,F99*12*8%) -> 2236.879181 | G163: 2313.714132
B164: =Lijsten!$E$3 -> schaal 3 | F164: 2361.355653 | G164: 2455.2522
B165: =Lijsten!$E$4 -> schaal 4 | F165: 2236.879181 | G165: 2313.714132
B166: =Lijsten!$E$5 -> schaal 5 | F166: 2712.110094 | G166: 2826.909984
B167: =Lijsten!$E$6 -> schaal 6 | F167: 2924.032058 | G167: 3157.165476
B168: =Lijsten!$E$7 -> schaal 7 | F168: 3163.443219 | G168: 3364.176936
B169: =Lijsten!$E$8 -> schaal 8 | F169: 3436.370979 | G169: 3720.429216
B170: =Lijsten!$E$9 -> schaal 9 | F170: 3744.076665 | G170: 4094.012688
B171: =Lijsten!$E$10 -> schaal 10 | F171: 4097.815922 | G171: 4536.920928
B172: =Lijsten!$E$11 -> schaal 11 | F172: 4714.334563 | G172: 5030.8599
B173: =Lijsten!$E$12 -> schaal 12 | F173: 5408.082922 | G173: 5585.458044
B174: =Lijsten!$E$13 -> FWG 10 | C174: =IF(C110*12*8%<=C$128,C$128,C110*12*8%) -> 2164.376233 | D174: 2384.753977 | E174: 1993.798847
B175: =Lijsten!$E$14 -> FWG 15 | C175: 2164.376233 | D175: 2384.753977 | E175: 2129.290138
B176: =Lijsten!$E$15 -> FWG 20 | C176: 2235.771634 | D176: 2384.753977 | E176: 2261.814466
B177: =Lijsten!$E$16 -> FWG 25 | C177: 2365.79519 | D177: 2384.753977 | E177: 2386.426894
B178: =Lijsten!$E$17 -> FWG 30 | C178: 2436.046989 | D178: 2493.001283 | E178: 2517.962235
B179: =Lijsten!$E$18 -> FWG 35 | C179: 2633.756609 | D179: 2621.359473 | E179: 2645.541625
B180: =Lijsten!$E$19 -> FWG 40 | C180: 2832.749097 | D180: 2887.583866 | E180: 2776.087979
B181: =Lijsten!$E$20 -> FWG 45 | C181: 3112.335269 | D181: 3162.365472 | E181: 3050.037523
B182: =Lijsten!$E$21 -> FWG 50 | C182: 3535.049983 | D182: 3497.047567 | E182: 3466.40127
B183: =Lijsten!$E$22 -> FWG 55 | C183: 3968.185528 | D183: 3927.760603 | E183: 3904.522743
B184: =Lijsten!$E$23 -> FWG 60 | C184: 4523.548743 | D184: 4392.70249 | E184: 4449.454868
B185: =Lijsten!$E$24 -> FWG 65 | C185: 5324.709373 | D185: 5171.408841 | E185: 5237.677925
B186: =Lijsten!$E$25 -> FWG 70 | C186: 6426.34718 | D186: 6241.060421 | E186: 6325.564201
B187: =Lijsten!$E$26 -> FWG 75 | C187: 7767.259514 | D187: 7543.658346 | E187: 7655.75242
B188: =Lijsten!$E$27 -> FWG 80 | C188: 9082.178978 | D188: 8821.535434 | E188: 9100.663192
B191: SOCIALE PREMIES EN PENSIOENEN | C191: =Lijsten!$F$6 -> VVT | D191: =Lijsten!$F$4 -> GGZ | E191: =Lijsten!$F$5 -> Gehandicaptenzorg | F191: =Lijsten!$F$3 -> Jeugdzorg | G191: =Lijsten!$F$2 -> Sociaal werk
B192: =Lijsten!$E$2 -> schaal 2 | F192: =(F99*12+F134+F163)*Inputblad!$C$23 -> 9061.598344 | G192: =(G99*12+G134+G163)*Inputblad!$C$23 -> 9372.856759
B193: =Lijsten!$E$3 -> schaal 3 | F193: =(F100*12+F135+F164)*Inputblad!$C$23 -> 9565.852577 | G193: =(G100*12+G135+G164)*Inputblad!$C$23 -> 9946.227522
B194: =Lijsten!$E$4 -> schaal 4 | F194: =(F101*12+F136+F165)*Inputblad!$C$23 -> 9061.598344 | G194: =(G101*12+G136+G165)*Inputblad!$C$23 -> 9372.856759
B195: =Lijsten!$E$5 -> schaal 5 | F195: =(F102*12+F137+F166)*Inputblad!$C$23 -> 10986.75894 | G195: =(G102*12+G137+G166)*Inputblad!$C$23 -> 11451.81333
B196: =Lijsten!$E$6 -> schaal 6 | F196: =(F103*12+F138+F167)*Inputblad!$C$23 -> 11845.25489 | G196: =(G103*12+G138+G167)*Inputblad!$C$23 -> 12789.67845
B197: =Lijsten!$E$7 -> schaal 7 | F197: =(F104*12+F139+F168)*Inputblad!$C$23 -> 12815.10959 | G197: =(G104*12+G139+G168)*Inputblad!$C$23 -> 13628.28195
B198: =Lijsten!$E$8 -> schaal 8 | F198: =(F105*12+F140+F169)*Inputblad!$C$23 -> 13920.74004 | G198: =(G105*12+G140+G169)*Inputblad!$C$23 -> 15071.46006
B199: =Lijsten!$E$9 -> schaal 9 | F199: =(F106*12+F141+F170)*Inputblad!$C$23 -> 15167.25588 | G199: =(G106*12+G141+G170)*Inputblad!$C$23 -> 16584.84683
B200: =Lijsten!$E$10 -> schaal 10 | F200: =(F107*12+F142+F171)*Inputblad!$C$23 -> 16600.25373 | G200: =(G107*12+G142+G171)*Inputblad!$C$23 -> 18379.06827
B201: =Lijsten!$E$11 -> schaal 11 | F201: =(F108*12+F143+F172)*Inputblad!$C$23 -> 19097.77097 | G201: =(G108*12+G143+G172)*Inputblad!$C$23 -> 20380.01522
B202: =Lijsten!$E$12 -> schaal 12 | F202: =(F109*12+F144+F173)*Inputblad!$C$23 -> 21908.14581 | G202: =(G109*12+G144+G173)*Inputblad!$C$23 -> 22626.69249
B203: =Lijsten!$E$13 -> FWG 10 | C203: =(C110*12+C145+C174)*Inputblad!$C$23 -> 6996.349967 | D203: =(D110*12+D145+D174)*Inputblad!$C$23 -> 8158.948971 | E203: =(E110*12+E145+E174)*Inputblad!$C$23 -> 8076.879829
B204: =Lijsten!$E$14 -> FWG 15 | C204: =(C111*12+C146+C175)*Inputblad!$C$23 -> 8538.021972 | D204: =(D111*12+D146+D175)*Inputblad!$C$23 -> 8623.142102 | E204: =(E111*12+E146+E175)*Inputblad!$C$23 -> 8625.755095
B205: =Lijsten!$E$15 -> FWG 20 | C205: =(C112*12+C147+C176)*Inputblad!$C$23 -> 9057.111671 | D205: =(D112*12+D147+D176)*Inputblad!$C$23 -> 9080.750933 | E205: =(E112*12+E147+E176)*Inputblad!$C$23 -> 9162.611195
B206: =Lijsten!$E$16 -> FWG 25 | C206: =(C113*12+C148+C177)*Inputblad!$C$23 -> 9583.837144 | D206: =(D113*12+D148+D177)*Inputblad!$C$23 -> 9530.178704 | E206: =(E113*12+E148+E177)*Inputblad!$C$23 -> 9667.416184
B207: =Lijsten!$E$17 -> FWG 30 | C207: =(C114*12+C149+C178)*Inputblad!$C$23 -> 9868.427205 | D207: =(D114*12+D149+D178)*Inputblad!$C$23 -> 10041.62531 | E207: =(E114*12+E149+E178)*Inputblad!$C$23 -> 10200.2659
B208: =Lijsten!$E$18 -> FWG 35 | C208: =(C115*12+C150+C179)*Inputblad!$C$23 -> 10669.34895 | D208: =(D115*12+D150+D179)*Inputblad!$C$23 -> 10558.64263 | E208: =(E115*12+E150+E179)*Inputblad!$C$23 -> 10717.09005
B209: =Lijsten!$E$19 -> FWG 40 | C209: =(C116*12+C151+C180)*Inputblad!$C$23 -> 11475.46758 | D209: =(D116*12+D151+D180)*Inputblad!$C$23 -> 11630.97485 | E209: =(E116*12+E151+E180)*Inputblad!$C$23 -> 11245.93337
B210: =Lijsten!$E$20 -> FWG 45 | C210: =(C117*12+C152+C181)*Inputblad!$C$23 -> 12608.07126 | D210: =(D117*12+D152+D181)*Inputblad!$C$23 -> 12737.7749 | E210: =(E117*12+E152+E181)*Inputblad!$C$23 -> 12355.70307
B211: =Lijsten!$E$21 -> FWG 50 | C211: =(C118*12+C153+C182)*Inputblad!$C$23 -> 14320.48872 | D211: =(D118*12+D153+D182)*Inputblad!$C$23 -> 14085.84969 | E211: =(E118*12+E153+E182)*Inputblad!$C$23 -> 14042.39276
B212: =Lijsten!$E$22 -> FWG 55 | C212: =(C119*12+C154+C183)*Inputblad!$C$23 -> 16075.12096 | D212: =(D119*12+D154+D183)*Inputblad!$C$23 -> 15820.73004 | E212: =(E119*12+E154+E183)*Inputblad!$C$23 -> 15817.223
B213: =Lijsten!$E$23 -> FWG 60 | C213: =(C120*12+C155+C184)*Inputblad!$C$23 -> 18324.89754 | D213: =(D120*12+D155+D184)*Inputblad!$C$23 -> 17693.48167 | E213: =(E120*12+E155+E184)*Inputblad!$C$23 -> 18024.74323
B214: =Lijsten!$E$24 -> FWG 65 | C214: =(C121*12+C156+C185)*Inputblad!$C$23 -> 21570.39953 | D214: =(D121*12+D156+D185)*Inputblad!$C$23 -> 20830.05342 | E214: =(E121*12+E156+E185)*Inputblad!$C$23 -> 21217.83511
B215: =Lijsten!$E$25 -> FWG 70 | C215: =(C122*12+C157+C186)*Inputblad!$C$23 -> 26033.13467 | D215: =(D122*12+D157+D186)*Inputblad!$C$23 -> 25138.5311 | E215: =(E122*12+E157+E186)*Inputblad!$C$23 -> 25624.86279
B216: =Lijsten!$E$26 -> FWG 75 | C216: =(C123*12+C158+C187)*Inputblad!$C$23 -> 31465.17101 | D216: =(D123*12+D158+D187)*Inputblad!$C$23 -> 30385.29947 | E216: =(E123*12+E158+E187)*Inputblad!$C$23 -> 31013.45573
B217: =Lijsten!$E$27 -> FWG 80 | C217: =(C124*12+C159+C188)*Inputblad!$C$23 -> 36791.91022 | D217: =(D124*12+D159+D188)*Inputblad!$C$23 -> 35532.49414 | E217: =(E124*12+E159+E188)*Inputblad!$C$23 -> 36866.78977

Sheet Subsidiebedragen (hidden)

Sheet Lijsten (hidden)
A1: producten | E1: schaal | F1: lijstcao | G1: dienst | H1: dag | I1: opleiding | J1: zrm | N1: korting
A2: Onafhankelijke cliëntondersteuning | B2: 1.291666667 | C2: specifieke cao's | D2: mbo | E2: schaal 2 | F2: Sociaal werk | G2: Bereikbaarheid | H2: maandag | I2: mbo | J2: Financiën | M2: =J2 -> Financiën | N2: 0% | Q2: Voorlichting | R2: Noordoost
A3: Individuele ondersteuning | B3: 1.302083333 | C3: gemiddelde van cao's | D3: mbo | E3: schaal 3 | F3: Jeugdzorg | G3: Slaapdienst | H3: dinsdag | I3: hbo | J3: Werk en opleiding | M3: =J3 -> Werk en opleiding | N3: 0.05 | Q3: Ondersteuning | R3: Noordwest
A4: Waakvlamcontact | B4: 1.3125 | D4: mbo | E4: schaal 4 | F4: GGZ | G4: Wakende dienst | H4: woensdag | I4: wo | J4: Tijdbesteding | M4: Tijdbesteding | N4: 0.1 | R4: Zuidoost
A5: Informatie en advies | B5: 1.322916667 | D5: mbo | E5: schaal 5 | F5: Gehandicaptenzorg | G5: Reguliere dienst | H5: donderdag | J5: Huisvesting | M5: Huisvesting | N5: 0.15 | R5: Zuidwest
A6: Collectieve inwondersondersteuning | B6: 1.333333333 | D6: mbo | E6: schaal 6 | F6: VVT | H6: vrijdag | J6: Huiselijke relaties | M6: Huiselijke relaties | N6: 0.2
A7: Leefbaarheid & samenredzaamheid | B7: 1.34375 | D7: mbo/hbo | E7: schaal 7 | H7: zaterdag | J7: Geestelijke gezondheid | M7: Geestelijke gezondheid
B8: 1.354166667 | D8: hbo | E8: schaal 8 | H8: zondag | J8: Lichamelijke gezondheid | M8: Lichamelijke gezondheid
B9: 1.364583333 | D9: hbo | E9: schaal 9 | J9: Middelengebruik | M9: Middelengebruik
B10: 1.375 | D10: hbo | E10: schaal 10 | J10: Basale Activiteiten van het Dagelijks Leven | M10: Basale Activiteiten van het Dagelijks Leven
B11: 1.385416667 | D11: hbo/wo | E11: schaal 11 | J11: Instrumentele Activiteiten van het Dagelijks Leven | M11: Instrumentele Activiteiten van het Dagelijks Leven
B12: 1.395833333 | D12: wo | E12: schaal 12 | J12: Sociaal netwerk | M12: Sociaal netwerk
B13: 1.40625 | D13: mbo | E13: FWG 10 | J13: Maatschappelijke participatie | M13: Maatschappelijke participatie
B14: 1.416666667 | D14: mbo | E14: FWG 15 | J14: Justitie | M14: Justitie
B15: 1.427083333 | D15: mbo | E15: FWG 20 | J15: (Ouderschap) Lichamelijke verzorging | M15: (Ouderschap) Lichamelijke verzorging
B16: 1.4375 | D16: mbo | E16: FWG 25 | J16: (Ouderschap) Sociale- emotionele ondersteuning | M16: (Ouderschap) Sociale- emotionele ondersteuning
B17: 1.447916667 | D17: mbo | E17: FWG 30 | J17: (Ouderschap) Scholing | M17: (Ouderschap) Scholing
B18: 1.458333333 | D18: mbo | E18: FWG 35 | J18: (Ouderschap) Opvang | M18: (Ouderschap) Opvang
B19: 1.46875 | D19: hbo | E19: FWG 40
B20: 1.479166667 | D20: hbo | E20: FWG 45
B21: 1.489583333 | D21: hbo | E21: FWG 50
B22: 1.5 | D22: hbo | E22: FWG 55
B23: 1.510416667 | D23: wo | E23: FWG 60
B24: 1.520833333 | D24: wo | E24: FWG 65
B25: 1.53125 | D25: wo | E25: FWG 70
B26: 1.541666667 | D26: wo | E26: FWG 75
B27: 1.552083333 | D27: wo | E27: FWG 80
B28: 1.5625
B29: 1.572916667
B30: 1.583333333
B31: 1.59375
B32: 1.604166667
B33: 1.614583333
B34: 1.625
B35: 1.635416667
B36: 1.645833333
B37: 1.65625
B38: 1.666666667
B39: 1.677083333
B40: 1.6875
B41: 1.697916667
B42: 1.708333333
B43: 1.71875
B44: 1.729166667
B45: 1.739583333
B46: 1.75
B47: 1.760416667
B48: 1.770833333
B49: 1.78125
B50: 1.791666667
B51: 1.802083333
B52: 1.8125
B53: 1.822916667
B54: 1.833333333
B55: 1.84375
B56: 1.854166667
B57: 1.864583333
B58: 1.875
B59: 1.885416667
B60: 1.895833333
B61: 1.90625
B62: 1.916666667
B63: 1.927083333
B64: 1.9375
B65: 1.947916667
B66: 1.958333333
B67: 1.96875
B68: 1.979166667
B69: 1.989583333
B70: 1
B71: 2.010416667
B72: 1.020833333
B73: 1.03125
B74: 1.041666667
B75: 1.052083333
B76: 1.0625
B77: 1.072916667
B78: 1.083333333
B79: 1.09375
B80: 1.104166667
B81: 1.114583333
B82: 1.125
B83: 1.135416667
B84: 1.145833333
B85: 1.15625
B86: 1.166666667
B87: 1.177083333
B88: 1.1875
B89: 1.197916667
B90: 1.208333333
B91: 1.21875
B92: 1.229166667
B93: 1.239583333
B94: 1.25
B95: 1.260416667
B96: 1.270833333
B97: 1.28125

Sheet Blad1 (hidden)
B3: ='Uurtarieven per schaal'!B5 -> OPLEIDINGSTARIEVEN | C3: ='Uurtarieven per schaal'!C5 -> VVT | D3: ='Uurtarieven per schaal'!D5 -> GGZ | E3: ='Uurtarieven per schaal'!E5 -> Gehandicaptenzorg | F3: ='Uurtarieven per schaal'!F5 -> Jeugdzorg | G3: ='Uurtarieven per schaal'!G5 -> Sociaal werk
B4: ='Uurtarieven per schaal'!B6 -> mbo | C4: ='Uurtarieven per schaal'!C6 -> 57.49283589 | D4: ='Uurtarieven per schaal'!D6 -> 57.7316708 | E4: ='Uurtarieven per schaal'!E6 -> 56.95397274 | F4: ='Uurtarieven per schaal'!F6 -> 59.52014656 | G4: ='Uurtarieven per schaal'!G6 -> 62.86840308
B5: ='Uurtarieven per schaal'!B7 -> hbo | C5: ='Uurtarieven per schaal'!C7 -> 68.41926512 | D5: ='Uurtarieven per schaal'!D7 -> 67.82247331 | E5: ='Uurtarieven per schaal'!E7 -> 67.48762252 | F5: ='Uurtarieven per schaal'!F7 -> 68.4454328 | G5: ='Uurtarieven per schaal'!G7 -> 73.08930137
B8: Tarieven 5% lager | C8: =C3 -> VVT | D8: GGZ | E8: Gehandicaptenzorg | F8: Jeugdzorg | G8: Sociaal werk
B9: ='Uurtarieven per schaal'!B6 -> mbo | C9: =0.95*C4 -> 54.61819409 | D9: 54.84508726 | E9: 54.1062741 | F9: 56.54413923 | G9: 59.72498293
B10: ='Uurtarieven per schaal'!B7 -> hbo | C10: 64.99830186 | D10: 64.43134964 | E10: 64.11324139 | F10: 65.02316116 | G10: 69.4348363
B13: Tarieven 10% lager | C13: =C3 -> VVT | D13: GGZ | E13: Gehandicaptenzorg | F13: Jeugdzorg | G13: Sociaal werk
B14: ='Uurtarieven per schaal'!B6 -> mbo | C14: =0.9*C4 -> 51.7435523 | D14: 51.95850372 | E14: 51.25857547 | F14: 53.5681319 | G14: 56.58156278
B15: ='Uurtarieven per schaal'!B7 -> hbo | C15: 61.57733861 | D15: 61.04022598 | E15: 60.73886027 | F15: 61.60088952 | G15: 65.78037123
B17: Tarieven 15% lager | C17: =C3 -> VVT | D17: GGZ | E17: Gehandicaptenzorg | F17: Jeugdzorg | G17: Sociaal werk
B18: ='Uurtarieven per schaal'!B6 -> mbo | C18: =0.85*C4 -> 48.8689105 | D18: 49.07192018 | E18: 48.41087683 | F18: 50.59212458 | G18: 53.43814262
B19: ='Uurtarieven per schaal'!B7 -> hbo | C19: 58.15637535 | D19: 57.64910231 | E19: 57.36447914 | F19: 58.17861788 | G19: 62.12590616
B21: Tarieven 20% lager | C21: =C3 -> VVT | D21: GGZ | E21: Gehandicaptenzorg | F21: Jeugdzorg | G21: Sociaal werk
B22: ='Uurtarieven per schaal'!B6 -> mbo | C22: =0.8*C4 -> 45.99426871 | D22: 46.18533664 | E22: 45.56317819 | F22: 47.61611725 | G22: 50.29472247
B23: ='Uurtarieven per schaal'!B7 -> hbo | C23: 54.7354121 | D23: 54.25797865 | E23: 53.99009802 | F23: 54.75634624 | G23: 58.47144109
